Workbook

Sheet Notes
C4: Why I think this exercise is so important | J4: Questions:
C6: Demonstration of formulas for volatilty | J6: 1. Make a graph of cash flow and debt service without sweep
J7: 2. Add sweep and demonstrate how you can make the graph without diagornal lines
J8: 3. Demonstrate the graph with equity IRR to show how things work
J9: 4. Imagine a negotiain between a bank and a developer
J10: 5. How could you quantify risk and return

Sheet Financial Model
B2: Timing | F2: Volatility | G2: =F85 -> 0.45 | I2: Equity IRR | J2: =F145 -> 0.1124498846
C3: Period | F3: Sweep | G3: =F131 -> 1 | I3: =_xlfn.SEQUENCE(,120) -> 1 | J3: 2 | K3: 3 | L3: 4 | M3: 5 | N3: 6 | O3: 7 | P3: 8 | Q3: 9 | R3: 10 | S3: 11 | T3: 12 | U3: 13 | V3: 14 | W3: 15 | X3: 16 | Y3: 17 | Z3: 18 | AA3: 19 | AB3: 20 | AC3: 21 | AD3: 22 | AE3: 23 | AF3: 24 | AG3: 25 | AH3: 26 | AI3: 27 | AJ3: 28 | AK3: 29 | AL3: 30 | AM3: 31 | AN3: 32 | AO3: 33 | AP3: 34 | AQ3: 35 | AR3: 36 | AS3: 37 | AT3: 38 | AU3: 39 | AV3: 40 | AW3: 41 | AX3: 42 | AY3: 43 | AZ3: 44 | BA3: 45 | BB3: 46 | BC3: 47 | BD3: 48 | BE3: 49 | BF3: 50 | BG3: 51 | BH3: 52 | BI3: 53 | BJ3: 54 | BK3: 55 | BL3: 56 | BM3: 57 | BN3: 58 | BO3: 59 | BP3: 60 | BQ3: 61 | BR3: 62 | BS3: 63 | BT3: 64 | BU3: 65 | BV3: 66 | BW3: 67 | BX3: 68 | BY3: 69 | BZ3: 70 | CA3: 71 | CB3: 72 | CC3: 73 | CD3: 74 | CE3: 75 | CF3: 76 | CG3: 77 | CH3: 78 | CI3: 79 | CJ3: 80 | CK3: 81 | CL3: 82 | CM3: 83 | CN3: 84 | CO3: 85 | CP3: 86 | CQ3: 87 | CR3: 88 | CS3: 89 | CT3: 90 | CU3: 91 | CV3: 92 | CW3: 93 | CX3: 94 | CY3: 95 | CZ3: 96 | DA3: 97 | DB3: 98 | DC3: 99 | DD3: 100 | DE3: 101 | DF3: 102 | DG3: 103 | DH3: 104 | DI3: 105 | DJ3: 106 | DK3: 107 | DL3: 108 | DM3: 109 | DN3: 110 | DO3: 111 | DP3: 112 | DQ3: 113 | DR3: 114 | DS3: 115 | DT3: 116 | DU3: 117 | DV3: 118 | DW3: 119 | DX3: 120
C4: Construction Periods | E4: Years | F4: 1 | I4: =I3<=$F$4 -> TRUE | J4: =J3<=$F$4 -> FALSE | K4: FALSE | L4: FALSE | M4: FALSE | N4: FALSE | O4: FALSE | P4: FALSE | Q4: FALSE | R4: FALSE | S4: FALSE | T4: FALSE | U4: FALSE | V4: FALSE | W4: FALSE | X4: FALSE | Y4: FALSE | Z4: FALSE | AA4: FALSE | AB4: FALSE | AC4: FALSE | AD4: FALSE | AE4: FALSE | AF4: FALSE | AG4: FALSE | AH4: FALSE | AI4: FALSE | AJ4: FALSE | AK4: FALSE | AL4: FALSE | AM4: FALSE | AN4: FALSE | AO4: FALSE | AP4: FALSE | AQ4: FALSE | AR4: FALSE | AS4: FALSE | AT4: FALSE | AU4: FALSE | AV4: FALSE | AW4: FALSE | AX4: FALSE | AY4: FALSE | AZ4: FALSE | BA4: FALSE | BB4: FALSE | BC4: FALSE | BD4: FALSE | BE4: FALSE | BF4: FALSE | BG4: FALSE | BH4: FALSE | BI4: FALSE | BJ4: FALSE | BK4: FALSE | BL4: FALSE | BM4: FALSE | BN4: FALSE | BO4: FALSE | BP4: FALSE | BQ4: FALSE | BR4: FALSE | BS4: FALSE | BT4: FALSE | BU4: FALSE | BV4: =BV3<=$F$4 -> FALSE | BW4: FALSE | BX4: FALSE | BY4: FALSE | BZ4: FALSE | CA4: FALSE | CB4: FALSE | CC4: FALSE | CD4: FALSE | CE4: FALSE | CF4: FALSE | CG4: FALSE | CH4: FALSE | CI4: FALSE | CJ4: FALSE | CK4: FALSE | CL4: FALSE | CM4: FALSE | CN4: FALSE | CO4: FALSE | CP4: FALSE | CQ4: FALSE | CR4: FALSE | CS4: FALSE | CT4: FALSE | CU4: FALSE | CV4: FALSE | CW4: FALSE | CX4: FALSE | CY4: FALSE | CZ4: FALSE | DA4: FALSE | DB4: FALSE | DC4: FALSE | DD4: FALSE | DE4: FALSE | DF4: FALSE | DG4: FALSE | DH4: FALSE | DI4: FALSE | DJ4: FALSE | DK4: FALSE | DL4: FALSE | DM4: FALSE | DN4: FALSE | DO4: FALSE | DP4: FALSE | DQ4: FALSE | DR4: FALSE | DS4: FALSE | DT4: FALSE | DU4: FALSE | DV4: FALSE | DW4: FALSE | DX4: FALSE
C5: Operating Life | E5: Life | F5: 30 | G5: =F5+F4 -> 31 | I5: =AND(NOT(I4),I3<=$G$5) -> FALSE | J5: =AND(NOT(J4),J3<=$G$5) -> TRUE | K5: =AND(NOT(K4),K3<=$G$5) -> TRUE | L5: TRUE | M5: TRUE | N5: TRUE | O5: TRUE | P5: TRUE | Q5: TRUE | R5: TRUE | S5: TRUE | T5: TRUE | U5: TRUE | V5: TRUE | W5: TRUE | X5: TRUE | Y5: TRUE | Z5: TRUE | AA5: TRUE | AB5: TRUE | AC5: TRUE | AD5: TRUE | AE5: TRUE | AF5: TRUE | AG5: TRUE | AH5: TRUE | AI5: TRUE | AJ5: TRUE | AK5: TRUE | AL5: TRUE | AM5: TRUE | AN5: FALSE | AO5: FALSE | AP5: FALSE | AQ5: FALSE | AR5: FALSE | AS5: FALSE | AT5: FALSE | AU5: FALSE | AV5: FALSE | AW5: FALSE | AX5: FALSE | AY5: FALSE | AZ5: FALSE | BA5: FALSE | BB5: FALSE | BC5: FALSE | BD5: FALSE | BE5: FALSE | BF5: FALSE | BG5: FALSE | BH5: FALSE | BI5: FALSE | BJ5: FALSE | BK5: FALSE | BL5: FALSE | BM5: FALSE | BN5: FALSE | BO5: FALSE | BP5: FALSE | BQ5: FALSE | BR5: FALSE | BS5: FALSE | BT5: FALSE | BU5: FALSE | BV5: FALSE | BW5: =AND(NOT(BW4),BW3<=$G$5) -> FALSE | BX5: FALSE | BY5: FALSE | BZ5: FALSE | CA5: FALSE | CB5: FALSE | CC5: FALSE | CD5: FALSE | CE5: FALSE | CF5: FALSE | CG5: FALSE | CH5: FALSE | CI5: FALSE | CJ5: FALSE | CK5: FALSE | CL5: FALSE | CM5: FALSE | CN5: FALSE | CO5: FALSE | CP5: FALSE | CQ5: FALSE | CR5: FALSE | CS5: FALSE | CT5: FALSE | CU5: FALSE | CV5: FALSE | CW5: FALSE | CX5: FALSE | CY5: FALSE | CZ5: FALSE | DA5: FALSE | DB5: FALSE | DC5: FALSE | DD5: FALSE | DE5: FALSE | DF5: FALSE | DG5: FALSE | DH5: FALSE | DI5: FALSE | DJ5: FALSE | DK5: FALSE | DL5: FALSE | DM5: FALSE | DN5: FALSE | DO5: FALSE | DP5: FALSE | DQ5: FALSE | DR5: FALSE | DS5: FALSE | DT5: FALSE | DU5: FALSE | DV5: FALSE | DW5: FALSE | DX5: FALSE
B7: Operating Cash Flow
C8: Inflation Index | E8: % | F8: 0.02 | G8: 1 | I8: =G8*(1+$F$8*I5) -> 1 | J8: =I8*(1+$F$8*J5) -> 1.02 | K8: 1.0404 | L8: 1.061208 | M8: 1.08243216 | N8: 1.104080803 | O8: 1.126162419 | P8: 1.148685668 | Q8: 1.171659381 | R8: 1.195092569 | S8: 1.21899442 | T8: 1.243374308 | U8: 1.268241795 | V8: 1.29360663 | W8: 1.319478763 | X8: 1.345868338 | Y8: 1.372785705 | Z8: 1.400241419 | AA8: 1.428246248 | AB8: 1.456811173 | AC8: 1.485947396 | AD8: 1.515666344 | AE8: 1.545979671 | AF8: 1.576899264 | AG8: 1.608437249 | AH8: 1.640605994 | AI8: 1.673418114 | AJ8: 1.706886477 | AK8: 1.741024206 | AL8: 1.77584469 | AM8: 1.811361584 | AN8: 1.811361584 | AO8: 1.811361584 | AP8: 1.811361584 | AQ8: 1.811361584 | AR8: 1.811361584 | AS8: 1.811361584 | AT8: 1.811361584 | AU8: 1.811361584 | AV8: 1.811361584 | AW8: 1.811361584 | AX8: 1.811361584 | AY8: 1.811361584 | AZ8: 1.811361584 | BA8: 1.811361584 | BB8: 1.811361584 | BC8: 1.811361584 | BD8: 1.811361584 | BE8: 1.811361584 | BF8: 1.811361584 | BG8: 1.811361584 | BH8: 1.811361584 | BI8: 1.811361584 | BJ8: 1.811361584 | BK8: 1.811361584 | BL8: 1.811361584 | BM8: 1.811361584 | BN8: 1.811361584 | BO8: 1.811361584 | BP8: 1.811361584 | BQ8: 1.811361584 | BR8: 1.811361584 | BS8: 1.811361584 | BT8: 1.811361584 | BU8: 1.811361584 | BV8: =BU8*(1+$F$8*BV5) -> 1.811361584 | BW8: 1.811361584 | BX8: 1.811361584 | BY8: 1.811361584 | BZ8: 1.811361584 | CA8: 1.811361584 | CB8: 1.811361584 | CC8: 1.811361584 | CD8: 1.811361584 | CE8: 1.811361584 | CF8: 1.811361584 | CG8: 1.811361584 | CH8: 1.811361584 | CI8: 1.811361584 | CJ8: 1.811361584 | CK8: 1.811361584 | CL8: 1.811361584 | CM8: 1.811361584 | CN8: 1.811361584 | CO8: 1.811361584 | CP8: 1.811361584 | CQ8: 1.811361584 | CR8: 1.811361584 | CS8: 1.811361584 | CT8: 1.811361584 | CU8: 1.811361584 | CV8: 1.811361584 | CW8: 1.811361584 | CX8: 1.811361584 | CY8: 1.811361584 | CZ8: 1.811361584 | DA8: 1.811361584 | DB8: 1.811361584 | DC8: 1.811361584 | DD8: 1.811361584 | DE8: 1.811361584 | DF8: 1.811361584 | DG8: 1.811361584 | DH8: 1.811361584 | DI8: 1.811361584 | DJ8: 1.811361584 | DK8: 1.811361584 | DL8: 1.811361584 | DM8: 1.811361584 | DN8: 1.811361584 | DO8: 1.811361584 | DP8: 1.811361584 | DQ8: 1.811361584 | DR8: 1.811361584 | DS8: 1.811361584 | DT8: 1.811361584 | DU8: 1.811361584 | DV8: 1.811361584 | DW8: 1.811361584 | DX8: 1.811361584
C10: Revenues (Minimum Traffic Case) | E10: Annual Euro | F10: 80 | H10: =SUM(I10:XFD10) -> 3310.355263 | I10: =$F$10*I8*I5 -> 0 | J10: =$F$10*J8*J5 -> 81.6 | K10: 83.232 | L10: 84.89664 | M10: 86.5945728 | N10: 88.32646426 | O10: 90.09299354 | P10: 91.89485341 | Q10: 93.73275048 | R10: 95.60740549 | S10: 97.5195536 | T10: 99.46994467 | U10: 101.4593436 | V10: 103.4885304 | W10: 105.558301 | X10: 107.6694671 | Y10: 109.8228564 | Z10: 112.0193135 | AA10: 114.2596998 | AB10: 116.5448938 | AC10: 118.8757917 | AD10: 121.2533075 | AE10: 123.6783737 | AF10: 126.1519411 | AG10: 128.67498 | AH10: 131.2484796 | AI10: 133.8734491 | AJ10: 136.5509181 | AK10: 139.2819365 | AL10: 142.0675752 | AM10: 144.9089267 | AN10: 0 | AO10: 0 | AP10: 0 | AQ10: 0 | AR10: 0 | AS10: 0 | AT10: 0 | AU10: 0 | AV10: 0 | AW10: 0 | AX10: 0 | AY10: 0 | AZ10: 0 | BA10: 0 | BB10: 0 | BC10: 0 | BD10: 0 | BE10: 0 | BF10: 0 | BG10: 0 | BH10: 0 | BI10: 0 | BJ10: 0 | BK10: 0 | BL10: 0 | BM10: 0 | BN10: 0 | BO10: 0 | BP10: 0 | BQ10: 0 | BR10: 0 | BS10: 0 | BT10: 0 | BU10: 0 | BV10: =$F$10*BV8*BV5 -> 0 | BW10: 0 | BX10: 0 | BY10: 0 | BZ10: 0 | CA10: 0 | CB10: 0 | CC10: 0 | CD10: 0 | CE10: 0 | CF10: 0 | CG10: 0 | CH10: 0 | CI10: 0 | CJ10: 0 | CK10: 0 | CL10: 0 | CM10: 0 | CN10: 0 | CO10: 0 | CP10: 0 | CQ10: 0 | CR10: 0 | CS10: 0 | CT10: 0 | CU10: 0 | CV10: 0 | CW10: 0 | CX10: 0 | CY10: 0 | CZ10: 0 | DA10: 0 | DB10: 0 | DC10: 0 | DD10: 0 | DE10: 0 | DF10: 0 | DG10: 0 | DH10: 0 | DI10: 0 | DJ10: 0 | DK10: 0 | DL10: 0 | DM10: 0 | DN10: 0 | DO10: 0 | DP10: 0 | DQ10: 0 | DR10: 0 | DS10: 0 | DT10: 0 | DU10: 0 | DV10: 0 | DW10: 0 | DX10: 0
C11: Operating Expense | E11: Annual Euro | F11: 10 | H11: =SUM(I11:XFD11) -> 413.7944079 | I11: =$F$11*I8*I5 -> 0 | J11: =$F$11*J8*J5 -> 10.2 | K11: 10.404 | L11: 10.61208 | M11: 10.8243216 | N11: 11.04080803 | O11: 11.26162419 | P11: 11.48685668 | Q11: 11.71659381 | R11: 11.95092569 | S11: 12.1899442 | T11: 12.43374308 | U11: 12.68241795 | V11: 12.9360663 | W11: 13.19478763 | X11: 13.45868338 | Y11: 13.72785705 | Z11: 14.00241419 | AA11: 14.28246248 | AB11: 14.56811173 | AC11: 14.85947396 | AD11: 15.15666344 | AE11: 15.45979671 | AF11: 15.76899264 | AG11: 16.08437249 | AH11: 16.40605994 | AI11: 16.73418114 | AJ11: 17.06886477 | AK11: 17.41024206 | AL11: 17.7584469 | AM11: 18.11361584 | AN11: 0 | AO11: 0 | AP11: 0 | AQ11: 0 | AR11: 0 | AS11: 0 | AT11: 0 | AU11: 0 | AV11: 0 | AW11: 0 | AX11: 0 | AY11: 0 | AZ11: 0 | BA11: 0 | BB11: 0 | BC11: 0 | BD11: 0 | BE11: 0 | BF11: 0 | BG11: 0 | BH11: 0 | BI11: 0 | BJ11: 0 | BK11: 0 | BL11: 0 | BM11: 0 | BN11: 0 | BO11: 0 | BP11: 0 | BQ11: 0 | BR11: 0 | BS11: 0 | BT11: 0 | BU11: 0 | BV11: =$F$11*BV8*BV5 -> 0 | BW11: 0 | BX11: 0 | BY11: 0 | BZ11: 0 | CA11: 0 | CB11: 0 | CC11: 0 | CD11: 0 | CE11: 0 | CF11: 0 | CG11: 0 | CH11: 0 | CI11: 0 | CJ11: 0 | CK11: 0 | CL11: 0 | CM11: 0 | CN11: 0 | CO11: 0 | CP11: 0 | CQ11: 0 | CR11: 0 | CS11: 0 | CT11: 0 | CU11: 0 | CV11: 0 | CW11: 0 | CX11: 0 | CY11: 0 | CZ11: 0 | DA11: 0 | DB11: 0 | DC11: 0 | DD11: 0 | DE11: 0 | DF11: 0 | DG11: 0 | DH11: 0 | DI11: 0 | DJ11: 0 | DK11: 0 | DL11: 0 | DM11: 0 | DN11: 0 | DO11: 0 | DP11: 0 | DQ11: 0 | DR11: 0 | DS11: 0 | DT11: 0 | DU11: 0 | DV11: 0 | DW11: 0 | DX11: 0
C12: Capital Expenditure | E12: One Time | F12: 1000 | G12: =F4 -> 1 | I12: =$F$12/$G$12*I4 -> 1000 | J12: =$F$12/$G$12*J4 -> 0 | K12: 0 | L12: 0 | M12: 0 | N12: 0 | O12: 0 | P12: 0 | Q12: 0 | R12: 0 | S12: 0 | T12: 0 | U12: 0 | V12: 0 | W12: 0 | X12: 0 | Y12: 0 | Z12: 0 | AA12: 0 | AB12: 0 | AC12: 0 | AD12: 0 | AE12: 0 | AF12: 0 | AG12: 0 | AH12: 0 | AI12: 0 | AJ12: 0 | AK12: 0 | AL12: 0 | AM12: 0 | AN12: 0 | AO12: 0 | AP12: 0 | AQ12: 0 | AR12: 0 | AS12: 0 | AT12: 0 | AU12: 0 | AV12: 0 | AW12: 0 | AX12: 0 | AY12: 0 | AZ12: 0 | BA12: 0 | BB12: 0 | BC12: 0 | BD12: 0 | BE12: 0 | BF12: 0 | BG12: 0 | BH12: 0 | BI12: 0 | BJ12: 0 | BK12: 0 | BL12: 0 | BM12: 0 | BN12: 0 | BO12: 0 | BP12: 0 | BQ12: 0 | BR12: 0 | BS12: 0 | BT12: 0 | BU12: 0 | BV12: =$F$12/$G$12*BV4 -> 0 | BW12: 0 | BX12: 0 | BY12: 0 | BZ12: 0 | CA12: 0 | CB12: 0 | CC12: 0 | CD12: 0 | CE12: 0 | CF12: 0 | CG12: 0 | CH12: 0 | CI12: 0 | CJ12: 0 | CK12: 0 | CL12: 0 | CM12: 0 | CN12: 0 | CO12: 0 | CP12: 0 | CQ12: 0 | CR12: 0 | CS12: 0 | CT12: 0 | CU12: 0 | CV12: 0 | CW12: 0 | CX12: 0 | CY12: 0 | CZ12: 0 | DA12: 0 | DB12: 0 | DC12: 0 | DD12: 0 | DE12: 0 | DF12: 0 | DG12: 0 | DH12: 0 | DI12: 0 | DJ12: 0 | DK12: 0 | DL12: 0 | DM12: 0 | DN12: 0 | DO12: 0 | DP12: 0 | DQ12: 0 | DR12: 0 | DS12: 0 | DT12: 0 | DU12: 0 | DV12: 0 | DW12: 0 | DX12: 0
C14: EBITDA | E14: Euro | H14: =SUM(I14:XFD14) -> 2896.560855 | I14: =I10-I11 -> 0 | J14: =J10-J11 -> 71.4 | K14: 72.828 | L14: 74.28456 | M14: 75.7702512 | N14: 77.28565622 | O14: 78.83136935 | P14: 80.40799674 | Q14: 82.01615667 | R14: 83.6564798 | S14: 85.3296094 | T14: 87.03620159 | U14: 88.77692562 | V14: 90.55246413 | W14: 92.36351341 | X14: 94.21078368 | Y14: 96.09499936 | Z14: 98.01689934 | AA14: 99.97723733 | AB14: 101.9767821 | AC14: 104.0163177 | AD14: 106.0966441 | AE14: 108.218577 | AF14: 110.3829485 | AG14: 112.5906075 | AH14: 114.8424196 | AI14: 117.139268 | AJ14: 119.4820534 | AK14: 121.8716944 | AL14: 124.3091283 | AM14: 126.7953109 | AN14: 0 | AO14: 0 | AP14: 0 | AQ14: 0 | AR14: 0 | AS14: 0 | AT14: 0 | AU14: 0 | AV14: 0 | AW14: 0 | AX14: 0 | AY14: 0 | AZ14: 0 | BA14: 0 | BB14: 0 | BC14: 0 | BD14: 0 | BE14: 0 | BF14: 0 | BG14: 0 | BH14: 0 | BI14: 0 | BJ14: 0 | BK14: 0 | BL14: 0 | BM14: 0 | BN14: 0 | BO14: 0 | BP14: 0 | BQ14: 0 | BR14: 0 | BS14: 0 | BT14: 0 | BU14: 0 | BV14: =BV10-BV11 -> 0 | BW14: 0 | BX14: 0 | BY14: 0 | BZ14: 0 | CA14: 0 | CB14: 0 | CC14: 0 | CD14: 0 | CE14: 0 | CF14: 0 | CG14: 0 | CH14: 0 | CI14: 0 | CJ14: 0 | CK14: 0 | CL14: 0 | CM14: 0 | CN14: 0 | CO14: 0 | CP14: 0 | CQ14: 0 | CR14: 0 | CS14: 0 | CT14: 0 | CU14: 0 | CV14: 0 | CW14: 0 | CX14: 0 | CY14: 0 | CZ14: 0 | DA14: 0 | DB14: 0 | DC14: 0 | DD14: 0 | DE14: 0 | DF14: 0 | DG14: 0 | DH14: 0 | DI14: 0 | DJ14: 0 | DK14: 0 | DL14: 0 | DM14: 0 | DN14: 0 | DO14: 0 | DP14: 0 | DQ14: 0 | DR14: 0 | DS14: 0 | DT14: 0 | DU14: 0 | DV14: 0 | DW14: 0 | DX14: 0
C15: Free Cash Flow | E15: Euro | H15: =SUM(I15:XFD15) -> 1896.560855 | I15: =I14-I12 -> -1000 | J15: =J14-J12 -> 71.4 | K15: 72.828 | L15: 74.28456 | M15: 75.7702512 | N15: 77.28565622 | O15: 78.83136935 | P15: 80.40799674 | Q15: 82.01615667 | R15: 83.6564798 | S15: 85.3296094 | T15: 87.03620159 | U15: 88.77692562 | V15: 90.55246413 | W15: 92.36351341 | X15: 94.21078368 | Y15: 96.09499936 | Z15: 98.01689934 | AA15: 99.97723733 | AB15: 101.9767821 | AC15: 104.0163177 | AD15: 106.0966441 | AE15: 108.218577 | AF15: 110.3829485 | AG15: 112.5906075 | AH15: 114.8424196 | AI15: 117.139268 | AJ15: 119.4820534 | AK15: 121.8716944 | AL15: 124.3091283 | AM15: 126.7953109 | AN15: 0 | AO15: 0 | AP15: 0 | AQ15: 0 | AR15: 0 | AS15: 0 | AT15: 0 | AU15: 0 | AV15: 0 | AW15: 0 | AX15: 0 | AY15: 0 | AZ15: 0 | BA15: 0 | BB15: 0 | BC15: 0 | BD15: 0 | BE15: 0 | BF15: 0 | BG15: 0 | BH15: 0 | BI15: 0 | BJ15: 0 | BK15: 0 | BL15: 0 | BM15: 0 | BN15: 0 | BO15: 0 | BP15: 0 | BQ15: 0 | BR15: 0 | BS15: 0 | BT15: 0 | BU15: 0 | BV15: =BV14-BV12 -> 0 | BW15: 0 | BX15: 0 | BY15: 0 | BZ15: 0 | CA15: 0 | CB15: 0 | CC15: 0 | CD15: 0 | CE15: 0 | CF15: 0 | CG15: 0 | CH15: 0 | CI15: 0 | CJ15: 0 | CK15: 0 | CL15: 0 | CM15: 0 | CN15: 0 | CO15: 0 | CP15: 0 | CQ15: 0 | CR15: 0 | CS15: 0 | CT15: 0 | CU15: 0 | CV15: 0 | CW15: 0 | CX15: 0 | CY15: 0 | CZ15: 0 | DA15: 0 | DB15: 0 | DC15: 0 | DD15: 0 | DE15: 0 | DF15: 0 | DG15: 0 | DH15: 0 | DI15: 0 | DJ15: 0 | DK15: 0 | DL15: 0 | DM15: 0 | DN15: 0 | DO15: 0 | DP15: 0 | DQ15: 0 | DR15: 0 | DS15: 0 | DT15: 0 | DU15: 0 | DV15: 0 | DW15: 0 | DX15: 0
C16: PIRR | E16: % p.a. | F16: =IRR(I15:DX15) -> 0.07769763813
C18: Opening Balance | E18: Euro | I18: =H21 -> 0 | J18: =I21 -> 0 | K18: 71.4 | L18: 149.7756114 | M18: 235.6973826 | N18: 329.7807638 | O18: 432.6896064 | P18: 545.1399362 | Q18: 667.9040185 | R18: 801.8147399 | S18: 947.7703312 | T18: 1106.739457 | U18: 1279.7667 | V18: 1467.978476 | W18: 1672.5894 | X18: 1894.90916 | Y18: 2136.34991 | Z18: 2398.434251 | AA18: 2682.803827 | AB18: 2991.228585 | AC18: 3325.616764 | AD18: 3688.025649 | AE18: 4080.673175 | AF18: 4505.95042 | AG18: 4966.435074 | AH18: 5464.905956 | AI18: 6004.358661 | AJ18: 6588.022416 | AK18: 7219.378251 | AL18: 7902.178584 | AM18: 8640.468325 | AN18: 9438.607617 | AO18: 9438.607617 | AP18: 9438.607617 | AQ18: 9438.607617 | AR18: 9438.607617 | AS18: 9438.607617 | AT18: 9438.607617 | AU18: 9438.607617 | AV18: 9438.607617 | AW18: 9438.607617 | AX18: 9438.607617 | AY18: 9438.607617 | AZ18: 9438.607617 | BA18: 9438.607617 | BB18: 9438.607617 | BC18: 9438.607617 | BD18: 9438.607617 | BE18: 9438.607617 | BF18: 9438.607617 | BG18: 9438.607617 | BH18: 9438.607617 | BI18: 9438.607617 | BJ18: 9438.607617 | BK18: 9438.607617 | BL18: 9438.607617 | BM18: 9438.607617 | BN18: 9438.607617 | BO18: 9438.607617 | BP18: 9438.607617 | BQ18: 9438.607617 | BR18: 9438.607617 | BS18: 9438.607617 | BT18: 9438.607617 | BU18: 9438.607617 | BV18: =BU21 -> 9438.607617 | BW18: 9438.607617 | BX18: 9438.607617 | BY18: 9438.607617 | BZ18: 9438.607617 | CA18: 9438.607617 | CB18: 9438.607617 | CC18: 9438.607617 | CD18: 9438.607617 | CE18: 9438.607617 | CF18: 9438.607617 | CG18: 9438.607617 | CH18: 9438.607617 | CI18: 9438.607617 | CJ18: 9438.607617 | CK18: 9438.607617 | CL18: 9438.607617 | CM18: 9438.607617 | CN18: 9438.607617 | CO18: 9438.607617 | CP18: 9438.607617 | CQ18: 9438.607617 | CR18: 9438.607617 | CS18: 9438.607617 | CT18: 9438.607617 | CU18: 9438.607617 | CV18: 9438.607617 | CW18: 9438.607617 | CX18: 9438.607617 | CY18: 9438.607617 | CZ18: 9438.607617 | DA18: 9438.607617 | DB18: 9438.607617 | DC18: 9438.607617 | DD18: 9438.607617 | DE18: 9438.607617 | DF18: 9438.607617 | DG18: 9438.607617 | DH18: 9438.607617 | DI18: 9438.607617 | DJ18: 9438.607617 | DK18: 9438.607617 | DL18: 9438.607617 | DM18: 9438.607617 | DN18: 9438.607617 | DO18: 9438.607617 | DP18: 9438.607617 | DQ18: 9438.607617 | DR18: 9438.607617 | DS18: 9438.607617 | DT18: 9438.607617 | DU18: 9438.607617 | DV18: 9438.607617 | DW18: 9438.607617 | DX18: 9438.607617
C19: Add: Re-Investment | E19: Euro | F19: =F16 -> 0.07769763813 | I19: =I18*$F$19*I5 -> 0 | J19: =J18*$F$19*J5 -> 0 | K19: 5.547611363 | L19: 11.63721125 | M19: 18.31312994 | N19: 25.62318645 | O19: 33.61896046 | P19: 42.3560855 | Q19: 51.89456473 | R19: 62.29911151 | S19: 73.63951622 | T19: 85.99104182 | U19: 99.43484997 | V19: 114.0584604 | W19: 129.956246 | X19: 147.2299662 | Y19: 165.9893422 | Z19: 186.3526765 | AA19: 208.4475209 | AB19: 232.4113962 | AC19: 258.3925679 | AD19: 286.5508823 | AE19: 317.0586677 | AF19: 350.1017052 | AG19: 385.8802752 | AH19: 424.6102854 | AI19: 466.5244865 | AJ19: 511.8737817 | AK19: 560.9286389 | AL19: 613.9806121 | AM19: 671.3439812 | AN19: 0 | AO19: 0 | AP19: 0 | AQ19: 0 | AR19: 0 | AS19: 0 | AT19: 0 | AU19: 0 | AV19: 0 | AW19: 0 | AX19: 0 | AY19: 0 | AZ19: 0 | BA19: 0 | BB19: 0 | BC19: 0 | BD19: 0 | BE19: 0 | BF19: 0 | BG19: 0 | BH19: 0 | BI19: 0 | BJ19: 0 | BK19: 0 | BL19: 0 | BM19: 0 | BN19: 0 | BO19: 0 | BP19: 0 | BQ19: 0 | BR19: 0 | BS19: 0 | BT19: 0 | BU19: 0 | BV19: =BV18*$F$19*BV5 -> 0 | BW19: 0 | BX19: 0 | BY19: 0 | BZ19: 0 | CA19: 0 | CB19: 0 | CC19: 0 | CD19: 0 | CE19: 0 | CF19: 0 | CG19: 0 | CH19: 0 | CI19: 0 | CJ19: 0 | CK19: 0 | CL19: 0 | CM19: 0 | CN19: 0 | CO19: 0 | CP19: 0 | CQ19: 0 | CR19: 0 | CS19: 0 | CT19: 0 | CU19: 0 | CV19: 0 | CW19: 0 | CX19: 0 | CY19: 0 | CZ19: 0 | DA19: 0 | DB19: 0 | DC19: 0 | DD19: 0 | DE19: 0 | DF19: 0 | DG19: 0 | DH19: 0 | DI19: 0 | DJ19: 0 | DK19: 0 | DL19: 0 | DM19: 0 | DN19: 0 | DO19: 0 | DP19: 0 | DQ19: 0 | DR19: 0 | DS19: 0 | DT19: 0 | DU19: 0 | DV19: 0 | DW19: 0 | DX19: 0
C20: Add: Dividends | E20: Euro | I20: =I14 -> 0 | J20: =J14 -> 71.4 | K20: 72.828 | L20: 74.28456 | M20: 75.7702512 | N20: 77.28565622 | O20: 78.83136935 | P20: 80.40799674 | Q20: 82.01615667 | R20: 83.6564798 | S20: 85.3296094 | T20: 87.03620159 | U20: 88.77692562 | V20: 90.55246413 | W20: 92.36351341 | X20: 94.21078368 | Y20: 96.09499936 | Z20: 98.01689934 | AA20: 99.97723733 | AB20: 101.9767821 | AC20: 104.0163177 | AD20: 106.0966441 | AE20: 108.218577 | AF20: 110.3829485 | AG20: 112.5906075 | AH20: 114.8424196 | AI20: 117.139268 | AJ20: 119.4820534 | AK20: 121.8716944 | AL20: 124.3091283 | AM20: 126.7953109 | AN20: 0 | AO20: 0 | AP20: 0 | AQ20: 0 | AR20: 0 | AS20: 0 | AT20: 0 | AU20: 0 | AV20: 0 | AW20: 0 | AX20: 0 | AY20: 0 | AZ20: 0 | BA20: 0 | BB20: 0 | BC20: 0 | BD20: 0 | BE20: 0 | BF20: 0 | BG20: 0 | BH20: 0 | BI20: 0 | BJ20: 0 | BK20: 0 | BL20: 0 | BM20: 0 | BN20: 0 | BO20: 0 | BP20: 0 | BQ20: 0 | BR20: 0 | BS20: 0 | BT20: 0 | BU20: 0 | BV20: =BV14 -> 0 | BW20: 0 | BX20: 0 | BY20: 0 | BZ20: 0 | CA20: 0 | CB20: 0 | CC20: 0 | CD20: 0 | CE20: 0 | CF20: 0 | CG20: 0 | CH20: 0 | CI20: 0 | CJ20: 0 | CK20: 0 | CL20: 0 | CM20: 0 | CN20: 0 | CO20: 0 | CP20: 0 | CQ20: 0 | CR20: 0 | CS20: 0 | CT20: 0 | CU20: 0 | CV20: 0 | CW20: 0 | CX20: 0 | CY20: 0 | CZ20: 0 | DA20: 0 | DB20: 0 | DC20: 0 | DD20: 0 | DE20: 0 | DF20: 0 | DG20: 0 | DH20: 0 | DI20: 0 | DJ20: 0 | DK20: 0 | DL20: 0 | DM20: 0 | DN20: 0 | DO20: 0 | DP20: 0 | DQ20: 0 | DR20: 0 | DS20: 0 | DT20: 0 | DU20: 0 | DV20: 0 | DW20: 0 | DX20: 0
C21: Closing Balance | E21: Euro | I21: =SUM(I18:I20) -> 0 | J21: =SUM(J18:J20) -> 71.4 | K21: 149.7756114 | L21: 235.6973826 | M21: 329.7807638 | N21: 432.6896064 | O21: 545.1399362 | P21: 667.9040185 | Q21: 801.8147399 | R21: 947.7703312 | S21: 1106.739457 | T21: 1279.7667 | U21: 1467.978476 | V21: 1672.5894 | W21: 1894.90916 | X21: 2136.34991 | Y21: 2398.434251 | Z21: 2682.803827 | AA21: 2991.228585 | AB21: 3325.616764 | AC21: 3688.025649 | AD21: 4080.673175 | AE21: 4505.95042 | AF21: 4966.435074 | AG21: 5464.905956 | AH21: 6004.358661 | AI21: 6588.022416 | AJ21: 7219.378251 | AK21: 7902.178584 | AL21: 8640.468325 | AM21: 9438.607617 | AN21: 9438.607617 | AO21: 9438.607617 | AP21: 9438.607617 | AQ21: 9438.607617 | AR21: 9438.607617 | AS21: 9438.607617 | AT21: 9438.607617 | AU21: 9438.607617 | AV21: 9438.607617 | AW21: 9438.607617 | AX21: 9438.607617 | AY21: 9438.607617 | AZ21: 9438.607617 | BA21: 9438.607617 | BB21: 9438.607617 | BC21: 9438.607617 | BD21: 9438.607617 | BE21: 9438.607617 | BF21: 9438.607617 | BG21: 9438.607617 | BH21: 9438.607617 | BI21: 9438.607617 | BJ21: 9438.607617 | BK21: 9438.607617 | BL21: 9438.607617 | BM21: 9438.607617 | BN21: 9438.607617 | BO21: 9438.607617 | BP21: 9438.607617 | BQ21: 9438.607617 | BR21: 9438.607617 | BS21: 9438.607617 | BT21: 9438.607617 | BU21: 9438.607617 | BV21: =SUM(BV18:BV20) -> 9438.607617 | BW21: 9438.607617 | BX21: 9438.607617 | BY21: 9438.607617 | BZ21: 9438.607617 | CA21: 9438.607617 | CB21: 9438.607617 | CC21: 9438.607617 | CD21: 9438.607617 | CE21: 9438.607617 | CF21: 9438.607617 | CG21: 9438.607617 | CH21: 9438.607617 | CI21: 9438.607617 | CJ21: 9438.607617 | CK21: 9438.607617 | CL21: 9438.607617 | CM21: 9438.607617 | CN21: 9438.607617 | CO21: 9438.607617 | CP21: 9438.607617 | CQ21: 9438.607617 | CR21: 9438.607617 | CS21: 9438.607617 | CT21: 9438.607617 | CU21: 9438.607617 | CV21: 9438.607617 | CW21: 9438.607617 | CX21: 9438.607617 | CY21: 9438.607617 | CZ21: 9438.607617 | DA21: 9438.607617 | DB21: 9438.607617 | DC21: 9438.607617 | DD21: 9438.607617 | DE21: 9438.607617 | DF21: 9438.607617 | DG21: 9438.607617 | DH21: 9438.607617 | DI21: 9438.607617 | DJ21: 9438.607617 | DK21: 9438.607617 | DL21: 9438.607617 | DM21: 9438.607617 | DN21: 9438.607617 | DO21: 9438.607617 | DP21: 9438.607617 | DQ21: 9438.607617 | DR21: 9438.607617 | DS21: 9438.607617 | DT21: 9438.607617 | DU21: 9438.607617 | DV21: 9438.607617 | DW21: 9438.607617 | DX21: 9438.607617
B23: Debt Structuring
C25: Senior Debt
D26: Tenure of Debt | E26: Years | F26: 22
D27: Interest Rate | E27: % p.a. | F27: 0.045
D28: DSCR for Sizing | E28: x | F28: 1.5
D30: Flag for Tenure | E30: Flag | F30: =F26 -> 22 | I30: =AND(NOT(I4),I3<=$F$30) -> FALSE | J30: TRUE | K30: TRUE | L30: TRUE | M30: TRUE | N30: TRUE | O30: TRUE | P30: TRUE | Q30: TRUE | R30: TRUE | S30: TRUE | T30: TRUE | U30: TRUE | V30: TRUE | W30: TRUE | X30: TRUE | Y30: TRUE | Z30: TRUE | AA30: TRUE | AB30: TRUE | AC30: TRUE | AD30: TRUE | AE30: FALSE | AF30: FALSE | AG30: FALSE | AH30: FALSE | AI30: FALSE | AJ30: FALSE | AK30: FALSE | AL30: FALSE | AM30: FALSE | AN30: FALSE | AO30: =AND(NOT(AO4),AO3<=$F$30) -> FALSE | AP30: FALSE | AQ30: FALSE | AR30: FALSE | AS30: FALSE | AT30: FALSE | AU30: FALSE | AV30: FALSE | AW30: FALSE | AX30: FALSE | AY30: FALSE | AZ30: FALSE | BA30: FALSE | BB30: FALSE | BC30: FALSE | BD30: FALSE | BE30: FALSE | BF30: FALSE | BG30: FALSE | BH30: FALSE | BI30: FALSE | BJ30: FALSE | BK30: FALSE | BL30: FALSE | BM30: FALSE | BN30: FALSE | BO30: FALSE | BP30: FALSE | BQ30: FALSE | BR30: FALSE | BS30: FALSE | BT30: FALSE | BU30: =AND(NOT(BU4),BU3<=$F$30) -> FALSE | BV30: FALSE | BW30: FALSE | BX30: FALSE | BY30: FALSE | BZ30: FALSE | CA30: FALSE | CB30: FALSE | CC30: FALSE | CD30: FALSE | CE30: FALSE | CF30: FALSE | CG30: FALSE | CH30: FALSE | CI30: FALSE | CJ30: FALSE | CK30: FALSE | CL30: FALSE | CM30: FALSE | CN30: FALSE | CO30: FALSE | CP30: FALSE | CQ30: FALSE | CR30: FALSE | CS30: FALSE | CT30: FALSE | CU30: FALSE | CV30: FALSE | CW30: FALSE | CX30: FALSE | CY30: FALSE | CZ30: FALSE | DA30: =AND(NOT(DA4),DA3<=$F$30) -> FALSE | DB30: FALSE | DC30: FALSE | DD30: FALSE | DE30: FALSE | DF30: FALSE | DG30: FALSE | DH30: FALSE | DI30: FALSE | DJ30: FALSE | DK30: FALSE | DL30: FALSE | DM30: FALSE | DN30: FALSE | DO30: FALSE | DP30: FALSE | DQ30: FALSE | DR30: FALSE | DS30: FALSE | DT30: FALSE | DU30: FALSE | DV30: FALSE | DW30: FALSE | DX30: FALSE
D31: CFADS for Tenure | E31: Euro | I31: =IF(I30,I14) -> FALSE | J31: 71.4 | K31: 72.828 | L31: 74.28456 | M31: 75.7702512 | N31: 77.28565622 | O31: 78.83136935 | P31: 80.40799674 | Q31: 82.01615667 | R31: 83.6564798 | S31: 85.3296094 | T31: 87.03620159 | U31: 88.77692562 | V31: 90.55246413 | W31: 92.36351341 | X31: 94.21078368 | Y31: 96.09499936 | Z31: 98.01689934 | AA31: 99.97723733 | AB31: 101.9767821 | AC31: 104.0163177 | AD31: 106.0966441 | AE31: FALSE | AF31: FALSE | AG31: FALSE | AH31: FALSE | AI31: FALSE | AJ31: FALSE | AK31: FALSE | AL31: FALSE | AM31: FALSE | AN31: FALSE | AO31: =IF(AO30,AO14) -> FALSE | AP31: FALSE | AQ31: FALSE | AR31: FALSE | AS31: FALSE | AT31: FALSE | AU31: FALSE | AV31: FALSE | AW31: FALSE | AX31: FALSE | AY31: FALSE | AZ31: FALSE | BA31: FALSE | BB31: FALSE | BC31: FALSE | BD31: FALSE | BE31: FALSE | BF31: FALSE | BG31: FALSE | BH31: FALSE | BI31: FALSE | BJ31: FALSE | BK31: FALSE | BL31: FALSE | BM31: FALSE | BN31: FALSE | BO31: FALSE | BP31: FALSE | BQ31: FALSE | BR31: FALSE | BS31: FALSE | BT31: FALSE | BU31: =IF(BU30,BU14) -> FALSE | BV31: FALSE | BW31: FALSE | BX31: FALSE | BY31: FALSE | BZ31: FALSE | CA31: FALSE | CB31: FALSE | CC31: FALSE | CD31: FALSE | CE31: FALSE | CF31: FALSE | CG31: FALSE | CH31: FALSE | CI31: FALSE | CJ31: FALSE | CK31: FALSE | CL31: FALSE | CM31: FALSE | CN31: FALSE | CO31: FALSE | CP31: FALSE | CQ31: FALSE | CR31: FALSE | CS31: FALSE | CT31: FALSE | CU31: FALSE | CV31: FALSE | CW31: FALSE | CX31: FALSE | CY31: FALSE | CZ31: FALSE | DA31: =IF(DA30,DA14) -> FALSE | DB31: FALSE | DC31: FALSE | DD31: FALSE | DE31: FALSE | DF31: FALSE | DG31: FALSE | DH31: FALSE | DI31: FALSE | DJ31: FALSE | DK31: FALSE | DL31: FALSE | DM31: FALSE | DN31: FALSE | DO31: FALSE | DP31: FALSE | DQ31: FALSE | DR31: FALSE | DS31: FALSE | DT31: FALSE | DU31: FALSE | DV31: FALSE | DW31: FALSE | DX31: FALSE
D32: Target Debt Service =CFADS/DSCR | E32: Euro | F32: =F28 -> 1.5 | I32: =IF(I30,I31/$F$32) -> FALSE | J32: =IF(J30,J31/$F$32) -> 47.6 | K32: 48.552 | L32: 49.52304 | M32: 50.5135008 | N32: 51.52377082 | O32: 52.55424623 | P32: 53.60533116 | Q32: 54.67743778 | R32: 55.77098654 | S32: 56.88640627 | T32: 58.02413439 | U32: 59.18461708 | V32: 60.36830942 | W32: 61.57567561 | X32: 62.80718912 | Y32: 64.0633329 | Z32: 65.34459956 | AA32: 66.65149155 | AB32: 67.98452138 | AC32: 69.34421181 | AD32: 70.73109605 | AE32: FALSE | AF32: FALSE | AG32: FALSE | AH32: FALSE | AI32: FALSE | AJ32: FALSE | AK32: FALSE | AL32: FALSE | AM32: FALSE | AN32: FALSE | AO32: FALSE | AP32: FALSE | AQ32: FALSE | AR32: FALSE | AS32: FALSE | AT32: FALSE | AU32: FALSE | AV32: FALSE | AW32: FALSE | AX32: FALSE | AY32: FALSE | AZ32: FALSE | BA32: FALSE | BB32: FALSE | BC32: FALSE | BD32: FALSE | BE32: FALSE | BF32: FALSE | BG32: FALSE | BH32: FALSE | BI32: FALSE | BJ32: FALSE | BK32: FALSE | BL32: FALSE | BM32: FALSE | BN32: FALSE | BO32: FALSE | BP32: FALSE | BQ32: FALSE | BR32: FALSE | BS32: FALSE | BT32: FALSE | BU32: FALSE | BV32: =IF(BV30,BV31/$F$32) -> FALSE | BW32: FALSE | BX32: FALSE | BY32: FALSE | BZ32: FALSE | CA32: FALSE | CB32: FALSE | CC32: FALSE | CD32: FALSE | CE32: FALSE | CF32: FALSE | CG32: FALSE | CH32: FALSE | CI32: FALSE | CJ32: FALSE | CK32: FALSE | CL32: FALSE | CM32: FALSE | CN32: FALSE | CO32: FALSE | CP32: FALSE | CQ32: FALSE | CR32: FALSE | CS32: FALSE | CT32: FALSE | CU32: FALSE | CV32: FALSE | CW32: FALSE | CX32: FALSE | CY32: FALSE | CZ32: FALSE | DA32: FALSE | DB32: FALSE | DC32: FALSE | DD32: FALSE | DE32: FALSE | DF32: FALSE | DG32: FALSE | DH32: FALSE | DI32: FALSE | DJ32: FALSE | DK32: FALSE | DL32: FALSE | DM32: FALSE | DN32: FALSE | DO32: FALSE | DP32: FALSE | DQ32: FALSE | DR32: FALSE | DS32: FALSE | DT32: FALSE | DU32: FALSE | DV32: FALSE | DW32: FALSE | DX32: FALSE
D33: PV of Debt =Debt | E33: Euro | F33: =NPV(F27,I32:DX32) -> 758.9394521 | G33: =F33/F12 -> 0.7589394521
D35: Opening Balance | E35: Euro | I35: =G38 -> 0 | J35: =I38 -> 758.9394521 | K35: 745.4917275 | L35: 730.4868552 | M35: 713.8357237 | N35: 695.4448305 | O35: 675.216077 | P35: 653.0465543 | Q35: 628.828318 | R35: 602.4481546 | S35: 573.787335 | T35: 542.7213588 | U35: 509.1196856 | V35: 472.8454543 | W35: 433.7551904 | X35: 391.6984983 | Y35: 346.5177416 | Z35: 298.0477071 | AA35: 246.1152543 | AB35: 190.5389492 | AC35: 131.1286806 | AD35: 67.68525938 | AE35: 1.108446668e-12 | AF35: 1.158326768e-12 | AG35: 1.210451472e-12 | AH35: 1.264921789e-12 | AI35: 1.321843269e-12 | AJ35: 1.381326216e-12 | AK35: 1.443485896e-12 | AL35: 1.508442761e-12 | AM35: 1.576322686e-12 | AN35: 1.647257206e-12 | AO35: 1.721383781e-12 | AP35: 1.798846051e-12 | AQ35: 1.879794123e-12 | AR35: 1.964384859e-12 | AS35: 2.052782177e-12 | AT35: 2.145157375e-12 | AU35: 2.241689457e-12 | AV35: 2.342565483e-12 | AW35: 2.447980929e-12 | AX35: 2.558140071e-12 | AY35: 2.673256374e-12 | AZ35: 2.793552911e-12 | BA35: 2.919262792e-12 | BB35: 3.050629618e-12 | BC35: 3.187907951e-12 | BD35: 3.331363809e-12 | BE35: 3.48127518e-12 | BF35: 3.637932563e-12 | BG35: 3.801639528e-12 | BH35: 3.972713307e-12 | BI35: 4.151485406e-12 | BJ35: 4.338302249e-12 | BK35: 4.533525851e-12 | BL35: 4.737534514e-12 | BM35: 4.950723567e-12 | BN35: 5.173506127e-12 | BO35: 5.406313903e-12 | BP35: 5.649598029e-12 | BQ35: 5.90382994e-12 | BR35: 6.169502287e-12 | BS35: 6.44712989e-12 | BT35: 6.737250735e-12 | BU35: 7.040427018e-12 | BV35: =BU38 -> 7.357246234e-12 | BW35: 7.688322315e-12 | BX35: 8.034296819e-12 | BY35: 8.395840176e-12 | BZ35: 8.773652984e-12 | CA35: 9.168467368e-12 | CB35: 9.5810484e-12 | CC35: 1.001219558e-11 | CD35: 1.046274438e-11 | CE35: 1.093356788e-11 | CF35: 1.142557843e-11 | CG35: 1.193972946e-11 | CH35: 1.247701729e-11 | CI35: 1.303848306e-11 | CJ35: 1.36252148e-11 | CK35: 1.423834947e-11 | CL35: 1.487907519e-11 | CM35: 1.554863358e-11 | CN35: 1.624832209e-11 | CO35: 1.697949658e-11 | CP35: 1.774357393e-11 | CQ35: 1.854203475e-11 | CR35: 1.937642632e-11 | CS35: 2.02483655e-11 | CT35: 2.115954195e-11 | CU35: 2.211172134e-11 | CV35: 2.31067488e-11 | CW35: 2.414655249e-11 | CX35: 2.523314736e-11 | CY35: 2.636863899e-11 | CZ35: 2.755522774e-11 | DA35: 2.879521299e-11 | DB35: 3.009099757e-11 | DC35: 3.144509247e-11 | DD35: 3.286012163e-11 | DE35: 3.43388271e-11 | DF35: 3.588407432e-11 | DG35: 3.749885766e-11 | DH35: 3.918630626e-11 | DI35: 4.094969004e-11 | DJ35: 4.279242609e-11 | DK35: 4.471808527e-11 | DL35: 4.67303991e-11 | DM35: 4.883326706e-11 | DN35: 5.103076408e-11 | DO35: 5.332714846e-11 | DP35: 5.572687014e-11 | DQ35: 5.82345793e-11 | DR35: 6.085513537e-11 | DS35: 6.359361646e-11 | DT35: 6.64553292e-11 | DU35: 6.944581902e-11 | DV35: 7.257088087e-11 | DW35: 7.583657051e-11 | DX35: 7.924921618e-11
D36: Add: Debt Draws | E36: Euro | F36: =F33 -> 758.9394521 | I36: =$F$36*I4 -> 758.9394521 | J36: 0 | K36: 0 | L36: 0 | M36: 0 | N36: 0 | O36: 0 | P36: 0 | Q36: 0 | R36: 0 | S36: 0 | T36: 0 | U36: 0 | V36: 0 | W36: 0 | X36: 0 | Y36: 0 | Z36: 0 | AA36: 0 | AB36: 0 | AC36: 0 | AD36: 0 | AE36: 0 | AF36: 0 | AG36: 0 | AH36: 0 | AI36: 0 | AJ36: 0 | AK36: 0 | AL36: 0 | AM36: 0 | AN36: 0 | AO36: =$F$36*AO4 -> 0 | AP36: 0 | AQ36: 0 | AR36: 0 | AS36: 0 | AT36: 0 | AU36: 0 | AV36: 0 | AW36: 0 | AX36: 0 | AY36: 0 | AZ36: 0 | BA36: 0 | BB36: 0 | BC36: 0 | BD36: 0 | BE36: 0 | BF36: 0 | BG36: 0 | BH36: 0 | BI36: 0 | BJ36: 0 | BK36: 0 | BL36: 0 | BM36: 0 | BN36: 0 | BO36: 0 | BP36: 0 | BQ36: 0 | BR36: 0 | BS36: 0 | BT36: 0 | BU36: =$F$36*BU4 -> 0 | BV36: 0 | BW36: 0 | BX36: 0 | BY36: 0 | BZ36: 0 | CA36: 0 | CB36: 0 | CC36: 0 | CD36: 0 | CE36: 0 | CF36: 0 | CG36: 0 | CH36: 0 | CI36: 0 | CJ36: 0 | CK36: 0 | CL36: 0 | CM36: 0 | CN36: 0 | CO36: 0 | CP36: 0 | CQ36: 0 | CR36: 0 | CS36: 0 | CT36: 0 | CU36: 0 | CV36: 0 | CW36: 0 | CX36: 0 | CY36: 0 | CZ36: 0 | DA36: =$F$36*DA4 -> 0 | DB36: 0 | DC36: 0 | DD36: 0 | DE36: 0 | DF36: 0 | DG36: 0 | DH36: 0 | DI36: 0 | DJ36: 0 | DK36: 0 | DL36: 0 | DM36: 0 | DN36: 0 | DO36: 0 | DP36: 0 | DQ36: 0 | DR36: 0 | DS36: 0 | DT36: 0 | DU36: 0 | DV36: 0 | DW36: 0 | DX36: 0
D37: Less: Debt Repayment =DS - Int | E37: Euro | I37: =I32-I39 -> 0 | J37: =J32-J39 -> 13.44772465 | K37: 15.00487226 | L37: 16.65113152 | M37: 18.39089323 | N37: 20.22875344 | O37: 22.16952277 | P37: 24.21823622 | Q37: 26.38016347 | R37: 28.66081958 | S37: 31.06597619 | T37: 33.60167325 | U37: 36.27423123 | V37: 39.09026398 | W37: 42.05669204 | X37: 45.1807567 | Y37: 48.47003453 | Z37: 51.93245274 | AA37: 55.57630511 | AB37: 59.41026867 | AC37: 63.44342119 | AD37: 67.68525938 | AE37: -4.988010005e-14 | AF37: -5.212470455e-14 | AG37: -5.447031626e-14 | AH37: -5.692148049e-14 | AI37: -5.948294711e-14 | AJ37: -6.215967973e-14 | AK37: -6.495686532e-14 | AL37: -6.787992426e-14 | AM37: -7.093452085e-14 | AN37: -7.412657429e-14 | AO37: -7.746227013e-14 | AP37: -8.094807229e-14 | AQ37: -8.459073554e-14 | AR37: -8.839731864e-14 | AS37: -9.237519798e-14 | AT37: -9.653208189e-14 | AU37: -1.008760256e-13 | AV37: -1.054154467e-13 | AW37: -1.101591418e-13 | AX37: -1.151163032e-13 | AY37: -1.202965369e-13 | AZ37: -1.25709881e-13 | BA37: -1.313668257e-13 | BB37: -1.372783328e-13 | BC37: -1.434558578e-13 | BD37: -1.499113714e-13 | BE37: -1.566573831e-13 | BF37: -1.637069653e-13 | BG37: -1.710737788e-13 | BH37: -1.787720988e-13 | BI37: -1.868168433e-13 | BJ37: -1.952236012e-13 | BK37: -2.040086633e-13 | BL37: -2.131890531e-13 | BM37: -2.227825605e-13 | BN37: -2.328077757e-13 | BO37: -2.432841256e-13 | BP37: -2.542319113e-13 | BQ37: -2.656723473e-13 | BR37: -2.776276029e-13 | BS37: -2.901208451e-13 | BT37: -3.031762831e-13 | BU37: -3.168192158e-13 | BV37: =BV32-BV39 -> -3.310760805e-13 | BW37: -3.459745042e-13 | BX37: -3.615433569e-13 | BY37: -3.778128079e-13 | BZ37: -3.948143843e-13 | CA37: -4.125810316e-13 | CB37: -4.31147178e-13 | CC37: -4.50548801e-13 | CD37: -4.70823497e-13 | CE37: -4.920105544e-13 | CF37: -5.141510294e-13 | CG37: -5.372878257e-13 | CH37: -5.614657778e-13 | CI37: -5.867317378e-13 | CJ37: -6.13134666e-13 | CK37: -6.40725726e-13 | CL37: -6.695583837e-13 | CM37: -6.996885109e-13 | CN37: -7.311744939e-13 | CO37: -7.640773462e-13 | CP37: -7.984608267e-13 | CQ37: -8.343915639e-13 | CR37: -8.719391843e-13 | CS37: -9.111764476e-13 | CT37: -9.521793878e-13 | CU37: -9.950274602e-13 | CV37: -1.039803696e-12 | CW37: -1.086594862e-12 | CX37: -1.135491631e-12 | CY37: -1.186588754e-12 | CZ37: -1.239985248e-12 | DA37: -1.295784585e-12 | DB37: -1.354094891e-12 | DC37: -1.415029161e-12 | DD37: -1.478705473e-12 | DE37: -1.545247219e-12 | DF37: -1.614783344e-12 | DG37: -1.687448595e-12 | DH37: -1.763383782e-12 | DI37: -1.842736052e-12 | DJ37: -1.925659174e-12 | DK37: -2.012313837e-12 | DL37: -2.10286796e-12 | DM37: -2.197497018e-12 | DN37: -2.296384384e-12 | DO37: -2.399721681e-12 | DP37: -2.507709157e-12 | DQ37: -2.620556069e-12 | DR37: -2.738481092e-12 | DS37: -2.861712741e-12 | DT37: -2.990489814e-12 | DU37: -3.125061856e-12 | DV37: -3.265689639e-12 | DW37: -3.412645673e-12 | DX37: -3.566214728e-12
D38: Closing Balance | E38: Euro | I38: =I35+I36-I37 -> 758.9394521 | J38: =J35+J36-J37 -> 745.4917275 | K38: 730.4868552 | L38: 713.8357237 | M38: 695.4448305 | N38: 675.216077 | O38: 653.0465543 | P38: 628.828318 | Q38: 602.4481546 | R38: 573.787335 | S38: 542.7213588 | T38: 509.1196856 | U38: 472.8454543 | V38: 433.7551904 | W38: 391.6984983 | X38: 346.5177416 | Y38: 298.0477071 | Z38: 246.1152543 | AA38: 190.5389492 | AB38: 131.1286806 | AC38: 67.68525938 | AD38: 1.108446668e-12 | AE38: 1.158326768e-12 | AF38: 1.210451472e-12 | AG38: 1.264921789e-12 | AH38: 1.321843269e-12 | AI38: 1.381326216e-12 | AJ38: 1.443485896e-12 | AK38: 1.508442761e-12 | AL38: 1.576322686e-12 | AM38: 1.647257206e-12 | AN38: 1.721383781e-12 | AO38: 1.798846051e-12 | AP38: 1.879794123e-12 | AQ38: 1.964384859e-12 | AR38: 2.052782177e-12 | AS38: 2.145157375e-12 | AT38: 2.241689457e-12 | AU38: 2.342565483e-12 | AV38: 2.447980929e-12 | AW38: 2.558140071e-12 | AX38: 2.673256374e-12 | AY38: 2.793552911e-12 | AZ38: 2.919262792e-12 | BA38: 3.050629618e-12 | BB38: 3.187907951e-12 | BC38: 3.331363809e-12 | BD38: 3.48127518e-12 | BE38: 3.637932563e-12 | BF38: 3.801639528e-12 | BG38: 3.972713307e-12 | BH38: 4.151485406e-12 | BI38: 4.338302249e-12 | BJ38: 4.533525851e-12 | BK38: 4.737534514e-12 | BL38: 4.950723567e-12 | BM38: 5.173506127e-12 | BN38: 5.406313903e-12 | BO38: 5.649598029e-12 | BP38: 5.90382994e-12 | BQ38: 6.169502287e-12 | BR38: 6.44712989e-12 | BS38: 6.737250735e-12 | BT38: 7.040427018e-12 | BU38: 7.357246234e-12 | BV38: =BV35+BV36-BV37 -> 7.688322315e-12 | BW38: 8.034296819e-12 | BX38: 8.395840176e-12 | BY38: 8.773652984e-12 | BZ38: 9.168467368e-12 | CA38: 9.5810484e-12 | CB38: 1.001219558e-11 | CC38: 1.046274438e-11 | CD38: 1.093356788e-11 | CE38: 1.142557843e-11 | CF38: 1.193972946e-11 | CG38: 1.247701729e-11 | CH38: 1.303848306e-11 | CI38: 1.36252148e-11 | CJ38: 1.423834947e-11 | CK38: 1.487907519e-11 | CL38: 1.554863358e-11 | CM38: 1.624832209e-11 | CN38: 1.697949658e-11 | CO38: 1.774357393e-11 | CP38: 1.854203475e-11 | CQ38: 1.937642632e-11 | CR38: 2.02483655e-11 | CS38: 2.115954195e-11 | CT38: 2.211172134e-11 | CU38: 2.31067488e-11 | CV38: 2.414655249e-11 | CW38: 2.523314736e-11 | CX38: 2.636863899e-11 | CY38: 2.755522774e-11 | CZ38: 2.879521299e-11 | DA38: 3.009099757e-11 | DB38: 3.144509247e-11 | DC38: 3.286012163e-11 | DD38: 3.43388271e-11 | DE38: 3.588407432e-11 | DF38: 3.749885766e-11 | DG38: 3.918630626e-11 | DH38: 4.094969004e-11 | DI38: 4.279242609e-11 | DJ38: 4.471808527e-11 | DK38: 4.67303991e-11 | DL38: 4.883326706e-11 | DM38: 5.103076408e-11 | DN38: 5.332714846e-11 | DO38: 5.572687014e-11 | DP38: 5.82345793e-11 | DQ38: 6.085513537e-11 | DR38: 6.359361646e-11 | DS38: 6.64553292e-11 | DT38: 6.944581902e-11 | DU38: 7.257088087e-11 | DV38: 7.583657051e-11 | DW38: 7.924921618e-11 | DX38: 8.281543091e-11
D39: Interest Opening Balance x Int Rate | E39: Euro | F39: =F27 -> 0.045 | I39: =I35*$F$39 -> 0 | J39: =J35*$F$39 -> 34.15227535 | K39: 33.54712774 | L39: 32.87190848 | M39: 32.12260757 | N39: 31.29501737 | O39: 30.38472347 | P39: 29.38709494 | Q39: 28.29727431 | R39: 27.11016696 | S39: 25.82043007 | T39: 24.42246115 | U39: 22.91038585 | V39: 21.27804545 | W39: 19.51898357 | X39: 17.62643242 | Y39: 15.59329837 | Z39: 13.41214682 | AA39: 11.07518645 | AB39: 8.574252715 | AC39: 5.900790625 | AD39: 3.045836672 | AE39: 4.988010005e-14 | AF39: 5.212470455e-14 | AG39: 5.447031626e-14 | AH39: 5.692148049e-14 | AI39: 5.948294711e-14 | AJ39: 6.215967973e-14 | AK39: 6.495686532e-14 | AL39: 6.787992426e-14 | AM39: 7.093452085e-14 | AN39: 7.412657429e-14 | AO39: 7.746227013e-14 | AP39: 8.094807229e-14 | AQ39: 8.459073554e-14 | AR39: 8.839731864e-14 | AS39: 9.237519798e-14 | AT39: 9.653208189e-14 | AU39: 1.008760256e-13 | AV39: 1.054154467e-13 | AW39: 1.101591418e-13 | AX39: 1.151163032e-13 | AY39: 1.202965369e-13 | AZ39: 1.25709881e-13 | BA39: 1.313668257e-13 | BB39: 1.372783328e-13 | BC39: 1.434558578e-13 | BD39: 1.499113714e-13 | BE39: 1.566573831e-13 | BF39: 1.637069653e-13 | BG39: 1.710737788e-13 | BH39: 1.787720988e-13 | BI39: 1.868168433e-13 | BJ39: 1.952236012e-13 | BK39: 2.040086633e-13 | BL39: 2.131890531e-13 | BM39: 2.227825605e-13 | BN39: 2.328077757e-13 | BO39: 2.432841256e-13 | BP39: 2.542319113e-13 | BQ39: 2.656723473e-13 | BR39: 2.776276029e-13 | BS39: 2.901208451e-13 | BT39: 3.031762831e-13 | BU39: 3.168192158e-13 | BV39: =BV35*$F$39 -> 3.310760805e-13 | BW39: 3.459745042e-13 | BX39: 3.615433569e-13 | BY39: 3.778128079e-13 | BZ39: 3.948143843e-13 | CA39: 4.125810316e-13 | CB39: 4.31147178e-13 | CC39: 4.50548801e-13 | CD39: 4.70823497e-13 | CE39: 4.920105544e-13 | CF39: 5.141510294e-13 | CG39: 5.372878257e-13 | CH39: 5.614657778e-13 | CI39: 5.867317378e-13 | CJ39: 6.13134666e-13 | CK39: 6.40725726e-13 | CL39: 6.695583837e-13 | CM39: 6.996885109e-13 | CN39: 7.311744939e-13 | CO39: 7.640773462e-13 | CP39: 7.984608267e-13 | CQ39: 8.343915639e-13 | CR39: 8.719391843e-13 | CS39: 9.111764476e-13 | CT39: 9.521793878e-13 | CU39: 9.950274602e-13 | CV39: 1.039803696e-12 | CW39: 1.086594862e-12 | CX39: 1.135491631e-12 | CY39: 1.186588754e-12 | CZ39: 1.239985248e-12 | DA39: 1.295784585e-12 | DB39: 1.354094891e-12 | DC39: 1.415029161e-12 | DD39: 1.478705473e-12 | DE39: 1.545247219e-12 | DF39: 1.614783344e-12 | DG39: 1.687448595e-12 | DH39: 1.763383782e-12 | DI39: 1.842736052e-12 | DJ39: 1.925659174e-12 | DK39: 2.012313837e-12 | DL39: 2.10286796e-12 | DM39: 2.197497018e-12 | DN39: 2.296384384e-12 | DO39: 2.399721681e-12 | DP39: 2.507709157e-12 | DQ39: 2.620556069e-12 | DR39: 2.738481092e-12 | DS39: 2.861712741e-12 | DT39: 2.990489814e-12 | DU39: 3.125061856e-12 | DV39: 3.265689639e-12 | DW39: 3.412645673e-12 | DX39: 3.566214728e-12
D42: Tenure | E42: Years | F42: 27
D43: Aggregate DSCR | E43: x | F43: 1.5
D44: Interest Rate | E44: % | F44: 0.065
B46: Cash Flow Statement
C47: Cash Before COD - Uses and Source
D48: Uses
D49: Cap Exp | E49: Euro | I49: =I12 -> 1000 | J49: 0 | K49: 0 | L49: 0 | M49: 0 | N49: 0 | O49: 0 | P49: 0 | Q49: 0 | R49: 0 | S49: 0 | T49: 0 | U49: 0 | V49: 0 | W49: 0 | X49: 0 | Y49: 0 | Z49: 0 | AA49: 0 | AB49: 0 | AC49: 0 | AD49: 0 | AE49: 0 | AF49: 0 | AG49: 0 | AH49: 0 | AI49: 0 | AJ49: 0 | AK49: 0 | AL49: 0 | AM49: 0 | AN49: 0 | AO49: =AO12 -> 0 | AP49: 0 | AQ49: 0 | AR49: 0 | AS49: 0 | AT49: 0 | AU49: 0 | AV49: 0 | AW49: 0 | AX49: 0 | AY49: 0 | AZ49: 0 | BA49: 0 | BB49: 0 | BC49: 0 | BD49: 0 | BE49: 0 | BF49: 0 | BG49: 0 | BH49: 0 | BI49: 0 | BJ49: 0 | BK49: 0 | BL49: 0 | BM49: 0 | BN49: 0 | BO49: 0 | BP49: 0 | BQ49: 0 | BR49: 0 | BS49: 0 | BT49: 0 | BU49: =BU12 -> 0 | BV49: 0 | BW49: 0 | BX49: 0 | BY49: 0 | BZ49: 0 | CA49: 0 | CB49: 0 | CC49: 0 | CD49: 0 | CE49: 0 | CF49: 0 | CG49: 0 | CH49: 0 | CI49: 0 | CJ49: 0 | CK49: 0 | CL49: 0 | CM49: 0 | CN49: 0 | CO49: 0 | CP49: 0 | CQ49: 0 | CR49: 0 | CS49: 0 | CT49: 0 | CU49: 0 | CV49: 0 | CW49: 0 | CX49: 0 | CY49: 0 | CZ49: 0 | DA49: =DA12 -> 0 | DB49: 0 | DC49: 0 | DD49: 0 | DE49: 0 | DF49: 0 | DG49: 0 | DH49: 0 | DI49: 0 | DJ49: 0 | DK49: 0 | DL49: 0 | DM49: 0 | DN49: 0 | DO49: 0 | DP49: 0 | DQ49: 0 | DR49: 0 | DS49: 0 | DT49: 0 | DU49: 0 | DV49: 0 | DW49: 0 | DX49: 0
D51: Source
D52: Debt | E52: Euro | G52: =I52/I49 -> 0.7589394521 | I52: =I36 -> 758.9394521 | J52: 0 | K52: 0 | L52: 0 | M52: 0 | N52: 0 | O52: 0 | P52: 0 | Q52: 0 | R52: 0 | S52: 0 | T52: 0 | U52: 0 | V52: 0 | W52: 0 | X52: 0 | Y52: 0 | Z52: 0 | AA52: 0 | AB52: 0 | AC52: 0 | AD52: 0 | AE52: 0 | AF52: 0 | AG52: 0 | AH52: 0 | AI52: 0 | AJ52: 0 | AK52: 0 | AL52: 0 | AM52: 0 | AN52: 0 | AO52: =AO36 -> 0 | AP52: 0 | AQ52: 0 | AR52: 0 | AS52: 0 | AT52: 0 | AU52: 0 | AV52: 0 | AW52: 0 | AX52: 0 | AY52: 0 | AZ52: 0 | BA52: 0 | BB52: 0 | BC52: 0 | BD52: 0 | BE52: 0 | BF52: 0 | BG52: 0 | BH52: 0 | BI52: 0 | BJ52: 0 | BK52: 0 | BL52: 0 | BM52: 0 | BN52: 0 | BO52: 0 | BP52: 0 | BQ52: 0 | BR52: 0 | BS52: 0 | BT52: 0 | BU52: =BU36 -> 0 | BV52: 0 | BW52: 0 | BX52: 0 | BY52: 0 | BZ52: 0 | CA52: 0 | CB52: 0 | CC52: 0 | CD52: 0 | CE52: 0 | CF52: 0 | CG52: 0 | CH52: 0 | CI52: 0 | CJ52: 0 | CK52: 0 | CL52: 0 | CM52: 0 | CN52: 0 | CO52: 0 | CP52: 0 | CQ52: 0 | CR52: 0 | CS52: 0 | CT52: 0 | CU52: 0 | CV52: 0 | CW52: 0 | CX52: 0 | CY52: 0 | CZ52: 0 | DA52: =DA36 -> 0 | DB52: 0 | DC52: 0 | DD52: 0 | DE52: 0 | DF52: 0 | DG52: 0 | DH52: 0 | DI52: 0 | DJ52: 0 | DK52: 0 | DL52: 0 | DM52: 0 | DN52: 0 | DO52: 0 | DP52: 0 | DQ52: 0 | DR52: 0 | DS52: 0 | DT52: 0 | DU52: 0 | DV52: 0 | DW52: 0 | DX52: 0
D53: Subordinated Debt | E53: Euro
D54: Equity Investment | E54: Euro | I54: =I49-I52 -> 241.0605479 | J54: =J49-J52 -> 0 | K54: 0 | L54: 0 | M54: 0 | N54: 0 | O54: 0 | P54: 0 | Q54: 0 | R54: 0 | S54: 0 | T54: 0 | U54: 0 | V54: 0 | W54: 0 | X54: 0 | Y54: 0 | Z54: 0 | AA54: 0 | AB54: 0 | AC54: 0 | AD54: 0 | AE54: 0 | AF54: 0 | AG54: 0 | AH54: 0 | AI54: 0 | AJ54: 0 | AK54: 0 | AL54: 0 | AM54: 0 | AN54: 0 | AO54: 0 | AP54: 0 | AQ54: 0 | AR54: 0 | AS54: 0 | AT54: 0 | AU54: 0 | AV54: 0 | AW54: 0 | AX54: 0 | AY54: 0 | AZ54: 0 | BA54: 0 | BB54: 0 | BC54: 0 | BD54: 0 | BE54: 0 | BF54: 0 | BG54: 0 | BH54: 0 | BI54: 0 | BJ54: 0 | BK54: 0 | BL54: 0 | BM54: 0 | BN54: 0 | BO54: 0 | BP54: 0 | BQ54: 0 | BR54: 0 | BS54: 0 | BT54: 0 | BU54: 0 | BV54: =BV49-BV52 -> 0 | BW54: 0 | BX54: 0 | BY54: 0 | BZ54: 0 | CA54: 0 | CB54: 0 | CC54: 0 | CD54: 0 | CE54: 0 | CF54: 0 | CG54: 0 | CH54: 0 | CI54: 0 | CJ54: 0 | CK54: 0 | CL54: 0 | CM54: 0 | CN54: 0 | CO54: 0 | CP54: 0 | CQ54: 0 | CR54: 0 | CS54: 0 | CT54: 0 | CU54: 0 | CV54: 0 | CW54: 0 | CX54: 0 | CY54: 0 | CZ54: 0 | DA54: 0 | DB54: 0 | DC54: 0 | DD54: 0 | DE54: 0 | DF54: 0 | DG54: 0 | DH54: 0 | DI54: 0 | DJ54: 0 | DK54: 0 | DL54: 0 | DM54: 0 | DN54: 0 | DO54: 0 | DP54: 0 | DQ54: 0 | DR54: 0 | DS54: 0 | DT54: 0 | DU54: 0 | DV54: 0 | DW54: 0 | DX54: 0
D55: Total | I55: =SUM(I52:I54) -> 1000 | J55: =SUM(J52:J54) -> 0 | K55: 0 | L55: 0 | M55: 0 | N55: 0 | O55: 0 | P55: 0 | Q55: 0 | R55: 0 | S55: 0 | T55: 0 | U55: 0 | V55: 0 | W55: 0 | X55: 0 | Y55: 0 | Z55: 0 | AA55: 0 | AB55: 0 | AC55: 0 | AD55: 0 | AE55: 0 | AF55: 0 | AG55: 0 | AH55: 0 | AI55: 0 | AJ55: 0 | AK55: 0 | AL55: 0 | AM55: 0 | AN55: 0 | AO55: 0 | AP55: 0 | AQ55: 0 | AR55: 0 | AS55: 0 | AT55: 0 | AU55: 0 | AV55: 0 | AW55: 0 | AX55: 0 | AY55: 0 | AZ55: 0 | BA55: 0 | BB55: 0 | BC55: 0 | BD55: 0 | BE55: 0 | BF55: 0 | BG55: 0 | BH55: 0 | BI55: 0 | BJ55: 0 | BK55: 0 | BL55: 0 | BM55: 0 | BN55: 0 | BO55: 0 | BP55: 0 | BQ55: 0 | BR55: 0 | BS55: 0 | BT55: 0 | BU55: 0 | BV55: =SUM(BV52:BV54) -> 0 | BW55: 0 | BX55: 0 | BY55: 0 | BZ55: 0 | CA55: 0 | CB55: 0 | CC55: 0 | CD55: 0 | CE55: 0 | CF55: 0 | CG55: 0 | CH55: 0 | CI55: 0 | CJ55: 0 | CK55: 0 | CL55: 0 | CM55: 0 | CN55: 0 | CO55: 0 | CP55: 0 | CQ55: 0 | CR55: 0 | CS55: 0 | CT55: 0 | CU55: 0 | CV55: 0 | CW55: 0 | CX55: 0 | CY55: 0 | CZ55: 0 | DA55: 0 | DB55: 0 | DC55: 0 | DD55: 0 | DE55: 0 | DF55: 0 | DG55: 0 | DH55: 0 | DI55: 0 | DJ55: 0 | DK55: 0 | DL55: 0 | DM55: 0 | DN55: 0 | DO55: 0 | DP55: 0 | DQ55: 0 | DR55: 0 | DS55: 0 | DT55: 0 | DU55: 0 | DV55: 0 | DW55: 0 | DX55: 0
C57: Cash Flow After
D58: EBITDA | E58: Euro | I58: =I14 -> 0 | J58: 71.4 | K58: 72.828 | L58: 74.28456 | M58: 75.7702512 | N58: 77.28565622 | O58: 78.83136935 | P58: 80.40799674 | Q58: 82.01615667 | R58: 83.6564798 | S58: 85.3296094 | T58: 87.03620159 | U58: 88.77692562 | V58: 90.55246413 | W58: 92.36351341 | X58: 94.21078368 | Y58: 96.09499936 | Z58: 98.01689934 | AA58: 99.97723733 | AB58: 101.9767821 | AC58: 104.0163177 | AD58: 106.0966441 | AE58: 108.218577 | AF58: 110.3829485 | AG58: 112.5906075 | AH58: 114.8424196 | AI58: 117.139268 | AJ58: 119.4820534 | AK58: 121.8716944 | AL58: 124.3091283 | AM58: 126.7953109 | AN58: 0 | AO58: =AO14 -> 0 | AP58: 0 | AQ58: 0 | AR58: 0 | AS58: 0 | AT58: 0 | AU58: 0 | AV58: 0 | AW58: 0 | AX58: 0 | AY58: 0 | AZ58: 0 | BA58: 0 | BB58: 0 | BC58: 0 | BD58: 0 | BE58: 0 | BF58: 0 | BG58: 0 | BH58: 0 | BI58: 0 | BJ58: 0 | BK58: 0 | BL58: 0 | BM58: 0 | BN58: 0 | BO58: 0 | BP58: 0 | BQ58: 0 | BR58: 0 | BS58: 0 | BT58: 0 | BU58: =BU14 -> 0 | BV58: 0 | BW58: 0 | BX58: 0 | BY58: 0 | BZ58: 0 | CA58: 0 | CB58: 0 | CC58: 0 | CD58: 0 | CE58: 0 | CF58: 0 | CG58: 0 | CH58: 0 | CI58: 0 | CJ58: 0 | CK58: 0 | CL58: 0 | CM58: 0 | CN58: 0 | CO58: 0 | CP58: 0 | CQ58: 0 | CR58: 0 | CS58: 0 | CT58: 0 | CU58: 0 | CV58: 0 | CW58: 0 | CX58: 0 | CY58: 0 | CZ58: 0 | DA58: =DA14 -> 0 | DB58: 0 | DC58: 0 | DD58: 0 | DE58: 0 | DF58: 0 | DG58: 0 | DH58: 0 | DI58: 0 | DJ58: 0 | DK58: 0 | DL58: 0 | DM58: 0 | DN58: 0 | DO58: 0 | DP58: 0 | DQ58: 0 | DR58: 0 | DS58: 0 | DT58: 0 | DU58: 0 | DV58: 0 | DW58: 0 | DX58: 0
D59: Less: Interest - Senior | E59: Euro | I59: =I39 -> 0 | J59: 34.15227535 | K59: 33.54712774 | L59: 32.87190848 | M59: 32.12260757 | N59: 31.29501737 | O59: 30.38472347 | P59: 29.38709494 | Q59: 28.29727431 | R59: 27.11016696 | S59: 25.82043007 | T59: 24.42246115 | U59: 22.91038585 | V59: 21.27804545 | W59: 19.51898357 | X59: 17.62643242 | Y59: 15.59329837 | Z59: 13.41214682 | AA59: 11.07518645 | AB59: 8.574252715 | AC59: 5.900790625 | AD59: 3.045836672 | AE59: 4.988010005e-14 | AF59: 5.212470455e-14 | AG59: 5.447031626e-14 | AH59: 5.692148049e-14 | AI59: 5.948294711e-14 | AJ59: 6.215967973e-14 | AK59: 6.495686532e-14 | AL59: 6.787992426e-14 | AM59: 7.093452085e-14 | AN59: 7.412657429e-14 | AO59: =AO39 -> 7.746227013e-14 | AP59: 8.094807229e-14 | AQ59: 8.459073554e-14 | AR59: 8.839731864e-14 | AS59: 9.237519798e-14 | AT59: 9.653208189e-14 | AU59: 1.008760256e-13 | AV59: 1.054154467e-13 | AW59: 1.101591418e-13 | AX59: 1.151163032e-13 | AY59: 1.202965369e-13 | AZ59: 1.25709881e-13 | BA59: 1.313668257e-13 | BB59: 1.372783328e-13 | BC59: 1.434558578e-13 | BD59: 1.499113714e-13 | BE59: 1.566573831e-13 | BF59: 1.637069653e-13 | BG59: 1.710737788e-13 | BH59: 1.787720988e-13 | BI59: 1.868168433e-13 | BJ59: 1.952236012e-13 | BK59: 2.040086633e-13 | BL59: 2.131890531e-13 | BM59: 2.227825605e-13 | BN59: 2.328077757e-13 | BO59: 2.432841256e-13 | BP59: 2.542319113e-13 | BQ59: 2.656723473e-13 | BR59: 2.776276029e-13 | BS59: 2.901208451e-13 | BT59: 3.031762831e-13 | BU59: =BU39 -> 3.168192158e-13 | BV59: 3.310760805e-13 | BW59: 3.459745042e-13 | BX59: 3.615433569e-13 | BY59: 3.778128079e-13 | BZ59: 3.948143843e-13 | CA59: 4.125810316e-13 | CB59: 4.31147178e-13 | CC59: 4.50548801e-13 | CD59: 4.70823497e-13 | CE59: 4.920105544e-13 | CF59: 5.141510294e-13 | CG59: 5.372878257e-13 | CH59: 5.614657778e-13 | CI59: 5.867317378e-13 | CJ59: 6.13134666e-13 | CK59: 6.40725726e-13 | CL59: 6.695583837e-13 | CM59: 6.996885109e-13 | CN59: 7.311744939e-13 | CO59: 7.640773462e-13 | CP59: 7.984608267e-13 | CQ59: 8.343915639e-13 | CR59: 8.719391843e-13 | CS59: 9.111764476e-13 | CT59: 9.521793878e-13 | CU59: 9.950274602e-13 | CV59: 1.039803696e-12 | CW59: 1.086594862e-12 | CX59: 1.135491631e-12 | CY59: 1.186588754e-12 | CZ59: 1.239985248e-12 | DA59: =DA39 -> 1.295784585e-12 | DB59: 1.354094891e-12 | DC59: 1.415029161e-12 | DD59: 1.478705473e-12 | DE59: 1.545247219e-12 | DF59: 1.614783344e-12 | DG59: 1.687448595e-12 | DH59: 1.763383782e-12 | DI59: 1.842736052e-12 | DJ59: 1.925659174e-12 | DK59: 2.012313837e-12 | DL59: 2.10286796e-12 | DM59: 2.197497018e-12 | DN59: 2.296384384e-12 | DO59: 2.399721681e-12 | DP59: 2.507709157e-12 | DQ59: 2.620556069e-12 | DR59: 2.738481092e-12 | DS59: 2.861712741e-12 | DT59: 2.990489814e-12 | DU59: 3.125061856e-12 | DV59: 3.265689639e-12 | DW59: 3.412645673e-12 | DX59: 3.566214728e-12
D60: Less: Repayment - Senior | E60: Euro | I60: =I37 -> 0 | J60: 13.44772465 | K60: 15.00487226 | L60: 16.65113152 | M60: 18.39089323 | N60: 20.22875344 | O60: 22.16952277 | P60: 24.21823622 | Q60: 26.38016347 | R60: 28.66081958 | S60: 31.06597619 | T60: 33.60167325 | U60: 36.27423123 | V60: 39.09026398 | W60: 42.05669204 | X60: 45.1807567 | Y60: 48.47003453 | Z60: 51.93245274 | AA60: 55.57630511 | AB60: 59.41026867 | AC60: 63.44342119 | AD60: 67.68525938 | AE60: -4.988010005e-14 | AF60: -5.212470455e-14 | AG60: -5.447031626e-14 | AH60: -5.692148049e-14 | AI60: -5.948294711e-14 | AJ60: -6.215967973e-14 | AK60: -6.495686532e-14 | AL60: -6.787992426e-14 | AM60: -7.093452085e-14 | AN60: -7.412657429e-14 | AO60: =AO37 -> -7.746227013e-14 | AP60: -8.094807229e-14 | AQ60: -8.459073554e-14 | AR60: -8.839731864e-14 | AS60: -9.237519798e-14 | AT60: -9.653208189e-14 | AU60: -1.008760256e-13 | AV60: -1.054154467e-13 | AW60: -1.101591418e-13 | AX60: -1.151163032e-13 | AY60: -1.202965369e-13 | AZ60: -1.25709881e-13 | BA60: -1.313668257e-13 | BB60: -1.372783328e-13 | BC60: -1.434558578e-13 | BD60: -1.499113714e-13 | BE60: -1.566573831e-13 | BF60: -1.637069653e-13 | BG60: -1.710737788e-13 | BH60: -1.787720988e-13 | BI60: -1.868168433e-13 | BJ60: -1.952236012e-13 | BK60: -2.040086633e-13 | BL60: -2.131890531e-13 | BM60: -2.227825605e-13 | BN60: -2.328077757e-13 | BO60: -2.432841256e-13 | BP60: -2.542319113e-13 | BQ60: -2.656723473e-13 | BR60: -2.776276029e-13 | BS60: -2.901208451e-13 | BT60: -3.031762831e-13 | BU60: =BU37 -> -3.168192158e-13 | BV60: -3.310760805e-13 | BW60: -3.459745042e-13 | BX60: -3.615433569e-13 | BY60: -3.778128079e-13 | BZ60: -3.948143843e-13 | CA60: -4.125810316e-13 | CB60: -4.31147178e-13 | CC60: -4.50548801e-13 | CD60: -4.70823497e-13 | CE60: -4.920105544e-13 | CF60: -5.141510294e-13 | CG60: -5.372878257e-13 | CH60: -5.614657778e-13 | CI60: -5.867317378e-13 | CJ60: -6.13134666e-13 | CK60: -6.40725726e-13 | CL60: -6.695583837e-13 | CM60: -6.996885109e-13 | CN60: -7.311744939e-13 | CO60: -7.640773462e-13 | CP60: -7.984608267e-13 | CQ60: -8.343915639e-13 | CR60: -8.719391843e-13 | CS60: -9.111764476e-13 | CT60: -9.521793878e-13 | CU60: -9.950274602e-13 | CV60: -1.039803696e-12 | CW60: -1.086594862e-12 | CX60: -1.135491631e-12 | CY60: -1.186588754e-12 | CZ60: -1.239985248e-12 | DA60: =DA37 -> -1.295784585e-12 | DB60: -1.354094891e-12 | DC60: -1.415029161e-12 | DD60: -1.478705473e-12 | DE60: -1.545247219e-12 | DF60: -1.614783344e-12 | DG60: -1.687448595e-12 | DH60: -1.763383782e-12 | DI60: -1.842736052e-12 | DJ60: -1.925659174e-12 | DK60: -2.012313837e-12 | DL60: -2.10286796e-12 | DM60: -2.197497018e-12 | DN60: -2.296384384e-12 | DO60: -2.399721681e-12 | DP60: -2.507709157e-12 | DQ60: -2.620556069e-12 | DR60: -2.738481092e-12 | DS60: -2.861712741e-12 | DT60: -2.990489814e-12 | DU60: -3.125061856e-12 | DV60: -3.265689639e-12 | DW60: -3.412645673e-12 | DX60: -3.566214728e-12
D61: Net Cash Flow | E61: Euro
D62: Sub Debt Interest | E62: Euro
D63: Sub Debt Repayment | E63: Euro
D65: Dividends | E65: Euro | I65: =I58-I59-I60 -> 0 | J65: =J58-J59-J60 -> 23.8 | K65: 24.276 | L65: 24.76152 | M65: 25.2567504 | N65: 25.76188541 | O65: 26.27712312 | P65: 26.80266558 | Q65: 27.33871889 | R65: 27.88549327 | S65: 28.44320313 | T65: 29.0120672 | U65: 29.59230854 | V65: 30.18415471 | W65: 30.7878378 | X65: 31.40359456 | Y65: 32.03166645 | Z65: 32.67229978 | AA65: 33.32574578 | AB65: 33.99226069 | AC65: 34.67210591 | AD65: 35.36554802 | AE65: 108.218577 | AF65: 110.3829485 | AG65: 112.5906075 | AH65: 114.8424196 | AI65: 117.139268 | AJ65: 119.4820534 | AK65: 121.8716944 | AL65: 124.3091283 | AM65: 126.7953109 | AN65: 0 | AO65: 0 | AP65: 0 | AQ65: 0 | AR65: 0 | AS65: 0 | AT65: 0 | AU65: 0 | AV65: 0 | AW65: 0 | AX65: 0 | AY65: 0 | AZ65: 0 | BA65: 0 | BB65: 0 | BC65: 0 | BD65: 0 | BE65: 0 | BF65: 0 | BG65: 0 | BH65: 0 | BI65: 0 | BJ65: 0 | BK65: 0 | BL65: 0 | BM65: 0 | BN65: 0 | BO65: 0 | BP65: 0 | BQ65: 0 | BR65: 0 | BS65: 0 | BT65: 0 | BU65: 0 | BV65: =BV58-BV59-BV60 -> 0 | BW65: 0 | BX65: 0 | BY65: 0 | BZ65: 0 | CA65: 0 | CB65: 0 | CC65: 0 | CD65: 0 | CE65: 0 | CF65: 0 | CG65: 0 | CH65: 0 | CI65: 0 | CJ65: 0 | CK65: 0 | CL65: 0 | CM65: 0 | CN65: 0 | CO65: 0 | CP65: 0 | CQ65: 0 | CR65: 0 | CS65: 0 | CT65: 0 | CU65: 0 | CV65: 0 | CW65: 0 | CX65: 0 | CY65: 0 | CZ65: 0 | DA65: 0 | DB65: 0 | DC65: 0 | DD65: 0 | DE65: 0 | DF65: 0 | DG65: 0 | DH65: 0 | DI65: 0 | DJ65: 0 | DK65: 0 | DL65: 0 | DM65: 0 | DN65: 0 | DO65: 0 | DP65: 0 | DQ65: 0 | DR65: 0 | DS65: 0 | DT65: 0 | DU65: 0 | DV65: 0 | DW65: 0 | DX65: 0
B67: Summary Analysis - Structuring
D69: Equity Net Cash Flow | E69: Euro | I69: =-I54+I65 -> -241.0605479 | J69: 23.8 | K69: 24.276 | L69: 24.76152 | M69: 25.2567504 | N69: 25.76188541 | O69: 26.27712312 | P69: 26.80266558 | Q69: 27.33871889 | R69: 27.88549327 | S69: 28.44320313 | T69: 29.0120672 | U69: 29.59230854 | V69: 30.18415471 | W69: 30.7878378 | X69: 31.40359456 | Y69: 32.03166645 | Z69: 32.67229978 | AA69: 33.32574578 | AB69: 33.99226069 | AC69: 34.67210591 | AD69: 35.36554802 | AE69: 108.218577 | AF69: 110.3829485 | AG69: 112.5906075 | AH69: 114.8424196 | AI69: 117.139268 | AJ69: 119.4820534 | AK69: 121.8716944 | AL69: 124.3091283 | AM69: 126.7953109 | AN69: 0 | AO69: =-AO54+AO65 -> 0 | AP69: 0 | AQ69: 0 | AR69: 0 | AS69: 0 | AT69: 0 | AU69: 0 | AV69: 0 | AW69: 0 | AX69: 0 | AY69: 0 | AZ69: 0 | BA69: 0 | BB69: 0 | BC69: 0 | BD69: 0 | BE69: 0 | BF69: 0 | BG69: 0 | BH69: 0 | BI69: 0 | BJ69: 0 | BK69: 0 | BL69: 0 | BM69: 0 | BN69: 0 | BO69: 0 | BP69: 0 | BQ69: 0 | BR69: 0 | BS69: 0 | BT69: 0 | BU69: =-BU54+BU65 -> 0 | BV69: 0 | BW69: 0 | BX69: 0 | BY69: 0 | BZ69: 0 | CA69: 0 | CB69: 0 | CC69: 0 | CD69: 0 | CE69: 0 | CF69: 0 | CG69: 0 | CH69: 0 | CI69: 0 | CJ69: 0 | CK69: 0 | CL69: 0 | CM69: 0 | CN69: 0 | CO69: 0 | CP69: 0 | CQ69: 0 | CR69: 0 | CS69: 0 | CT69: 0 | CU69: 0 | CV69: 0 | CW69: 0 | CX69: 0 | CY69: 0 | CZ69: 0 | DA69: =-DA54+DA65 -> 0 | DB69: 0 | DC69: 0 | DD69: 0 | DE69: 0 | DF69: 0 | DG69: 0 | DH69: 0 | DI69: 0 | DJ69: 0 | DK69: 0 | DL69: 0 | DM69: 0 | DN69: 0 | DO69: 0 | DP69: 0 | DQ69: 0 | DR69: 0 | DS69: 0 | DT69: 0 | DU69: 0 | DV69: 0 | DW69: 0 | DX69: 0
D70: Equity IRR | E70: =IRR(I69:DX69) -> 0.128114785
I72: =IF(I5,I3,NA()) ->  | J72: 2 | K72: 3 | L72: 4 | M72: 5 | N72: 6 | O72: 7 | P72: 8 | Q72: 9 | R72: 10 | S72: 11 | T72: 12 | U72: 13 | V72: 14 | W72: 15 | X72: 16 | Y72: 17 | Z72: 18 | AA72: 19 | AB72: 20 | AC72: 21 | AD72: 22 | AE72: 23 | AF72: 24 | AG72: 25 | AH72: 26 | AI72: 27 | AJ72: 28 | AK72: 29 | AL72: 30 | AM72: 31 | AO72: =IF(AO5,AO3,NA()) ->  | BU72: =IF(BU5,BU3,NA()) ->  | DA72: =IF(DA5,DA3,NA()) -> 
D73: Cash Flow | E73: Euro | I73: =I58 -> 0 | J73: 71.4 | K73: 72.828 | L73: 74.28456 | M73: 75.7702512 | N73: 77.28565622 | O73: 78.83136935 | P73: 80.40799674 | Q73: 82.01615667 | R73: 83.6564798 | S73: 85.3296094 | T73: 87.03620159 | U73: 88.77692562 | V73: 90.55246413 | W73: 92.36351341 | X73: 94.21078368 | Y73: 96.09499936 | Z73: 98.01689934 | AA73: 99.97723733 | AB73: 101.9767821 | AC73: 104.0163177 | AD73: 106.0966441 | AE73: 108.218577 | AF73: 110.3829485 | AG73: 112.5906075 | AH73: 114.8424196 | AI73: 117.139268 | AJ73: 119.4820534 | AK73: 121.8716944 | AL73: 124.3091283 | AM73: 126.7953109 | AN73: 0 | AO73: =AO58 -> 0 | AP73: 0 | AQ73: 0 | AR73: 0 | AS73: 0 | AT73: 0 | AU73: 0 | AV73: 0 | AW73: 0 | AX73: 0 | AY73: 0 | AZ73: 0 | BA73: 0 | BB73: 0 | BC73: 0 | BD73: 0 | BE73: 0 | BF73: 0 | BG73: 0 | BH73: 0 | BI73: 0 | BJ73: 0 | BK73: 0 | BL73: 0 | BM73: 0 | BN73: 0 | BO73: 0 | BP73: 0 | BQ73: 0 | BR73: 0 | BS73: 0 | BT73: 0 | BU73: =BU58 -> 0 | BV73: 0 | BW73: 0 | BX73: 0 | BY73: 0 | BZ73: 0 | CA73: 0 | CB73: 0 | CC73: 0 | CD73: 0 | CE73: 0 | CF73: 0 | CG73: 0 | CH73: 0 | CI73: 0 | CJ73: 0 | CK73: 0 | CL73: 0 | CM73: 0 | CN73: 0 | CO73: 0 | CP73: 0 | CQ73: 0 | CR73: 0 | CS73: 0 | CT73: 0 | CU73: 0 | CV73: 0 | CW73: 0 | CX73: 0 | CY73: 0 | CZ73: 0 | DA73: =DA58 -> 0 | DB73: 0 | DC73: 0 | DD73: 0 | DE73: 0 | DF73: 0 | DG73: 0 | DH73: 0 | DI73: 0 | DJ73: 0 | DK73: 0 | DL73: 0 | DM73: 0 | DN73: 0 | DO73: 0 | DP73: 0 | DQ73: 0 | DR73: 0 | DS73: 0 | DT73: 0 | DU73: 0 | DV73: 0 | DW73: 0 | DX73: 0
D74: Debt Service | E74: Euro | I74: =I59+I60 -> 0 | J74: 47.6 | K74: 48.552 | L74: 49.52304 | M74: 50.5135008 | N74: 51.52377082 | O74: 52.55424623 | P74: 53.60533116 | Q74: 54.67743778 | R74: 55.77098654 | S74: 56.88640627 | T74: 58.02413439 | U74: 59.18461708 | V74: 60.36830942 | W74: 61.57567561 | X74: 62.80718912 | Y74: 64.0633329 | Z74: 65.34459956 | AA74: 66.65149155 | AB74: 67.98452138 | AC74: 69.34421181 | AD74: 70.73109605 | AE74: 0 | AF74: 0 | AG74: 0 | AH74: 0 | AI74: 0 | AJ74: 0 | AK74: 0 | AL74: 0 | AM74: 0 | AN74: 0 | AO74: =AO59+AO60 -> 0 | AP74: 0 | AQ74: 0 | AR74: 0 | AS74: 0 | AT74: 0 | AU74: 0 | AV74: 0 | AW74: 0 | AX74: 0 | AY74: 0 | AZ74: 0 | BA74: 0 | BB74: 0 | BC74: 0 | BD74: 0 | BE74: 0 | BF74: 0 | BG74: 0 | BH74: 0 | BI74: 0 | BJ74: 0 | BK74: 0 | BL74: 0 | BM74: 0 | BN74: 0 | BO74: 0 | BP74: 0 | BQ74: 0 | BR74: 0 | BS74: 0 | BT74: 0 | BU74: =BU59+BU60 -> 0 | BV74: 0 | BW74: 0 | BX74: 0 | BY74: 0 | BZ74: 0 | CA74: 0 | CB74: 0 | CC74: 0 | CD74: 0 | CE74: 0 | CF74: 0 | CG74: 0 | CH74: 0 | CI74: 0 | CJ74: 0 | CK74: 0 | CL74: 0 | CM74: 0 | CN74: 0 | CO74: 0 | CP74: 0 | CQ74: 0 | CR74: 0 | CS74: 0 | CT74: 0 | CU74: 0 | CV74: 0 | CW74: 0 | CX74: 0 | CY74: 0 | CZ74: 0 | DA74: =DA59+DA60 -> 0 | DB74: 0 | DC74: 0 | DD74: 0 | DE74: 0 | DF74: 0 | DG74: 0 | DH74: 0 | DI74: 0 | DJ74: 0 | DK74: 0 | DL74: 0 | DM74: 0 | DN74: 0 | DO74: 0 | DP74: 0 | DQ74: 0 | DR74: 0 | DS74: 0 | DT74: 0 | DU74: 0 | DV74: 0 | DW74: 0 | DX74: 0
D76: Equity IRR | E76: =E70 -> 0.128114785 | F76: DSCR | G76: =F32 -> 1.5 | I76: Tenure | J76: =F30 -> 22 | K76: Debt to Capital
D78: DSCR | I78: =IF(I74>0,I73/I74) -> FALSE | J78: =IF(J74>0,J73/J74) -> 1.5 | K78: 1.5 | L78: 1.5 | M78: 1.5 | N78: 1.5 | O78: 1.5 | P78: 1.5 | Q78: 1.5 | R78: 1.5 | S78: 1.5 | T78: 1.5 | U78: 1.5 | V78: 1.5 | W78: 1.5 | X78: 1.5 | Y78: 1.5 | Z78: 1.5 | AA78: 1.5 | AB78: 1.5 | AC78: 1.5 | AD78: 1.5 | AE78: FALSE | AF78: FALSE | AG78: FALSE | AH78: FALSE | AI78: FALSE | AJ78: FALSE | AK78: FALSE | AL78: FALSE | AM78: FALSE | AN78: FALSE | AO78: FALSE | AP78: FALSE | AQ78: FALSE | AR78: FALSE | AS78: FALSE | AT78: FALSE | AU78: FALSE | AV78: FALSE | AW78: FALSE | AX78: FALSE | AY78: FALSE | AZ78: FALSE | BA78: FALSE | BB78: FALSE | BC78: FALSE | BD78: FALSE | BE78: FALSE | BF78: FALSE | BG78: FALSE | BH78: FALSE | BI78: FALSE | BJ78: FALSE | BK78: FALSE | BL78: FALSE | BM78: FALSE | BN78: FALSE | BO78: FALSE | BP78: FALSE | BQ78: FALSE | BR78: FALSE | BS78: FALSE | BT78: FALSE | BU78: FALSE | BV78: =IF(BV74>0,BV73/BV74) -> FALSE | BW78: FALSE | BX78: FALSE | BY78: FALSE | BZ78: FALSE | CA78: FALSE | CB78: FALSE | CC78: FALSE | CD78: FALSE | CE78: FALSE | CF78: FALSE | CG78: FALSE | CH78: FALSE | CI78: FALSE | CJ78: FALSE | CK78: FALSE | CL78: FALSE | CM78: FALSE | CN78: FALSE | CO78: FALSE | CP78: FALSE | CQ78: FALSE | CR78: FALSE | CS78: FALSE | CT78: FALSE | CU78: FALSE | CV78: FALSE | CW78: FALSE | CX78: FALSE | CY78: FALSE | CZ78: FALSE | DA78: FALSE | DB78: FALSE | DC78: FALSE | DD78: FALSE | DE78: FALSE | DF78: FALSE | DG78: FALSE | DH78: FALSE | DI78: FALSE | DJ78: FALSE | DK78: FALSE | DL78: FALSE | DM78: FALSE | DN78: FALSE | DO78: FALSE | DP78: FALSE | DQ78: FALSE | DR78: FALSE | DS78: FALSE | DT78: FALSE | DU78: FALSE | DV78: FALSE | DW78: FALSE | DX78: FALSE
B81: Risk Analysis
C82: Scheduled Senior Debt Repayment | H82: =SUM(I82:XFD82) -> 758.9394521 | I82: =I37 -> 0 | J82: 13.44772465 | K82: 15.00487226 | L82: 16.65113152 | M82: 18.39089323 | N82: 20.22875344 | O82: 22.16952277 | P82: 24.21823622 | Q82: 26.38016347 | R82: 28.66081958 | S82: 31.06597619 | T82: 33.60167325 | U82: 36.27423123 | V82: 39.09026398 | W82: 42.05669204 | X82: 45.1807567 | Y82: 48.47003453 | Z82: 51.93245274 | AA82: 55.57630511 | AB82: 59.41026867 | AC82: 63.44342119 | AD82: 67.68525938 | AE82: -4.988010005e-14 | AF82: -5.212470455e-14 | AG82: -5.447031626e-14 | AH82: -5.692148049e-14 | AI82: -5.948294711e-14 | AJ82: -6.215967973e-14 | AK82: -6.495686532e-14 | AL82: -6.787992426e-14 | AM82: -7.093452085e-14 | AN82: -7.412657429e-14 | AO82: =AO37 -> -7.746227013e-14 | AP82: -8.094807229e-14 | AQ82: -8.459073554e-14 | AR82: -8.839731864e-14 | AS82: -9.237519798e-14 | AT82: -9.653208189e-14 | AU82: -1.008760256e-13 | AV82: -1.054154467e-13 | AW82: -1.101591418e-13 | AX82: -1.151163032e-13 | AY82: -1.202965369e-13 | AZ82: -1.25709881e-13 | BA82: -1.313668257e-13 | BB82: -1.372783328e-13 | BC82: -1.434558578e-13 | BD82: -1.499113714e-13 | BE82: -1.566573831e-13 | BF82: -1.637069653e-13 | BG82: -1.710737788e-13 | BH82: -1.787720988e-13 | BI82: -1.868168433e-13 | BJ82: -1.952236012e-13 | BK82: -2.040086633e-13 | BL82: -2.131890531e-13 | BM82: -2.227825605e-13 | BN82: -2.328077757e-13 | BO82: -2.432841256e-13 | BP82: -2.542319113e-13 | BQ82: -2.656723473e-13 | BR82: -2.776276029e-13 | BS82: -2.901208451e-13 | BT82: -3.031762831e-13 | BU82: =BU37 -> -3.168192158e-13 | BV82: -3.310760805e-13 | BW82: -3.459745042e-13 | BX82: -3.615433569e-13 | BY82: -3.778128079e-13 | BZ82: -3.948143843e-13 | CA82: -4.125810316e-13 | CB82: -4.31147178e-13 | CC82: -4.50548801e-13 | CD82: -4.70823497e-13 | CE82: -4.920105544e-13 | CF82: -5.141510294e-13 | CG82: -5.372878257e-13 | CH82: -5.614657778e-13 | CI82: -5.867317378e-13 | CJ82: -6.13134666e-13 | CK82: -6.40725726e-13 | CL82: -6.695583837e-13 | CM82: -6.996885109e-13 | CN82: -7.311744939e-13 | CO82: -7.640773462e-13 | CP82: -7.984608267e-13 | CQ82: -8.343915639e-13 | CR82: -8.719391843e-13 | CS82: -9.111764476e-13 | CT82: -9.521793878e-13 | CU82: -9.950274602e-13 | CV82: -1.039803696e-12 | CW82: -1.086594862e-12 | CX82: -1.135491631e-12 | CY82: -1.186588754e-12 | CZ82: -1.239985248e-12 | DA82: =DA37 -> -1.295784585e-12 | DB82: -1.354094891e-12 | DC82: -1.415029161e-12 | DD82: -1.478705473e-12 | DE82: -1.545247219e-12 | DF82: -1.614783344e-12 | DG82: -1.687448595e-12 | DH82: -1.763383782e-12 | DI82: -1.842736052e-12 | DJ82: -1.925659174e-12 | DK82: -2.012313837e-12 | DL82: -2.10286796e-12 | DM82: -2.197497018e-12 | DN82: -2.296384384e-12 | DO82: -2.399721681e-12 | DP82: -2.507709157e-12 | DQ82: -2.620556069e-12 | DR82: -2.738481092e-12 | DS82: -2.861712741e-12 | DT82: -2.990489814e-12 | DU82: -3.125061856e-12 | DV82: -3.265689639e-12 | DW82: -3.412645673e-12 | DX82: -3.566214728e-12
C83: Scheduled Subordinated Debt Repayment
C85: Volatility | E85: % | F85: =G85/100 -> 0.45 | G85: 45
C86: Mean Reversion | E86: % | F86: 0.1
C88: Base Revenue Estimate | E88: Euro | F88: =G88/100 -> 1.16 | G88: 116 | I88: =I10*$F$88 -> 0 | J88: 94.656 | K88: 96.54912 | L88: 98.4801024 | M88: 100.4497044 | N88: 102.4586985 | O88: 104.5078725 | P88: 106.59803 | Q88: 108.7299906 | R88: 110.9045904 | S88: 113.1226822 | T88: 115.3851358 | U88: 117.6928385 | V88: 120.0466953 | W88: 122.4476292 | X88: 124.8965818 | Y88: 127.3945134 | Z88: 129.9424037 | AA88: 132.5412518 | AB88: 135.1920768 | AC88: 137.8959183 | AD88: 140.6538367 | AE88: 143.4669134 | AF88: 146.3362517 | AG88: 149.2629768 | AH88: 152.2482363 | AI88: 155.293201 | AJ88: 158.399065 | AK88: 161.5670463 | AL88: 164.7983873 | AM88: 168.094355 | AN88: 0 | AO88: =AO10*$F$88 -> 0 | AP88: 0 | AQ88: 0 | AR88: 0 | AS88: 0 | AT88: 0 | AU88: 0 | AV88: 0 | AW88: 0 | AX88: 0 | AY88: 0 | AZ88: 0 | BA88: 0 | BB88: 0 | BC88: 0 | BD88: 0 | BE88: 0 | BF88: 0 | BG88: 0 | BH88: 0 | BI88: 0 | BJ88: 0 | BK88: 0 | BL88: 0 | BM88: 0 | BN88: 0 | BO88: 0 | BP88: 0 | BQ88: 0 | BR88: 0 | BS88: 0 | BT88: 0 | BU88: =BU10*$F$88 -> 0 | BV88: 0 | BW88: 0 | BX88: 0 | BY88: 0 | BZ88: 0 | CA88: 0 | CB88: 0 | CC88: 0 | CD88: 0 | CE88: 0 | CF88: 0 | CG88: 0 | CH88: 0 | CI88: 0 | CJ88: 0 | CK88: 0 | CL88: 0 | CM88: 0 | CN88: 0 | CO88: 0 | CP88: 0 | CQ88: 0 | CR88: 0 | CS88: 0 | CT88: 0 | CU88: 0 | CV88: 0 | CW88: 0 | CX88: 0 | CY88: 0 | CZ88: 0 | DA88: =DA10*$F$88 -> 0 | DB88: 0 | DC88: 0 | DD88: 0 | DE88: 0 | DF88: 0 | DG88: 0 | DH88: 0 | DI88: 0 | DJ88: 0 | DK88: 0 | DL88: 0 | DM88: 0 | DN88: 0 | DO88: 0 | DP88: 0 | DQ88: 0 | DR88: 0 | DS88: 0 | DT88: 0 | DU88: 0 | DV88: 0 | DW88: 0 | DX88: 0
C90: Random Number - Probability | E90: % | I90: =RAND() -> 0.5562394031 | J90: =RAND() -> 0.5057119734 | K90: =RAND() -> 0.8850216556 | L90: 0.6926028022 | M90: 0.3498302981 | N90: 0.4667089099 | O90: 0.4920099207 | P90: 0.8689469823 | Q90: 0.09171102791 | R90: 0.04996305776 | S90: 0.4560776483 | T90: 0.2127114665 | U90: 0.7631452571 | V90: 0.2410054147 | W90: 0.557753038 | X90: 0.3130708845 | Y90: 0.6294503609 | Z90: 0.9472137982 | AA90: 0.4651186289 | AB90: 0.7823777249 | AC90: 0.1971102108 | AD90: 0.2016988515 | AE90: 0.5353660709 | AF90: 0.7429938833 | AG90: 0.1475407884 | AH90: 0.2943044701 | AI90: 0.7505876321 | AJ90: 0.8320447162 | AK90: 0.5062628057 | AL90: 0.7954384463 | AM90: 0.6742153872 | AN90: 0.1747241416 | AO90: 0.4101963639 | AP90: 0.4597517443 | AQ90: 0.01253317427 | AR90: 0.7145198091 | AS90: 0.3320801165 | AT90: 0.6497756992 | AU90: 0.1756696792 | AV90: 0.4828778863 | AW90: 0.8625181768 | AX90: 0.1648874547 | AY90: 0.7081432358 | AZ90: 0.0232769615 | BA90: 0.4518904748 | BB90: 0.1452425421 | BC90: 0.0432070336 | BD90: 0.08911554763 | BE90: 0.6558906224 | BF90: 0.2187500314 | BG90: 0.2780503307 | BH90: 0.3976260169 | BI90: 0.857301687 | BJ90: 0.4296798035 | BK90: 0.7811307995 | BL90: 0.8096566463 | BM90: 0.512201411 | BN90: 0.3744810839 | BO90: 0.3115737083 | BP90: 0.4171682122 | BQ90: 0.1172341982 | BR90: 0.537163731 | BS90: 0.9283700698 | BT90: 0.6340687647 | BU90: 0.4989879171 | BV90: =RAND() -> 0.1845957054 | BW90: 0.6862897608 | BX90: 0.9606462389 | BY90: 0.8719159128 | BZ90: 0.09874460638 | CA90: 0.1443629512 | CB90: 0.9987295378 | CC90: 0.7211508457 | CD90: 0.1191455508 | CE90: 0.1319950457 | CF90: 0.7491958978 | CG90: 0.4900437633 | CH90: 0.7679438432 | CI90: 0.158654057 | CJ90: 0.620496626 | CK90: 0.5351052328 | CL90: 0.6979034408 | CM90: 0.1401410615 | CN90: 0.9890131947 | CO90: 0.5925577826 | CP90: 0.5480693999 | CQ90: 0.3895554886 | CR90: 0.7542024516 | CS90: 0.3908817182 | CT90: 0.8915311081 | CU90: 0.5628366984 | CV90: 0.7978885932 | CW90: 0.4818010797 | CX90: 0.4347729842 | CY90: 0.3307668715 | CZ90: 0.3195334707 | DA90: 0.6418669427 | DB90: 0.7981798931 | DC90: 0.8612443363 | DD90: 0.1522188627 | DE90: 0.2305703179 | DF90: 0.4883874742 | DG90: 0.1279761911 | DH90: 0.8914542713 | DI90: 0.328676 | DJ90: 0.5797809478 | DK90: 0.7917554904 | DL90: 0.8484856382 | DM90: 0.4524646097 | DN90: 0.9135764928 | DO90: 0.6912596563 | DP90: 0.5610018582 | DQ90: 0.46229578 | DR90: 0.4816324264 | DS90: 0.9321492046 | DT90: 0.5031499846 | DU90: 0.1428845247 | DV90: 0.719549176 | DW90: 0.5447874548 | DX90: 0.8800465945
C91: Cash Flow Change from Normal Distribution | E91: Factor | I91: =NORMSINV(I90) -> 0.1414414718 | J91: =NORMSINV(J90) -> 0.01431828323 | K91: 1.200470433 | L91: 0.503241635 | M91: -0.3857786666 | N91: -0.08354547525 | O91: -0.02002949789 | P91: 1.121427266 | Q91: -1.330292079 | R91: -1.645211923 | S91: -0.1103203779 | T91: -0.797048382 | U91: 0.7164565529 | V91: -0.703072082 | W91: 0.1452747828 | X91: -0.4871644881 | Y91: 0.3303979661 | Z91: 1.618418658 | AA91: -0.08754633371 | AB91: 0.780248618 | AC91: -0.8519885961 | AD91: -0.8355684873 | AE91: 0.08876602615 | AF91: 0.6526030272 | AG91: -1.047039031 | AH91: -0.5408529539 | AI91: 0.6763401045 | AJ91: 0.962276824 | AK91: 0.01569917081 | AL91: 0.8254377553 | AM91: 0.4515832687 | AN91: -0.9356599774 | AO91: -0.2270398855 | AP91: -0.1010591715 | AQ91: -2.24037869 | AR91: 0.5666376618 | AS91: -0.4341765601 | AT91: 0.3847149716 | AU91: -0.9319945182 | AV91: -0.04293195905 | AW91: 1.091703045 | AX91: -0.9745673631 | AY91: 0.5479685056 | AZ91: -1.990336108 | BA91: -0.1208864817 | BB91: -1.057058074 | BC91: -1.714624645 | BD91: -1.346221494 | BE91: 0.4012735227 | BF91: -0.7764216547 | BG91: -0.5886431801 | BH91: -0.2594966923 | BI91: 1.068274681 | BJ91: -0.1771894185 | BK91: 0.7760179272 | BL91: 0.8766317144 | BM91: 0.0305891715 | BN91: -0.3200081297 | BO91: -0.4913945521 | BP91: -0.2091432347 | BQ91: -1.188926995 | BR91: 0.09329080333 | BS91: 1.46375881 | BT91: 0.342649085 | BU91: -0.002536918422 | BV91: =NORMSINV(BV90) -> -0.8979890058 | BW91: 0.4853607373 | BX91: 1.758235059 | BY91: 1.135494525 | BZ91: -1.288737926 | CA91: -1.060920785 | CB91: 3.018424809 | CC91: 0.5862637183 | CD91: -1.179268941 | CE91: -1.117009902 | CF91: 0.6719615034 | CG91: -0.02495917556 | CH91: 0.7320921684 | CI91: -1.000004947 | CJ91: 0.3067853655 | CK91: 0.08810964023 | CL91: 0.5183800684 | CM91: -1.079685792 | CN91: 2.290823731 | CO91: 0.2341295126 | CP91: 0.1207851655 | CQ91: -0.2804777714 | CR91: 0.6877740233 | CS91: -0.2770217096 | CT91: 1.234711797 | CU91: 0.1581652276 | CV91: 0.8341032327 | CW91: -0.04563376143 | CX91: -0.1642352295 | CY91: -0.4377965903 | CZ91: -0.4690037698 | DA91: 0.3634535379 | DB91: 0.835137644 | DC91: 1.085926916 | DD91: -1.026963343 | DE91: -0.7369699302 | DF91: -0.02911239729 | DG91: -1.136009993 | DH91: 1.234299137 | DI91: -0.4435720735 | DJ91: 0.201333123 | DK91: 0.8125274899 | DL91: 1.029960127 | DM91: -0.1194369116 | DN91: 1.363112638 | DO91: 0.4994240392 | DP91: 0.1535097734 | DQ91: -0.09465160354 | DR91: -0.04605695704 | DS91: 1.491990672 | DT91: 0.007895922461 | DU91: -1.067449183 | DV91: 0.5815027759 | DW91: 0.1125023704 | DX91: 1.175219749
C92: Cash Flow Change After Volatilty | E92: Factor | F92: =F85 -> 0.45 | I92: =I91*$F$92 -> 0.06364866233 | J92: =J91*$F$92 -> 0.006443227453 | K92: 0.540211695 | L92: 0.2264587357 | M92: -0.1736004 | N92: -0.03759546386 | O92: -0.009013274051 | P92: 0.5046422697 | Q92: -0.5986314358 | R92: -0.7403453655 | S92: -0.04964417007 | T92: -0.3586717719 | U92: 0.3224054488 | V92: -0.3163824369 | W92: 0.06537365224 | X92: -0.2192240197 | Y92: 0.1486790847 | Z92: 0.7282883963 | AA92: -0.03939585017 | AB92: 0.3511118781 | AC92: -0.3833948682 | AD92: -0.3760058193 | AE92: 0.03994471177 | AF92: 0.2936713622 | AG92: -0.4711675641 | AH92: -0.2433838293 | AI92: 0.304353047 | AJ92: 0.4330245708 | AK92: 0.007064626866 | AL92: 0.3714469899 | AM92: 0.2032124709 | AN92: -0.4210469898 | AO92: -0.1021679485 | AP92: -0.04547662716 | AQ92: -1.00817041 | AR92: 0.2549869478 | AS92: -0.1953794521 | AT92: 0.1731217372 | AU92: -0.4193975332 | AV92: -0.01931938157 | AW92: 0.4912663703 | AX92: -0.4385553134 | AY92: 0.2465858275 | AZ92: -0.8956512484 | BA92: -0.05439891677 | BB92: -0.4756761333 | BC92: -0.7715810905 | BD92: -0.6057996722 | BE92: 0.1805730852 | BF92: -0.3493897446 | BG92: -0.264889431 | BH92: -0.1167735116 | BI92: 0.4807236064 | BJ92: -0.07973523834 | BK92: 0.3492080673 | BL92: 0.3944842715 | BM92: 0.01376512717 | BN92: -0.1440036584 | BO92: -0.2211275484 | BP92: -0.09411445563 | BQ92: -0.5350171477 | BR92: 0.0419808615 | BS92: 0.6586914647 | BT92: 0.1541920882 | BU92: -0.00114161329 | BV92: =BV91*$F$92 -> -0.4040950526 | BW92: 0.2184123318 | BX92: 0.7912057765 | BY92: 0.5109725365 | BZ92: -0.5799320666 | CA92: -0.4774143533 | CB92: 1.358291164 | CC92: 0.2638186732 | CD92: -0.5306710236 | CE92: -0.5026544559 | CF92: 0.3023826765 | CG92: -0.011231629 | CH92: 0.3294414758 | CI92: -0.450002226 | CJ92: 0.1380534145 | CK92: 0.03964933811 | CL92: 0.2332710308 | CM92: -0.4858586063 | CN92: 1.030870679 | CO92: 0.1053582807 | CP92: 0.05435332447 | CQ92: -0.1262149971 | CR92: 0.3094983105 | CS92: -0.1246597693 | CT92: 0.5556203088 | CU92: 0.07117435244 | CV92: 0.3753464547 | CW92: -0.02053519264 | CX92: -0.07390585329 | CY92: -0.1970084656 | CZ92: -0.2110516964 | DA92: 0.1635540921 | DB92: 0.3758119398 | DC92: 0.4886671123 | DD92: -0.4621335043 | DE92: -0.3316364686 | DF92: -0.01310057878 | DG92: -0.5112044968 | DH92: 0.5554346117 | DI92: -0.1996074331 | DJ92: 0.09059990534 | DK92: 0.3656373705 | DL92: 0.463482057 | DM92: -0.05374661024 | DN92: 0.6134006871 | DO92: 0.2247408177 | DP92: 0.06907939805 | DQ92: -0.04259322159 | DR92: -0.02072563067 | DS92: 0.6713958024 | DT92: 0.003553165107 | DU92: -0.4803521322 | DV92: 0.2616762491 | DW92: 0.0506260667 | DX92: 0.5288488872
C94: Last Period | E94: Index | I94: =H97 -> 0.9410426298 | J94: =I97 -> 1 | K94: 1.006443227 | L94: 1.549491307 | M94: 1.845438018 | N94: 1.440525438 | O94: 1.342315672 | P94: 1.295985446 | Q94: 1.920395939 | R94: 0.6787469668 | S94: 0.2083650989 | T94: 0.2771844766 | U94: 0.2500477816 | V94: 0.4056597707 | W94: 0.3367501668 | X94: 0.4250897384 | Y94: 0.3893908834 | Z94: 0.5083460752 | AA94: 0.9277340156 | AB94: 0.8984117437 | AC94: 1.224013604 | AD94: 0.7323317092 | AE94: 0.483737554 | AF94: 0.5546865557 | AG94: 0.7621134566 | AH94: 0.4268189701 | AI94: 0.3802562377 | AJ94: 0.5579627585 | AK94: 0.8437780667 | AL94: 0.8653612372 | AM94: 1.20026094 | AN94: 1.424142838 | AO94: 0.782097499 | AP94: 0.7239824521 | AQ94: 0.7186599269 | AR94: 0.02226226071 | AS94: 0.1257126205 | AT94: 0.1885796956 | AU94: 0.3023689705 | AV94: 0.2453192731 | AW94: 0.3160479292 | AX94: 0.5397068552 | AY94: 0.3490448607 | AZ94: 0.5002098904 | BA94: 0.1021752886 | BB94: 0.1863995347 | BC94: 0.1790937713 | BD94: 0.1229990268 | BE94: 0.136186354 | BF94: 0.2471593087 | BG94: 0.2360884501 | BH94: 0.2499422699 | BI94: 0.2957614063 | BJ94: 0.5083647556 | BK94: 0.5169936951 | BL94: 0.7458326946 | BM94: 1.065468692 | BN94: 1.073588135 | BO94: 0.9116287026 | BP94: 0.7188796123 | BQ94: 0.6793346877 | BR94: 0.347945512 | BS94: 0.4277580131 | BT94: 0.766742764 | BU94: 0.9082941555 | BV94: =BU97 -> 0.9164278193 | BW94: 0.5544610895 | BX94: 0.72011612 | BY94: 1.317864542 | BZ94: 1.959470675 | CA94: 0.7271637297 | CB94: 0.407288955 | CC94: 1.019777048 | CD94: 1.286835571 | CE94: 0.5752656643 | CF94: 0.3285792484 | CG94: 0.4950779962 | CH94: 0.5400096642 | CI94: 0.7639102784 | CJ94: 0.4437579249 | CK94: 0.5606444291 | CL94: 0.6268091667 | CM94: 0.8103446705 | CN94: 0.4355972712 | CO94: 0.9410819987 | CP94: 1.04612458 | CQ94: 1.098372471 | CR94: 0.9499041456 | CS94: 1.248907459 | CT94: 1.068328198 | CU94: 1.655080221 | CV94: 1.707371462 | CW94: 2.27749014 | CX94: 2.102972428 | CY94: 1.837253213 | CZ94: 1.391573455 | DA94: 1.058722171 | DB94: 1.226008298 | DC94: 1.664156025 | DD94: 2.410958741 | DE94: 1.155678055 | DF94: 0.7568452606 | DG94: 0.7712456236 | DH94: 0.3998568303 | DI94: 0.6819654706 | DJ94: 0.5776435465 | DK94: 0.6722136425 | DL94: 0.9507787068 | DM94: 1.396369707 | DN94: 1.281682598 | DO94: 2.039699324 | DP94: 2.394133086 | DQ94: 2.42010505 | DR94: 2.175014474 | DS94: 2.01243448 | DT94: 3.262331094 | DU94: 3.047689586 | DV94: 1.378956436 | DW94: 1.701900941 | DX94: 1.717871397
C95: Mean Reversion Adjustment | E95: Index | F95: =F86 -> 0.1 | J95: =(J94-1)*$F$95 -> 0 | K95: =(K94-1)*$F$95 -> 0.0006443227453 | L95: 0.05494913065 | M95: 0.08454380182 | N95: 0.04405254383 | O95: 0.03423156724 | P95: 0.02959854461 | Q95: 0.09203959386 | R95: -0.03212530332 | S95: -0.07916349011 | T95: -0.07228155234 | U95: -0.07499522184 | V95: -0.05943402293 | W95: -0.06632498332 | X95: -0.05749102616 | Y95: -0.06106091166 | Z95: -0.04916539248 | AA95: -0.007226598442 | AB95: -0.01015882563 | AC95: 0.0224013604 | AD95: -0.02676682908 | AE95: -0.0516262446 | AF95: -0.04453134443 | AG95: -0.02378865434 | AH95: -0.05731810299 | AI95: -0.06197437623 | AJ95: -0.04420372415 | AK95: -0.01562219333 | AL95: -0.01346387628 | AM95: 0.02002609402 | AN95: 0.04241428377 | AO95: -0.0217902501 | AP95: -0.02760175479 | AQ95: -0.02813400731 | AR95: -0.09777377393 | AS95: -0.08742873795 | AT95: -0.08114203044 | AU95: -0.06976310295 | AV95: -0.07546807269 | AW95: -0.06839520708 | AX95: -0.04602931448 | AY95: -0.06509551393 | AZ95: -0.04997901096 | BA95: -0.08978247114 | BB95: -0.08136004653 | BC95: -0.08209062287 | BD95: -0.08770009732 | BE95: -0.0863813646 | BF95: -0.07528406913 | BG95: -0.07639115499 | BH95: -0.07500577301 | BI95: -0.07042385937 | BJ95: -0.04916352444 | BK95: -0.04830063049 | BL95: -0.02541673054 | BM95: 0.006546869236 | BN95: 0.007358813517 | BO95: -0.00883712974 | BP95: -0.02811203877 | BQ95: -0.03206653123 | BR95: -0.0652054488 | BS95: -0.05722419869 | BT95: -0.0233257236 | BU95: -0.009170584446 | BV95: -0.008357218069 | BW95: =(BW94-1)*$F$95 -> -0.04455389105 | BX95: -0.027988388 | BY95: 0.03178645419 | BZ95: 0.09594706754 | CA95: -0.02728362703 | CB95: -0.0592711045 | CC95: 0.001977704838 | CD95: 0.02868355714 | CE95: -0.04247343357 | CF95: -0.06714207516 | CG95: -0.05049220038 | CH95: -0.04599903358 | CI95: -0.02360897216 | CJ95: -0.05562420751 | CK95: -0.04393555709 | CL95: -0.03731908333 | CM95: -0.01896553295 | CN95: -0.05644027288 | CO95: -0.005891800126 | CP95: 0.004612458021 | CQ95: 0.009837247094 | CR95: -0.005009585444 | CS95: 0.02489074592 | CT95: 0.006832819752 | CU95: 0.06550802207 | CV95: 0.07073714616 | CW95: 0.127749014 | CX95: 0.1102972428 | CY95: 0.08372532131 | CZ95: 0.03915734553 | DA95: 0.005872217135 | DB95: 0.02260082977 | DC95: 0.06641560245 | DD95: 0.1410958741 | DE95: 0.01556780552 | DF95: -0.02431547394 | DG95: -0.02287543764 | DH95: -0.06001431697 | DI95: -0.03180345294 | DJ95: -0.04223564535 | DK95: -0.03277863575 | DL95: -0.004922129316 | DM95: 0.0396369707 | DN95: 0.02816825979 | DO95: 0.1039699324 | DP95: 0.1394133086 | DQ95: 0.142010505 | DR95: 0.1175014474 | DS95: 0.101243448 | DT95: 0.2262331094 | DU95: 0.2047689586 | DV95: 0.03789564365 | DW95: 0.07019009409 | DX95: 0.07178713973
C97: Random Index | E97: Index | F97: =F85 -> 0.45 | G97: =F86 -> 0.1 | H97: =AVERAGE(I97:DX97) -> 0.9410426298 | I97: 1 | J97: =I97*(1+J92)-J95 -> 1.006443227 | K97: =J97*(1+K92)-K95 -> 1.549491307 | L97: 1.845438018 | M97: 1.440525438 | N97: 1.342315672 | O97: 1.295985446 | P97: 1.920395939 | Q97: 0.6787469668 | R97: 0.2083650989 | S97: 0.2771844766 | T97: 0.2500477816 | U97: 0.4056597707 | V97: 0.3367501668 | W97: 0.4250897384 | X97: 0.3893908834 | Y97: 0.5083460752 | Z97: 0.9277340156 | AA97: 0.8984117437 | AB97: 1.224013604 | AC97: 0.7323317092 | AD97: 0.483737554 | AE97: 0.5546865557 | AF97: 0.7621134566 | AG97: 0.4268189701 | AH97: 0.3802562377 | AI97: 0.5579627585 | AJ97: 0.8437780667 | AK97: 0.8653612372 | AL97: 1.20026094 | AM97: 1.424142838 | AN97: 0.782097499 | AO97: 0.7239824521 | AP97: 0.7186599269 | AQ97: 0.02226226071 | AR97: 0.1257126205 | AS97: 0.1885796956 | AT97: 0.3023689705 | AU97: 0.2453192731 | AV97: 0.3160479292 | AW97: 0.5397068552 | AX97: 0.3490448607 | AY97: 0.5002098904 | AZ97: 0.1021752886 | BA97: 0.1863995347 | BB97: 0.1790937713 | BC97: 0.1229990268 | BD97: 0.136186354 | BE97: 0.2471593087 | BF97: 0.2360884501 | BG97: 0.2499422699 | BH97: 0.2957614063 | BI97: 0.5083647556 | BJ97: 0.5169936951 | BK97: 0.7458326946 | BL97: 1.065468692 | BM97: 1.073588135 | BN97: 0.9116287026 | BO97: 0.7188796123 | BP97: 0.6793346877 | BQ97: 0.347945512 | BR97: 0.4277580131 | BS97: 0.766742764 | BT97: 0.9082941555 | BU97: 0.9164278193 | BV97: 0.5544610895 | BW97: =BV97*(1+BW92)-BW95 -> 0.72011612 | BX97: 1.317864542 | BY97: 1.959470675 | BZ97: 0.7271637297 | CA97: 0.407288955 | CB97: 1.019777048 | CC97: 1.286835571 | CD97: 0.5752656643 | CE97: 0.3285792484 | CF97: 0.4950779962 | CG97: 0.5400096642 | CH97: 0.7639102784 | CI97: 0.4437579249 | CJ97: 0.5606444291 | CK97: 0.6268091667 | CL97: 0.8103446705 | CM97: 0.4355972712 | CN97: 0.9410819987 | CO97: 1.04612458 | CP97: 1.098372471 | CQ97: 0.9499041456 | CR97: 1.248907459 | CS97: 1.068328198 | CT97: 1.655080221 | CU97: 1.707371462 | CV97: 2.27749014 | CW97: 2.102972428 | CX97: 1.837253213 | CY97: 1.391573455 | CZ97: 1.058722171 | DA97: 1.226008298 | DB97: 1.664156025 | DC97: 2.410958741 | DD97: 1.155678055 | DE97: 0.7568452606 | DF97: 0.7712456236 | DG97: 0.3998568303 | DH97: 0.6819654706 | DI97: 0.5776435465 | DJ97: 0.6722136425 | DK97: 0.9507787068 | DL97: 1.396369707 | DM97: 1.281682598 | DN97: 2.039699324 | DO97: 2.394133086 | DP97: 2.42010505 | DQ97: 2.175014474 | DR97: 2.01243448 | DS97: 3.262331094 | DT97: 3.047689586 | DU97: 1.378956436 | DV97: 1.701900941 | DW97: 1.717871397 | DX97: 2.554578634
C98: Adjusted Revenue | E98: Euro | I98: =I88*I97 -> 0 | J98: =J88*J97 -> 95.26589014 | K98: =K88*K97 -> 149.6020221 | L98: 181.738925 | M98: 144.7003545 | N98: 137.5319168 | O98: 135.4406818 | P98: 204.7104238 | Q98: 73.80015129 | R98: 23.10864594 | S98: 31.35585145 | T98: 28.85179724 | U98: 47.74324989 | V98: 40.42574467 | W98: 52.05123067 | X98: 48.63359032 | Y98: 64.76050091 | Z98: 120.551988 | AA98: 119.0766171 | AB98: 165.4769412 | AC98: 100.9855536 | AD98: 68.03954293 | AE98: 79.57916808 | AF98: 111.5248266 | AG98: 63.70827 | AH98: 57.89334153 | AI98: 86.64782282 | AJ98: 133.6536569 | AK98: 139.8138591 | AL98: 197.8010672 | AM98: 239.3903717 | AN98: 0 | AO98: 0 | AP98: 0 | AQ98: 0 | AR98: 0 | AS98: 0 | AT98: 0 | AU98: 0 | AV98: 0 | AW98: 0 | AX98: 0 | AY98: 0 | AZ98: 0 | BA98: 0 | BB98: 0 | BC98: 0 | BD98: 0 | BE98: 0 | BF98: 0 | BG98: 0 | BH98: 0 | BI98: 0 | BJ98: 0 | BK98: 0 | BL98: 0 | BM98: 0 | BN98: 0 | BO98: 0 | BP98: 0 | BQ98: 0 | BR98: 0 | BS98: 0 | BT98: 0 | BU98: 0 | BV98: =BV88*BV97 -> 0 | BW98: 0 | BX98: 0 | BY98: 0 | BZ98: 0 | CA98: 0 | CB98: 0 | CC98: 0 | CD98: 0 | CE98: 0 | CF98: 0 | CG98: 0 | CH98: 0 | CI98: 0 | CJ98: 0 | CK98: 0 | CL98: 0 | CM98: 0 | CN98: 0 | CO98: 0 | CP98: 0 | CQ98: 0 | CR98: 0 | CS98: 0 | CT98: 0 | CU98: 0 | CV98: 0 | CW98: 0 | CX98: 0 | CY98: 0 | CZ98: 0 | DA98: 0 | DB98: 0 | DC98: 0 | DD98: 0 | DE98: 0 | DF98: 0 | DG98: 0 | DH98: 0 | DI98: 0 | DJ98: 0 | DK98: 0 | DL98: 0 | DM98: 0 | DN98: 0 | DO98: 0 | DP98: 0 | DQ98: 0 | DR98: 0 | DS98: 0 | DT98: 0 | DU98: 0 | DV98: 0 | DW98: 0 | DX98: 0
C99: Operating Expense | E99: Euro | I99: =I11 -> 0 | J99: 10.2 | K99: 10.404 | L99: 10.61208 | M99: 10.8243216 | N99: 11.04080803 | O99: 11.26162419 | P99: 11.48685668 | Q99: 11.71659381 | R99: 11.95092569 | S99: 12.1899442 | T99: 12.43374308 | U99: 12.68241795 | V99: 12.9360663 | W99: 13.19478763 | X99: 13.45868338 | Y99: 13.72785705 | Z99: 14.00241419 | AA99: 14.28246248 | AB99: 14.56811173 | AC99: 14.85947396 | AD99: 15.15666344 | AE99: 15.45979671 | AF99: 15.76899264 | AG99: 16.08437249 | AH99: 16.40605994 | AI99: 16.73418114 | AJ99: 17.06886477 | AK99: 17.41024206 | AL99: 17.7584469 | AM99: 18.11361584 | AN99: 0 | AO99: =AO11 -> 0 | AP99: 0 | AQ99: 0 | AR99: 0 | AS99: 0 | AT99: 0 | AU99: 0 | AV99: 0 | AW99: 0 | AX99: 0 | AY99: 0 | AZ99: 0 | BA99: 0 | BB99: 0 | BC99: 0 | BD99: 0 | BE99: 0 | BF99: 0 | BG99: 0 | BH99: 0 | BI99: 0 | BJ99: 0 | BK99: 0 | BL99: 0 | BM99: 0 | BN99: 0 | BO99: 0 | BP99: 0 | BQ99: 0 | BR99: 0 | BS99: 0 | BT99: 0 | BU99: =BU11 -> 0 | BV99: 0 | BW99: 0 | BX99: 0 | BY99: 0 | BZ99: 0 | CA99: 0 | CB99: 0 | CC99: 0 | CD99: 0 | CE99: 0 | CF99: 0 | CG99: 0 | CH99: 0 | CI99: 0 | CJ99: 0 | CK99: 0 | CL99: 0 | CM99: 0 | CN99: 0 | CO99: 0 | CP99: 0 | CQ99: 0 | CR99: 0 | CS99: 0 | CT99: 0 | CU99: 0 | CV99: 0 | CW99: 0 | CX99: 0 | CY99: 0 | CZ99: 0 | DA99: =DA11 -> 0 | DB99: 0 | DC99: 0 | DD99: 0 | DE99: 0 | DF99: 0 | DG99: 0 | DH99: 0 | DI99: 0 | DJ99: 0 | DK99: 0 | DL99: 0 | DM99: 0 | DN99: 0 | DO99: 0 | DP99: 0 | DQ99: 0 | DR99: 0 | DS99: 0 | DT99: 0 | DU99: 0 | DV99: 0 | DW99: 0 | DX99: 0
C100: Adjusted EBITDA | E100: Euro | I100: =I98-I99 -> 0 | J100: =J98-J99 -> 85.06589014 | K100: 139.1980221 | L100: 171.126845 | M100: 133.8760329 | N100: 126.4911088 | O100: 124.1790576 | P100: 193.2235671 | Q100: 62.08355748 | R100: 11.15772026 | S100: 19.16590725 | T100: 16.41805415 | U100: 35.06083194 | V100: 27.48967836 | W100: 38.85644304 | X100: 35.17490694 | Y100: 51.03264386 | Z100: 106.5495738 | AA100: 104.7941546 | AB100: 150.9088294 | AC100: 86.12607961 | AD100: 52.88287949 | AE100: 64.11937137 | AF100: 95.75583398 | AG100: 47.62389751 | AH100: 41.48728158 | AI100: 69.91364167 | AJ100: 116.5847921 | AK100: 122.4036171 | AL100: 180.0426203 | AM100: 221.2767559 | AN100: 0 | AO100: 0 | AP100: 0 | AQ100: 0 | AR100: 0 | AS100: 0 | AT100: 0 | AU100: 0 | AV100: 0 | AW100: 0 | AX100: 0 | AY100: 0 | AZ100: 0 | BA100: 0 | BB100: 0 | BC100: 0 | BD100: 0 | BE100: 0 | BF100: 0 | BG100: 0 | BH100: 0 | BI100: 0 | BJ100: 0 | BK100: 0 | BL100: 0 | BM100: 0 | BN100: 0 | BO100: 0 | BP100: 0 | BQ100: 0 | BR100: 0 | BS100: 0 | BT100: 0 | BU100: 0 | BV100: =BV98-BV99 -> 0 | BW100: 0 | BX100: 0 | BY100: 0 | BZ100: 0 | CA100: 0 | CB100: 0 | CC100: 0 | CD100: 0 | CE100: 0 | CF100: 0 | CG100: 0 | CH100: 0 | CI100: 0 | CJ100: 0 | CK100: 0 | CL100: 0 | CM100: 0 | CN100: 0 | CO100: 0 | CP100: 0 | CQ100: 0 | CR100: 0 | CS100: 0 | CT100: 0 | CU100: 0 | CV100: 0 | CW100: 0 | CX100: 0 | CY100: 0 | CZ100: 0 | DA100: 0 | DB100: 0 | DC100: 0 | DD100: 0 | DE100: 0 | DF100: 0 | DG100: 0 | DH100: 0 | DI100: 0 | DJ100: 0 | DK100: 0 | DL100: 0 | DM100: 0 | DN100: 0 | DO100: 0 | DP100: 0 | DQ100: 0 | DR100: 0 | DS100: 0 | DT100: 0 | DU100: 0 | DV100: 0 | DW100: 0 | DX100: 0
B102: Adjusted Senior Debt Schedule with Sweep
C103: Base Debt
D104: Opening Debt | E104: Euro | I104: =H108 -> 0 | J104: =I108 -> 758.9394521 | K104: 708.0258373 | L104: 600.6889779 | M104: 456.5931369 | N104: 343.2637952 | O104: 232.2195572 | P104: 118.4903797 | Q104: 0 | R104: 0 | S104: 0 | T104: 0 | U104: 0 | V104: 0 | W104: 0 | X104: 0 | Y104: 0 | Z104: 0 | AA104: 0 | AB104: 0 | AC104: 0 | AD104: 0 | AE104: 0 | AF104: 0 | AG104: 0 | AH104: 0 | AI104: 0 | AJ104: 0 | AK104: 0 | AL104: 0 | AM104: 0 | AN104: 0 | AO104: 0 | AP104: 0 | AQ104: 0 | AR104: 0 | AS104: 0 | AT104: 0 | AU104: 0 | AV104: 0 | AW104: 0 | AX104: 0 | AY104: 0 | AZ104: 0 | BA104: 0 | BB104: 0 | BC104: 0 | BD104: 0 | BE104: 0 | BF104: 0 | BG104: 0 | BH104: 0 | BI104: 0 | BJ104: 0 | BK104: 0 | BL104: 0 | BM104: 0 | BN104: 0 | BO104: 0 | BP104: 0 | BQ104: 0 | BR104: 0 | BS104: 0 | BT104: 0 | BU104: 0 | BV104: =BU108 -> 0 | BW104: 0 | BX104: 0 | BY104: 0 | BZ104: 0 | CA104: 0 | CB104: 0 | CC104: 0 | CD104: 0 | CE104: 0 | CF104: 0 | CG104: 0 | CH104: 0 | CI104: 0 | CJ104: 0 | CK104: 0 | CL104: 0 | CM104: 0 | CN104: 0 | CO104: 0 | CP104: 0 | CQ104: 0 | CR104: 0 | CS104: 0 | CT104: 0 | CU104: 0 | CV104: 0 | CW104: 0 | CX104: 0 | CY104: 0 | CZ104: 0 | DA104: 0 | DB104: 0 | DC104: 0 | DD104: 0 | DE104: 0 | DF104: 0 | DG104: 0 | DH104: 0 | DI104: 0 | DJ104: 0 | DK104: 0 | DL104: 0 | DM104: 0 | DN104: 0 | DO104: 0 | DP104: 0 | DQ104: 0 | DR104: 0 | DS104: 0 | DT104: 0 | DU104: 0 | DV104: 0 | DW104: 0 | DX104: 0
D105: Add: Debt Issue | E105: Euro | I105: =I36 -> 758.9394521 | J105: 0 | K105: 0 | L105: 0 | M105: 0 | N105: 0 | O105: 0 | P105: 0 | Q105: 0 | R105: 0 | S105: 0 | T105: 0 | U105: 0 | V105: 0 | W105: 0 | X105: 0 | Y105: 0 | Z105: 0 | AA105: 0 | AB105: 0 | AC105: 0 | AD105: 0 | AE105: 0 | AF105: 0 | AG105: 0 | AH105: 0 | AI105: 0 | AJ105: 0 | AK105: 0 | AL105: 0 | AM105: 0 | AN105: 0 | AO105: =AO36 -> 0 | AP105: 0 | AQ105: 0 | AR105: 0 | AS105: 0 | AT105: 0 | AU105: 0 | AV105: 0 | AW105: 0 | AX105: 0 | AY105: 0 | AZ105: 0 | BA105: 0 | BB105: 0 | BC105: 0 | BD105: 0 | BE105: 0 | BF105: 0 | BG105: 0 | BH105: 0 | BI105: 0 | BJ105: 0 | BK105: 0 | BL105: 0 | BM105: 0 | BN105: 0 | BO105: 0 | BP105: 0 | BQ105: 0 | BR105: 0 | BS105: 0 | BT105: 0 | BU105: =BU36 -> 0 | BV105: 0 | BW105: 0 | BX105: 0 | BY105: 0 | BZ105: 0 | CA105: 0 | CB105: 0 | CC105: 0 | CD105: 0 | CE105: 0 | CF105: 0 | CG105: 0 | CH105: 0 | CI105: 0 | CJ105: 0 | CK105: 0 | CL105: 0 | CM105: 0 | CN105: 0 | CO105: 0 | CP105: 0 | CQ105: 0 | CR105: 0 | CS105: 0 | CT105: 0 | CU105: 0 | CV105: 0 | CW105: 0 | CX105: 0 | CY105: 0 | CZ105: 0 | DA105: =DA36 -> 0 | DB105: 0 | DC105: 0 | DD105: 0 | DE105: 0 | DF105: 0 | DG105: 0 | DH105: 0 | DI105: 0 | DJ105: 0 | DK105: 0 | DL105: 0 | DM105: 0 | DN105: 0 | DO105: 0 | DP105: 0 | DQ105: 0 | DR105: 0 | DS105: 0 | DT105: 0 | DU105: 0 | DV105: 0 | DW105: 0 | DX105: 0
D106: Less: Scheduled | E106: Euro | I106: =MIN(I60,I104) -> 0 | J106: =MIN(J60,J104) -> 13.44772465 | K106: 15.00487226 | L106: 16.65113152 | M106: 18.39089323 | N106: 20.22875344 | O106: 22.16952277 | P106: 24.21823622 | Q106: 0 | R106: 0 | S106: 0 | T106: 0 | U106: 0 | V106: 0 | W106: 0 | X106: 0 | Y106: 0 | Z106: 0 | AA106: 0 | AB106: 0 | AC106: 0 | AD106: 0 | AE106: -4.988010005e-14 | AF106: -5.212470455e-14 | AG106: -5.447031626e-14 | AH106: -5.692148049e-14 | AI106: -5.948294711e-14 | AJ106: -6.215967973e-14 | AK106: -6.495686532e-14 | AL106: -6.787992426e-14 | AM106: -7.093452085e-14 | AN106: -7.412657429e-14 | AO106: -7.746227013e-14 | AP106: -8.094807229e-14 | AQ106: -8.459073554e-14 | AR106: -8.839731864e-14 | AS106: -9.237519798e-14 | AT106: -9.653208189e-14 | AU106: -1.008760256e-13 | AV106: -1.054154467e-13 | AW106: -1.101591418e-13 | AX106: -1.151163032e-13 | AY106: -1.202965369e-13 | AZ106: -1.25709881e-13 | BA106: -1.313668257e-13 | BB106: -1.372783328e-13 | BC106: -1.434558578e-13 | BD106: -1.499113714e-13 | BE106: -1.566573831e-13 | BF106: -1.637069653e-13 | BG106: -1.710737788e-13 | BH106: -1.787720988e-13 | BI106: -1.868168433e-13 | BJ106: -1.952236012e-13 | BK106: -2.040086633e-13 | BL106: -2.131890531e-13 | BM106: -2.227825605e-13 | BN106: -2.328077757e-13 | BO106: -2.432841256e-13 | BP106: -2.542319113e-13 | BQ106: -2.656723473e-13 | BR106: -2.776276029e-13 | BS106: -2.901208451e-13 | BT106: -3.031762831e-13 | BU106: -3.168192158e-13 | BV106: =MIN(BV60,BV104) -> -3.310760805e-13 | BW106: -3.459745042e-13 | BX106: -3.615433569e-13 | BY106: -3.778128079e-13 | BZ106: -3.948143843e-13 | CA106: -4.125810316e-13 | CB106: -4.31147178e-13 | CC106: -4.50548801e-13 | CD106: -4.70823497e-13 | CE106: -4.920105544e-13 | CF106: -5.141510294e-13 | CG106: -5.372878257e-13 | CH106: -5.614657778e-13 | CI106: -5.867317378e-13 | CJ106: -6.13134666e-13 | CK106: -6.40725726e-13 | CL106: -6.695583837e-13 | CM106: -6.996885109e-13 | CN106: -7.311744939e-13 | CO106: -7.640773462e-13 | CP106: -7.984608267e-13 | CQ106: -8.343915639e-13 | CR106: -8.719391843e-13 | CS106: -9.111764476e-13 | CT106: -9.521793878e-13 | CU106: -9.950274602e-13 | CV106: -1.039803696e-12 | CW106: -1.086594862e-12 | CX106: -1.135491631e-12 | CY106: -1.186588754e-12 | CZ106: -1.239985248e-12 | DA106: -1.295784585e-12 | DB106: -1.354094891e-12 | DC106: -1.415029161e-12 | DD106: -1.478705473e-12 | DE106: -1.545247219e-12 | DF106: -1.614783344e-12 | DG106: -1.687448595e-12 | DH106: -1.763383782e-12 | DI106: -1.842736052e-12 | DJ106: -1.925659174e-12 | DK106: -2.012313837e-12 | DL106: -2.10286796e-12 | DM106: -2.197497018e-12 | DN106: -2.296384384e-12 | DO106: -2.399721681e-12 | DP106: -2.507709157e-12 | DQ106: -2.620556069e-12 | DR106: -2.738481092e-12 | DS106: -2.861712741e-12 | DT106: -2.990489814e-12 | DU106: -3.125061856e-12 | DV106: -3.265689639e-12 | DW106: -3.412645673e-12 | DX106: -3.566214728e-12
D107: Less: Cash Sweep | E107: Euro | I107: =I133 -> 0 | J107: =J133 -> 37.46589014 | K107: 92.33198715 | L107: 127.4447095 | M107: 94.93844853 | N107: 90.81548456 | O107: 91.55965474 | P107: 94.27214345 | Q107: 0 | R107: 0 | S107: 0 | T107: 0 | U107: 0 | V107: 0 | W107: 0 | X107: 0 | Y107: 0 | Z107: 0 | AA107: 0 | AB107: 0 | AC107: 0 | AD107: 0 | AE107: 4.988010005e-14 | AF107: 5.212470455e-14 | AG107: 5.447031626e-14 | AH107: 5.692148049e-14 | AI107: 5.948294711e-14 | AJ107: 6.215967973e-14 | AK107: 6.495686532e-14 | AL107: 6.787992426e-14 | AM107: 7.093452085e-14 | AN107: 7.412657429e-14 | AO107: 7.746227013e-14 | AP107: 8.094807229e-14 | AQ107: 8.459073554e-14 | AR107: 8.839731864e-14 | AS107: 9.237519798e-14 | AT107: 9.653208189e-14 | AU107: 1.008760256e-13 | AV107: 1.054154467e-13 | AW107: 1.101591418e-13 | AX107: 1.151163032e-13 | AY107: 1.202965369e-13 | AZ107: 1.25709881e-13 | BA107: 1.313668257e-13 | BB107: 1.372783328e-13 | BC107: 1.434558578e-13 | BD107: 1.499113714e-13 | BE107: 1.566573831e-13 | BF107: 1.637069653e-13 | BG107: 1.710737788e-13 | BH107: 1.787720988e-13 | BI107: 1.868168433e-13 | BJ107: 1.952236012e-13 | BK107: 2.040086633e-13 | BL107: 2.131890531e-13 | BM107: 2.227825605e-13 | BN107: 2.328077757e-13 | BO107: 2.432841256e-13 | BP107: 2.542319113e-13 | BQ107: 2.656723473e-13 | BR107: 2.776276029e-13 | BS107: 2.901208451e-13 | BT107: 3.031762831e-13 | BU107: 3.168192158e-13 | BV107: =BV133 -> 3.310760805e-13 | BW107: 3.459745042e-13 | BX107: 3.615433569e-13 | BY107: 3.778128079e-13 | BZ107: 3.948143843e-13 | CA107: 4.125810316e-13 | CB107: 4.31147178e-13 | CC107: 4.50548801e-13 | CD107: 4.70823497e-13 | CE107: 4.920105544e-13 | CF107: 5.141510294e-13 | CG107: 5.372878257e-13 | CH107: 5.614657778e-13 | CI107: 5.867317378e-13 | CJ107: 6.13134666e-13 | CK107: 6.40725726e-13 | CL107: 6.695583837e-13 | CM107: 6.996885109e-13 | CN107: 7.311744939e-13 | CO107: 7.640773462e-13 | CP107: 7.984608267e-13 | CQ107: 8.343915639e-13 | CR107: 8.719391843e-13 | CS107: 9.111764476e-13 | CT107: 9.521793878e-13 | CU107: 9.950274602e-13 | CV107: 1.039803696e-12 | CW107: 1.086594862e-12 | CX107: 1.135491631e-12 | CY107: 1.186588754e-12 | CZ107: 1.239985248e-12 | DA107: 1.295784585e-12 | DB107: 1.354094891e-12 | DC107: 1.415029161e-12 | DD107: 1.478705473e-12 | DE107: 1.545247219e-12 | DF107: 1.614783344e-12 | DG107: 1.687448595e-12 | DH107: 1.763383782e-12 | DI107: 1.842736052e-12 | DJ107: 1.925659174e-12 | DK107: 2.012313837e-12 | DL107: 2.10286796e-12 | DM107: 2.197497018e-12 | DN107: 2.296384384e-12 | DO107: 2.399721681e-12 | DP107: 2.507709157e-12 | DQ107: 2.620556069e-12 | DR107: 2.738481092e-12 | DS107: 2.861712741e-12 | DT107: 2.990489814e-12 | DU107: 3.125061856e-12 | DV107: 3.265689639e-12 | DW107: 3.412645673e-12 | DX107: 3.566214728e-12
D108: Closing Balance | E108: Euro | I108: =I104+I105-I106-I107 -> 758.9394521 | J108: =J104+J105-J106-J107 -> 708.0258373 | K108: 600.6889779 | L108: 456.5931369 | M108: 343.2637952 | N108: 232.2195572 | O108: 118.4903797 | P108: 0 | Q108: 0 | R108: 0 | S108: 0 | T108: 0 | U108: 0 | V108: 0 | W108: 0 | X108: 0 | Y108: 0 | Z108: 0 | AA108: 0 | AB108: 0 | AC108: 0 | AD108: 0 | AE108: 0 | AF108: 0 | AG108: 0 | AH108: 0 | AI108: 0 | AJ108: 0 | AK108: 0 | AL108: 0 | AM108: 0 | AN108: 0 | AO108: 0 | AP108: 0 | AQ108: 0 | AR108: 0 | AS108: 0 | AT108: 0 | AU108: 0 | AV108: 0 | AW108: 0 | AX108: 0 | AY108: 0 | AZ108: 0 | BA108: 0 | BB108: 0 | BC108: 0 | BD108: 0 | BE108: 0 | BF108: 0 | BG108: 0 | BH108: 0 | BI108: 0 | BJ108: 0 | BK108: 0 | BL108: 0 | BM108: 0 | BN108: 0 | BO108: 0 | BP108: 0 | BQ108: 0 | BR108: 0 | BS108: 0 | BT108: 0 | BU108: 0 | BV108: =BV104+BV105-BV106-BV107 -> 0 | BW108: 0 | BX108: 0 | BY108: 0 | BZ108: 0 | CA108: 0 | CB108: 0 | CC108: 0 | CD108: 0 | CE108: 0 | CF108: 0 | CG108: 0 | CH108: 0 | CI108: 0 | CJ108: 0 | CK108: 0 | CL108: 0 | CM108: 0 | CN108: 0 | CO108: 0 | CP108: 0 | CQ108: 0 | CR108: 0 | CS108: 0 | CT108: 0 | CU108: 0 | CV108: 0 | CW108: 0 | CX108: 0 | CY108: 0 | CZ108: 0 | DA108: 0 | DB108: 0 | DC108: 0 | DD108: 0 | DE108: 0 | DF108: 0 | DG108: 0 | DH108: 0 | DI108: 0 | DJ108: 0 | DK108: 0 | DL108: 0 | DM108: 0 | DN108: 0 | DO108: 0 | DP108: 0 | DQ108: 0 | DR108: 0 | DS108: 0 | DT108: 0 | DU108: 0 | DV108: 0 | DW108: 0 | DX108: 0
D109: Interest | E109: Euro | F109: =$F$39 -> 0.045 | I109: =I104*$F$109 -> 0 | J109: =J104*$F$109 -> 34.15227535 | K109: 31.86116268 | L109: 27.03100401 | M109: 20.54669116 | N109: 15.44687078 | O109: 10.44988007 | P109: 5.332067085 | Q109: 0 | R109: 0 | S109: 0 | T109: 0 | U109: 0 | V109: 0 | W109: 0 | X109: 0 | Y109: 0 | Z109: 0 | AA109: 0 | AB109: 0 | AC109: 0 | AD109: 0 | AE109: 0 | AF109: 0 | AG109: 0 | AH109: 0 | AI109: 0 | AJ109: 0 | AK109: 0 | AL109: 0 | AM109: 0 | AN109: 0 | AO109: 0 | AP109: 0 | AQ109: 0 | AR109: 0 | AS109: 0 | AT109: 0 | AU109: 0 | AV109: 0 | AW109: 0 | AX109: 0 | AY109: 0 | AZ109: 0 | BA109: 0 | BB109: 0 | BC109: 0 | BD109: 0 | BE109: 0 | BF109: 0 | BG109: 0 | BH109: 0 | BI109: 0 | BJ109: 0 | BK109: 0 | BL109: 0 | BM109: 0 | BN109: 0 | BO109: 0 | BP109: 0 | BQ109: 0 | BR109: 0 | BS109: 0 | BT109: 0 | BU109: 0 | BV109: =BV104*$F$109 -> 0 | BW109: 0 | BX109: 0 | BY109: 0 | BZ109: 0 | CA109: 0 | CB109: 0 | CC109: 0 | CD109: 0 | CE109: 0 | CF109: 0 | CG109: 0 | CH109: 0 | CI109: 0 | CJ109: 0 | CK109: 0 | CL109: 0 | CM109: 0 | CN109: 0 | CO109: 0 | CP109: 0 | CQ109: 0 | CR109: 0 | CS109: 0 | CT109: 0 | CU109: 0 | CV109: 0 | CW109: 0 | CX109: 0 | CY109: 0 | CZ109: 0 | DA109: 0 | DB109: 0 | DC109: 0 | DD109: 0 | DE109: 0 | DF109: 0 | DG109: 0 | DH109: 0 | DI109: 0 | DJ109: 0 | DK109: 0 | DL109: 0 | DM109: 0 | DN109: 0 | DO109: 0 | DP109: 0 | DQ109: 0 | DR109: 0 | DS109: 0 | DT109: 0 | DU109: 0 | DV109: 0 | DW109: 0 | DX109: 0
C111: Defaulted Senior Debt
D112: Opening Balance | E112: Euro | I112: =H115 -> 0 | J112: =I115 -> 0 | K112: 0 | L112: 0 | M112: 0 | N112: 0 | O112: 0 | P112: 0 | Q112: 0 | R112: 0 | S112: 0 | T112: 0 | U112: 0 | V112: 0 | W112: 0 | X112: 0 | Y112: 0 | Z112: 0 | AA112: 0 | AB112: 0 | AC112: 0 | AD112: 0 | AE112: 0 | AF112: 0 | AG112: 0 | AH112: 0 | AI112: 0 | AJ112: 0 | AK112: 0 | AL112: 0 | AM112: 0 | AN112: 0 | AO112: 0 | AP112: 0 | AQ112: 0 | AR112: 0 | AS112: 0 | AT112: 0 | AU112: 0 | AV112: 0 | AW112: 0 | AX112: 0 | AY112: 0 | AZ112: 0 | BA112: 0 | BB112: 0 | BC112: 0 | BD112: 0 | BE112: 0 | BF112: 0 | BG112: 0 | BH112: 0 | BI112: 0 | BJ112: 0 | BK112: 0 | BL112: 0 | BM112: 0 | BN112: 0 | BO112: 0 | BP112: 0 | BQ112: 0 | BR112: 0 | BS112: 0 | BT112: 0 | BU112: 0 | BV112: =BU115 -> 0 | BW112: 0 | BX112: 0 | BY112: 0 | BZ112: 0 | CA112: 0 | CB112: 0 | CC112: 0 | CD112: 0 | CE112: 0 | CF112: 0 | CG112: 0 | CH112: 0 | CI112: 0 | CJ112: 0 | CK112: 0 | CL112: 0 | CM112: 0 | CN112: 0 | CO112: 0 | CP112: 0 | CQ112: 0 | CR112: 0 | CS112: 0 | CT112: 0 | CU112: 0 | CV112: 0 | CW112: 0 | CX112: 0 | CY112: 0 | CZ112: 0 | DA112: 0 | DB112: 0 | DC112: 0 | DD112: 0 | DE112: 0 | DF112: 0 | DG112: 0 | DH112: 0 | DI112: 0 | DJ112: 0 | DK112: 0 | DL112: 0 | DM112: 0 | DN112: 0 | DO112: 0 | DP112: 0 | DQ112: 0 | DR112: 0 | DS112: 0 | DT112: 0 | DU112: 0 | DV112: 0 | DW112: 0 | DX112: 0
D113: Add: Default | E113: Euro | I113: =I136 -> 0 | J113: =J136 -> 0 | K113: 0 | L113: 0 | M113: 0 | N113: 0 | O113: 0 | P113: 0 | Q113: 0 | R113: 0 | S113: 0 | T113: 0 | U113: 0 | V113: 0 | W113: 0 | X113: 0 | Y113: 0 | Z113: 0 | AA113: 0 | AB113: 0 | AC113: 0 | AD113: 0 | AE113: 0 | AF113: 0 | AG113: 0 | AH113: 0 | AI113: 0 | AJ113: 0 | AK113: 0 | AL113: 0 | AM113: 0 | AN113: 0 | AO113: 0 | AP113: 0 | AQ113: 0 | AR113: 0 | AS113: 0 | AT113: 0 | AU113: 0 | AV113: 0 | AW113: 0 | AX113: 0 | AY113: 0 | AZ113: 0 | BA113: 0 | BB113: 0 | BC113: 0 | BD113: 0 | BE113: 0 | BF113: 0 | BG113: 0 | BH113: 0 | BI113: 0 | BJ113: 0 | BK113: 0 | BL113: 0 | BM113: 0 | BN113: 0 | BO113: 0 | BP113: 0 | BQ113: 0 | BR113: 0 | BS113: 0 | BT113: 0 | BU113: 0 | BV113: =BV136 -> 0 | BW113: 0 | BX113: 0 | BY113: 0 | BZ113: 0 | CA113: 0 | CB113: 0 | CC113: 0 | CD113: 0 | CE113: 0 | CF113: 0 | CG113: 0 | CH113: 0 | CI113: 0 | CJ113: 0 | CK113: 0 | CL113: 0 | CM113: 0 | CN113: 0 | CO113: 0 | CP113: 0 | CQ113: 0 | CR113: 0 | CS113: 0 | CT113: 0 | CU113: 0 | CV113: 0 | CW113: 0 | CX113: 0 | CY113: 0 | CZ113: 0 | DA113: 0 | DB113: 0 | DC113: 0 | DD113: 0 | DE113: 0 | DF113: 0 | DG113: 0 | DH113: 0 | DI113: 0 | DJ113: 0 | DK113: 0 | DL113: 0 | DM113: 0 | DN113: 0 | DO113: 0 | DP113: 0 | DQ113: 0 | DR113: 0 | DS113: 0 | DT113: 0 | DU113: 0 | DV113: 0 | DW113: 0 | DX113: 0
D114: Less: Repayment of Default | E114: Euro | I114: =I137 -> 0 | J114: =J137 -> 0 | K114: 0 | L114: 0 | M114: 0 | N114: 0 | O114: 0 | P114: 0 | Q114: 0 | R114: 0 | S114: 0 | T114: 0 | U114: 0 | V114: 0 | W114: 0 | X114: 0 | Y114: 0 | Z114: 0 | AA114: 0 | AB114: 0 | AC114: 0 | AD114: 0 | AE114: 0 | AF114: 0 | AG114: 0 | AH114: 0 | AI114: 0 | AJ114: 0 | AK114: 0 | AL114: 0 | AM114: 0 | AN114: 0 | AO114: 0 | AP114: 0 | AQ114: 0 | AR114: 0 | AS114: 0 | AT114: 0 | AU114: 0 | AV114: 0 | AW114: 0 | AX114: 0 | AY114: 0 | AZ114: 0 | BA114: 0 | BB114: 0 | BC114: 0 | BD114: 0 | BE114: 0 | BF114: 0 | BG114: 0 | BH114: 0 | BI114: 0 | BJ114: 0 | BK114: 0 | BL114: 0 | BM114: 0 | BN114: 0 | BO114: 0 | BP114: 0 | BQ114: 0 | BR114: 0 | BS114: 0 | BT114: 0 | BU114: 0 | BV114: =BV137 -> 0 | BW114: 0 | BX114: 0 | BY114: 0 | BZ114: 0 | CA114: 0 | CB114: 0 | CC114: 0 | CD114: 0 | CE114: 0 | CF114: 0 | CG114: 0 | CH114: 0 | CI114: 0 | CJ114: 0 | CK114: 0 | CL114: 0 | CM114: 0 | CN114: 0 | CO114: 0 | CP114: 0 | CQ114: 0 | CR114: 0 | CS114: 0 | CT114: 0 | CU114: 0 | CV114: 0 | CW114: 0 | CX114: 0 | CY114: 0 | CZ114: 0 | DA114: 0 | DB114: 0 | DC114: 0 | DD114: 0 | DE114: 0 | DF114: 0 | DG114: 0 | DH114: 0 | DI114: 0 | DJ114: 0 | DK114: 0 | DL114: 0 | DM114: 0 | DN114: 0 | DO114: 0 | DP114: 0 | DQ114: 0 | DR114: 0 | DS114: 0 | DT114: 0 | DU114: 0 | DV114: 0 | DW114: 0 | DX114: 0
D115: Closing Balance | E115: Euro | I115: =I112+I113-I114 -> 0 | J115: =J112+J113-J114 -> 0 | K115: 0 | L115: 0 | M115: 0 | N115: 0 | O115: 0 | P115: 0 | Q115: 0 | R115: 0 | S115: 0 | T115: 0 | U115: 0 | V115: 0 | W115: 0 | X115: 0 | Y115: 0 | Z115: 0 | AA115: 0 | AB115: 0 | AC115: 0 | AD115: 0 | AE115: 0 | AF115: 0 | AG115: 0 | AH115: 0 | AI115: 0 | AJ115: 0 | AK115: 0 | AL115: 0 | AM115: 0 | AN115: 0 | AO115: 0 | AP115: 0 | AQ115: 0 | AR115: 0 | AS115: 0 | AT115: 0 | AU115: 0 | AV115: 0 | AW115: 0 | AX115: 0 | AY115: 0 | AZ115: 0 | BA115: 0 | BB115: 0 | BC115: 0 | BD115: 0 | BE115: 0 | BF115: 0 | BG115: 0 | BH115: 0 | BI115: 0 | BJ115: 0 | BK115: 0 | BL115: 0 | BM115: 0 | BN115: 0 | BO115: 0 | BP115: 0 | BQ115: 0 | BR115: 0 | BS115: 0 | BT115: 0 | BU115: 0 | BV115: =BV112+BV113-BV114 -> 0 | BW115: 0 | BX115: 0 | BY115: 0 | BZ115: 0 | CA115: 0 | CB115: 0 | CC115: 0 | CD115: 0 | CE115: 0 | CF115: 0 | CG115: 0 | CH115: 0 | CI115: 0 | CJ115: 0 | CK115: 0 | CL115: 0 | CM115: 0 | CN115: 0 | CO115: 0 | CP115: 0 | CQ115: 0 | CR115: 0 | CS115: 0 | CT115: 0 | CU115: 0 | CV115: 0 | CW115: 0 | CX115: 0 | CY115: 0 | CZ115: 0 | DA115: 0 | DB115: 0 | DC115: 0 | DD115: 0 | DE115: 0 | DF115: 0 | DG115: 0 | DH115: 0 | DI115: 0 | DJ115: 0 | DK115: 0 | DL115: 0 | DM115: 0 | DN115: 0 | DO115: 0 | DP115: 0 | DQ115: 0 | DR115: 0 | DS115: 0 | DT115: 0 | DU115: 0 | DV115: 0 | DW115: 0 | DX115: 0
D116: Interest | E116: Euro | F116: =$F$39 -> 0.045 | I116: =I112*$F$116 -> 0 | J116: =J112*$F$116 -> 0 | K116: 0 | L116: 0 | M116: 0 | N116: 0 | O116: 0 | P116: 0 | Q116: 0 | R116: 0 | S116: 0 | T116: 0 | U116: 0 | V116: 0 | W116: 0 | X116: 0 | Y116: 0 | Z116: 0 | AA116: 0 | AB116: 0 | AC116: 0 | AD116: 0 | AE116: 0 | AF116: 0 | AG116: 0 | AH116: 0 | AI116: 0 | AJ116: 0 | AK116: 0 | AL116: 0 | AM116: 0 | AN116: 0 | AO116: 0 | AP116: 0 | AQ116: 0 | AR116: 0 | AS116: 0 | AT116: 0 | AU116: 0 | AV116: 0 | AW116: 0 | AX116: 0 | AY116: 0 | AZ116: 0 | BA116: 0 | BB116: 0 | BC116: 0 | BD116: 0 | BE116: 0 | BF116: 0 | BG116: 0 | BH116: 0 | BI116: 0 | BJ116: 0 | BK116: 0 | BL116: 0 | BM116: 0 | BN116: 0 | BO116: 0 | BP116: 0 | BQ116: 0 | BR116: 0 | BS116: 0 | BT116: 0 | BU116: 0 | BV116: =BV112*$F$116 -> 0 | BW116: 0 | BX116: 0 | BY116: 0 | BZ116: 0 | CA116: 0 | CB116: 0 | CC116: 0 | CD116: 0 | CE116: 0 | CF116: 0 | CG116: 0 | CH116: 0 | CI116: 0 | CJ116: 0 | CK116: 0 | CL116: 0 | CM116: 0 | CN116: 0 | CO116: 0 | CP116: 0 | CQ116: 0 | CR116: 0 | CS116: 0 | CT116: 0 | CU116: 0 | CV116: 0 | CW116: 0 | CX116: 0 | CY116: 0 | CZ116: 0 | DA116: 0 | DB116: 0 | DC116: 0 | DD116: 0 | DE116: 0 | DF116: 0 | DG116: 0 | DH116: 0 | DI116: 0 | DJ116: 0 | DK116: 0 | DL116: 0 | DM116: 0 | DN116: 0 | DO116: 0 | DP116: 0 | DQ116: 0 | DR116: 0 | DS116: 0 | DT116: 0 | DU116: 0 | DV116: 0 | DW116: 0 | DX116: 0
D118: Senior Interest | E118: Euro | I118: =I116+I109 -> 0 | J118: =J116+J109 -> 34.15227535 | K118: 31.86116268 | L118: 27.03100401 | M118: 20.54669116 | N118: 15.44687078 | O118: 10.44988007 | P118: 5.332067085 | Q118: 0 | R118: 0 | S118: 0 | T118: 0 | U118: 0 | V118: 0 | W118: 0 | X118: 0 | Y118: 0 | Z118: 0 | AA118: 0 | AB118: 0 | AC118: 0 | AD118: 0 | AE118: 0 | AF118: 0 | AG118: 0 | AH118: 0 | AI118: 0 | AJ118: 0 | AK118: 0 | AL118: 0 | AM118: 0 | AN118: 0 | AO118: 0 | AP118: 0 | AQ118: 0 | AR118: 0 | AS118: 0 | AT118: 0 | AU118: 0 | AV118: 0 | AW118: 0 | AX118: 0 | AY118: 0 | AZ118: 0 | BA118: 0 | BB118: 0 | BC118: 0 | BD118: 0 | BE118: 0 | BF118: 0 | BG118: 0 | BH118: 0 | BI118: 0 | BJ118: 0 | BK118: 0 | BL118: 0 | BM118: 0 | BN118: 0 | BO118: 0 | BP118: 0 | BQ118: 0 | BR118: 0 | BS118: 0 | BT118: 0 | BU118: 0 | BV118: =BV116+BV109 -> 0 | BW118: 0 | BX118: 0 | BY118: 0 | BZ118: 0 | CA118: 0 | CB118: 0 | CC118: 0 | CD118: 0 | CE118: 0 | CF118: 0 | CG118: 0 | CH118: 0 | CI118: 0 | CJ118: 0 | CK118: 0 | CL118: 0 | CM118: 0 | CN118: 0 | CO118: 0 | CP118: 0 | CQ118: 0 | CR118: 0 | CS118: 0 | CT118: 0 | CU118: 0 | CV118: 0 | CW118: 0 | CX118: 0 | CY118: 0 | CZ118: 0 | DA118: 0 | DB118: 0 | DC118: 0 | DD118: 0 | DE118: 0 | DF118: 0 | DG118: 0 | DH118: 0 | DI118: 0 | DJ118: 0 | DK118: 0 | DL118: 0 | DM118: 0 | DN118: 0 | DO118: 0 | DP118: 0 | DQ118: 0 | DR118: 0 | DS118: 0 | DT118: 0 | DU118: 0 | DV118: 0 | DW118: 0 | DX118: 0
D120: Closing Defaul | E120: Euro | F120: =DX116 -> 0
B122: Adjusted Cash Waterfall
C123: Adjusted Revenues | E123: Euro | I123: =I88*I97 -> 0 | J123: 95.26589014 | K123: 149.6020221 | L123: 181.738925 | M123: 144.7003545 | N123: 137.5319168 | O123: 135.4406818 | P123: 204.7104238 | Q123: 73.80015129 | R123: 23.10864594 | S123: 31.35585145 | T123: 28.85179724 | U123: 47.74324989 | V123: 40.42574467 | W123: 52.05123067 | X123: 48.63359032 | Y123: 64.76050091 | Z123: 120.551988 | AA123: 119.0766171 | AB123: 165.4769412 | AC123: 100.9855536 | AD123: 68.03954293 | AE123: 79.57916808 | AF123: 111.5248266 | AG123: 63.70827 | AH123: 57.89334153 | AI123: 86.64782282 | AJ123: 133.6536569 | AK123: 139.8138591 | AL123: 197.8010672 | AM123: 239.3903717 | AN123: 0 | AO123: =AO88*AO97 -> 0 | AP123: 0 | AQ123: 0 | AR123: 0 | AS123: 0 | AT123: 0 | AU123: 0 | AV123: 0 | AW123: 0 | AX123: 0 | AY123: 0 | AZ123: 0 | BA123: 0 | BB123: 0 | BC123: 0 | BD123: 0 | BE123: 0 | BF123: 0 | BG123: 0 | BH123: 0 | BI123: 0 | BJ123: 0 | BK123: 0 | BL123: 0 | BM123: 0 | BN123: 0 | BO123: 0 | BP123: 0 | BQ123: 0 | BR123: 0 | BS123: 0 | BT123: 0 | BU123: =BU88*BU97 -> 0 | BV123: 0 | BW123: 0 | BX123: 0 | BY123: 0 | BZ123: 0 | CA123: 0 | CB123: 0 | CC123: 0 | CD123: 0 | CE123: 0 | CF123: 0 | CG123: 0 | CH123: 0 | CI123: 0 | CJ123: 0 | CK123: 0 | CL123: 0 | CM123: 0 | CN123: 0 | CO123: 0 | CP123: 0 | CQ123: 0 | CR123: 0 | CS123: 0 | CT123: 0 | CU123: 0 | CV123: 0 | CW123: 0 | CX123: 0 | CY123: 0 | CZ123: 0 | DA123: =DA88*DA97 -> 0 | DB123: 0 | DC123: 0 | DD123: 0 | DE123: 0 | DF123: 0 | DG123: 0 | DH123: 0 | DI123: 0 | DJ123: 0 | DK123: 0 | DL123: 0 | DM123: 0 | DN123: 0 | DO123: 0 | DP123: 0 | DQ123: 0 | DR123: 0 | DS123: 0 | DT123: 0 | DU123: 0 | DV123: 0 | DW123: 0 | DX123: 0
C124: Less Operating Expense | E124: Euro | I124: =I11 -> 0 | J124: 10.2 | K124: 10.404 | L124: 10.61208 | M124: 10.8243216 | N124: 11.04080803 | O124: 11.26162419 | P124: 11.48685668 | Q124: 11.71659381 | R124: 11.95092569 | S124: 12.1899442 | T124: 12.43374308 | U124: 12.68241795 | V124: 12.9360663 | W124: 13.19478763 | X124: 13.45868338 | Y124: 13.72785705 | Z124: 14.00241419 | AA124: 14.28246248 | AB124: 14.56811173 | AC124: 14.85947396 | AD124: 15.15666344 | AE124: 15.45979671 | AF124: 15.76899264 | AG124: 16.08437249 | AH124: 16.40605994 | AI124: 16.73418114 | AJ124: 17.06886477 | AK124: 17.41024206 | AL124: 17.7584469 | AM124: 18.11361584 | AN124: 0 | AO124: =AO11 -> 0 | AP124: 0 | AQ124: 0 | AR124: 0 | AS124: 0 | AT124: 0 | AU124: 0 | AV124: 0 | AW124: 0 | AX124: 0 | AY124: 0 | AZ124: 0 | BA124: 0 | BB124: 0 | BC124: 0 | BD124: 0 | BE124: 0 | BF124: 0 | BG124: 0 | BH124: 0 | BI124: 0 | BJ124: 0 | BK124: 0 | BL124: 0 | BM124: 0 | BN124: 0 | BO124: 0 | BP124: 0 | BQ124: 0 | BR124: 0 | BS124: 0 | BT124: 0 | BU124: =BU11 -> 0 | BV124: 0 | BW124: 0 | BX124: 0 | BY124: 0 | BZ124: 0 | CA124: 0 | CB124: 0 | CC124: 0 | CD124: 0 | CE124: 0 | CF124: 0 | CG124: 0 | CH124: 0 | CI124: 0 | CJ124: 0 | CK124: 0 | CL124: 0 | CM124: 0 | CN124: 0 | CO124: 0 | CP124: 0 | CQ124: 0 | CR124: 0 | CS124: 0 | CT124: 0 | CU124: 0 | CV124: 0 | CW124: 0 | CX124: 0 | CY124: 0 | CZ124: 0 | DA124: =DA11 -> 0 | DB124: 0 | DC124: 0 | DD124: 0 | DE124: 0 | DF124: 0 | DG124: 0 | DH124: 0 | DI124: 0 | DJ124: 0 | DK124: 0 | DL124: 0 | DM124: 0 | DN124: 0 | DO124: 0 | DP124: 0 | DQ124: 0 | DR124: 0 | DS124: 0 | DT124: 0 | DU124: 0 | DV124: 0 | DW124: 0 | DX124: 0
C125: EBITDA | I125: =I123-I124 -> 0 | J125: =J123-J124 -> 85.06589014 | K125: 139.1980221 | L125: 171.126845 | M125: 133.8760329 | N125: 126.4911088 | O125: 124.1790576 | P125: 193.2235671 | Q125: 62.08355748 | R125: 11.15772026 | S125: 19.16590725 | T125: 16.41805415 | U125: 35.06083194 | V125: 27.48967836 | W125: 38.85644304 | X125: 35.17490694 | Y125: 51.03264386 | Z125: 106.5495738 | AA125: 104.7941546 | AB125: 150.9088294 | AC125: 86.12607961 | AD125: 52.88287949 | AE125: 64.11937137 | AF125: 95.75583398 | AG125: 47.62389751 | AH125: 41.48728158 | AI125: 69.91364167 | AJ125: 116.5847921 | AK125: 122.4036171 | AL125: 180.0426203 | AM125: 221.2767559 | AN125: 0 | AO125: 0 | AP125: 0 | AQ125: 0 | AR125: 0 | AS125: 0 | AT125: 0 | AU125: 0 | AV125: 0 | AW125: 0 | AX125: 0 | AY125: 0 | AZ125: 0 | BA125: 0 | BB125: 0 | BC125: 0 | BD125: 0 | BE125: 0 | BF125: 0 | BG125: 0 | BH125: 0 | BI125: 0 | BJ125: 0 | BK125: 0 | BL125: 0 | BM125: 0 | BN125: 0 | BO125: 0 | BP125: 0 | BQ125: 0 | BR125: 0 | BS125: 0 | BT125: 0 | BU125: 0 | BV125: =BV123-BV124 -> 0 | BW125: 0 | BX125: 0 | BY125: 0 | BZ125: 0 | CA125: 0 | CB125: 0 | CC125: 0 | CD125: 0 | CE125: 0 | CF125: 0 | CG125: 0 | CH125: 0 | CI125: 0 | CJ125: 0 | CK125: 0 | CL125: 0 | CM125: 0 | CN125: 0 | CO125: 0 | CP125: 0 | CQ125: 0 | CR125: 0 | CS125: 0 | CT125: 0 | CU125: 0 | CV125: 0 | CW125: 0 | CX125: 0 | CY125: 0 | CZ125: 0 | DA125: 0 | DB125: 0 | DC125: 0 | DD125: 0 | DE125: 0 | DF125: 0 | DG125: 0 | DH125: 0 | DI125: 0 | DJ125: 0 | DK125: 0 | DL125: 0 | DM125: 0 | DN125: 0 | DO125: 0 | DP125: 0 | DQ125: 0 | DR125: 0 | DS125: 0 | DT125: 0 | DU125: 0 | DV125: 0 | DW125: 0 | DX125: 0
C127: Less: Interest | E127: Euro | I127: =I118 -> 0 | J127: 34.15227535 | K127: 31.86116268 | L127: 27.03100401 | M127: 20.54669116 | N127: 15.44687078 | O127: 10.44988007 | P127: 5.332067085 | Q127: 0 | R127: 0 | S127: 0 | T127: 0 | U127: 0 | V127: 0 | W127: 0 | X127: 0 | Y127: 0 | Z127: 0 | AA127: 0 | AB127: 0 | AC127: 0 | AD127: 0 | AE127: 0 | AF127: 0 | AG127: 0 | AH127: 0 | AI127: 0 | AJ127: 0 | AK127: 0 | AL127: 0 | AM127: 0 | AN127: 0 | AO127: =AO118 -> 0 | AP127: 0 | AQ127: 0 | AR127: 0 | AS127: 0 | AT127: 0 | AU127: 0 | AV127: 0 | AW127: 0 | AX127: 0 | AY127: 0 | AZ127: 0 | BA127: 0 | BB127: 0 | BC127: 0 | BD127: 0 | BE127: 0 | BF127: 0 | BG127: 0 | BH127: 0 | BI127: 0 | BJ127: 0 | BK127: 0 | BL127: 0 | BM127: 0 | BN127: 0 | BO127: 0 | BP127: 0 | BQ127: 0 | BR127: 0 | BS127: 0 | BT127: 0 | BU127: =BU118 -> 0 | BV127: 0 | BW127: 0 | BX127: 0 | BY127: 0 | BZ127: 0 | CA127: 0 | CB127: 0 | CC127: 0 | CD127: 0 | CE127: 0 | CF127: 0 | CG127: 0 | CH127: 0 | CI127: 0 | CJ127: 0 | CK127: 0 | CL127: 0 | CM127: 0 | CN127: 0 | CO127: 0 | CP127: 0 | CQ127: 0 | CR127: 0 | CS127: 0 | CT127: 0 | CU127: 0 | CV127: 0 | CW127: 0 | CX127: 0 | CY127: 0 | CZ127: 0 | DA127: =DA118 -> 0 | DB127: 0 | DC127: 0 | DD127: 0 | DE127: 0 | DF127: 0 | DG127: 0 | DH127: 0 | DI127: 0 | DJ127: 0 | DK127: 0 | DL127: 0 | DM127: 0 | DN127: 0 | DO127: 0 | DP127: 0 | DQ127: 0 | DR127: 0 | DS127: 0 | DT127: 0 | DU127: 0 | DV127: 0 | DW127: 0 | DX127: 0
C128: Less: Debt Repayment Scheduled | E128: Euro | I128: =I106 -> 0 | J128: 13.44772465 | K128: 15.00487226 | L128: 16.65113152 | M128: 18.39089323 | N128: 20.22875344 | O128: 22.16952277 | P128: 24.21823622 | Q128: 0 | R128: 0 | S128: 0 | T128: 0 | U128: 0 | V128: 0 | W128: 0 | X128: 0 | Y128: 0 | Z128: 0 | AA128: 0 | AB128: 0 | AC128: 0 | AD128: 0 | AE128: -4.988010005e-14 | AF128: -5.212470455e-14 | AG128: -5.447031626e-14 | AH128: -5.692148049e-14 | AI128: -5.948294711e-14 | AJ128: -6.215967973e-14 | AK128: -6.495686532e-14 | AL128: -6.787992426e-14 | AM128: -7.093452085e-14 | AN128: -7.412657429e-14 | AO128: =AO106 -> -7.746227013e-14 | AP128: -8.094807229e-14 | AQ128: -8.459073554e-14 | AR128: -8.839731864e-14 | AS128: -9.237519798e-14 | AT128: -9.653208189e-14 | AU128: -1.008760256e-13 | AV128: -1.054154467e-13 | AW128: -1.101591418e-13 | AX128: -1.151163032e-13 | AY128: -1.202965369e-13 | AZ128: -1.25709881e-13 | BA128: -1.313668257e-13 | BB128: -1.372783328e-13 | BC128: -1.434558578e-13 | BD128: -1.499113714e-13 | BE128: -1.566573831e-13 | BF128: -1.637069653e-13 | BG128: -1.710737788e-13 | BH128: -1.787720988e-13 | BI128: -1.868168433e-13 | BJ128: -1.952236012e-13 | BK128: -2.040086633e-13 | BL128: -2.131890531e-13 | BM128: -2.227825605e-13 | BN128: -2.328077757e-13 | BO128: -2.432841256e-13 | BP128: -2.542319113e-13 | BQ128: -2.656723473e-13 | BR128: -2.776276029e-13 | BS128: -2.901208451e-13 | BT128: -3.031762831e-13 | BU128: =BU106 -> -3.168192158e-13 | BV128: -3.310760805e-13 | BW128: -3.459745042e-13 | BX128: -3.615433569e-13 | BY128: -3.778128079e-13 | BZ128: -3.948143843e-13 | CA128: -4.125810316e-13 | CB128: -4.31147178e-13 | CC128: -4.50548801e-13 | CD128: -4.70823497e-13 | CE128: -4.920105544e-13 | CF128: -5.141510294e-13 | CG128: -5.372878257e-13 | CH128: -5.614657778e-13 | CI128: -5.867317378e-13 | CJ128: -6.13134666e-13 | CK128: -6.40725726e-13 | CL128: -6.695583837e-13 | CM128: -6.996885109e-13 | CN128: -7.311744939e-13 | CO128: -7.640773462e-13 | CP128: -7.984608267e-13 | CQ128: -8.343915639e-13 | CR128: -8.719391843e-13 | CS128: -9.111764476e-13 | CT128: -9.521793878e-13 | CU128: -9.950274602e-13 | CV128: -1.039803696e-12 | CW128: -1.086594862e-12 | CX128: -1.135491631e-12 | CY128: -1.186588754e-12 | CZ128: -1.239985248e-12 | DA128: =DA106 -> -1.295784585e-12 | DB128: -1.354094891e-12 | DC128: -1.415029161e-12 | DD128: -1.478705473e-12 | DE128: -1.545247219e-12 | DF128: -1.614783344e-12 | DG128: -1.687448595e-12 | DH128: -1.763383782e-12 | DI128: -1.842736052e-12 | DJ128: -1.925659174e-12 | DK128: -2.012313837e-12 | DL128: -2.10286796e-12 | DM128: -2.197497018e-12 | DN128: -2.296384384e-12 | DO128: -2.399721681e-12 | DP128: -2.507709157e-12 | DQ128: -2.620556069e-12 | DR128: -2.738481092e-12 | DS128: -2.861712741e-12 | DT128: -2.990489814e-12 | DU128: -3.125061856e-12 | DV128: -3.265689639e-12 | DW128: -3.412645673e-12 | DX128: -3.566214728e-12
C129: Cash Flow After Scheduled Debt Service | E129: Euro | I129: =I125-I127-I128 -> 0 | J129: =J125-J127-J128 -> 37.46589014 | K129: 92.33198715 | L129: 127.4447095 | M129: 94.93844853 | N129: 90.81548456 | O129: 91.55965474 | P129: 163.6732638 | Q129: 62.08355748 | R129: 11.15772026 | S129: 19.16590725 | T129: 16.41805415 | U129: 35.06083194 | V129: 27.48967836 | W129: 38.85644304 | X129: 35.17490694 | Y129: 51.03264386 | Z129: 106.5495738 | AA129: 104.7941546 | AB129: 150.9088294 | AC129: 86.12607961 | AD129: 52.88287949 | AE129: 64.11937137 | AF129: 95.75583398 | AG129: 47.62389751 | AH129: 41.48728158 | AI129: 69.91364167 | AJ129: 116.5847921 | AK129: 122.4036171 | AL129: 180.0426203 | AM129: 221.2767559 | AN129: 7.412657429e-14 | AO129: 7.746227013e-14 | AP129: 8.094807229e-14 | AQ129: 8.459073554e-14 | AR129: 8.839731864e-14 | AS129: 9.237519798e-14 | AT129: 9.653208189e-14 | AU129: 1.008760256e-13 | AV129: 1.054154467e-13 | AW129: 1.101591418e-13 | AX129: 1.151163032e-13 | AY129: 1.202965369e-13 | AZ129: 1.25709881e-13 | BA129: 1.313668257e-13 | BB129: 1.372783328e-13 | BC129: 1.434558578e-13 | BD129: 1.499113714e-13 | BE129: 1.566573831e-13 | BF129: 1.637069653e-13 | BG129: 1.710737788e-13 | BH129: 1.787720988e-13 | BI129: 1.868168433e-13 | BJ129: 1.952236012e-13 | BK129: 2.040086633e-13 | BL129: 2.131890531e-13 | BM129: 2.227825605e-13 | BN129: 2.328077757e-13 | BO129: 2.432841256e-13 | BP129: 2.542319113e-13 | BQ129: 2.656723473e-13 | BR129: 2.776276029e-13 | BS129: 2.901208451e-13 | BT129: 3.031762831e-13 | BU129: 3.168192158e-13 | BV129: =BV125-BV127-BV128 -> 3.310760805e-13 | BW129: 3.459745042e-13 | BX129: 3.615433569e-13 | BY129: 3.778128079e-13 | BZ129: 3.948143843e-13 | CA129: 4.125810316e-13 | CB129: 4.31147178e-13 | CC129: 4.50548801e-13 | CD129: 4.70823497e-13 | CE129: 4.920105544e-13 | CF129: 5.141510294e-13 | CG129: 5.372878257e-13 | CH129: 5.614657778e-13 | CI129: 5.867317378e-13 | CJ129: 6.13134666e-13 | CK129: 6.40725726e-13 | CL129: 6.695583837e-13 | CM129: 6.996885109e-13 | CN129: 7.311744939e-13 | CO129: 7.640773462e-13 | CP129: 7.984608267e-13 | CQ129: 8.343915639e-13 | CR129: 8.719391843e-13 | CS129: 9.111764476e-13 | CT129: 9.521793878e-13 | CU129: 9.950274602e-13 | CV129: 1.039803696e-12 | CW129: 1.086594862e-12 | CX129: 1.135491631e-12 | CY129: 1.186588754e-12 | CZ129: 1.239985248e-12 | DA129: 1.295784585e-12 | DB129: 1.354094891e-12 | DC129: 1.415029161e-12 | DD129: 1.478705473e-12 | DE129: 1.545247219e-12 | DF129: 1.614783344e-12 | DG129: 1.687448595e-12 | DH129: 1.763383782e-12 | DI129: 1.842736052e-12 | DJ129: 1.925659174e-12 | DK129: 2.012313837e-12 | DL129: 2.10286796e-12 | DM129: 2.197497018e-12 | DN129: 2.296384384e-12 | DO129: 2.399721681e-12 | DP129: 2.507709157e-12 | DQ129: 2.620556069e-12 | DR129: 2.738481092e-12 | DS129: 2.861712741e-12 | DT129: 2.990489814e-12 | DU129: 3.125061856e-12 | DV129: 3.265689639e-12 | DW129: 3.412645673e-12 | DX129: 3.566214728e-12
C131: Cash Sweep | E131: % | F131: =G131/100 -> 1 | G131: 100 | I131: =$F$131 -> 1 | J131: =$F$131 -> 1 | K131: 1 | L131: 1 | M131: 1 | N131: 1 | O131: 1 | P131: 1 | Q131: 1 | R131: 1 | S131: 1 | T131: 1 | U131: 1 | V131: 1 | W131: 1 | X131: 1 | Y131: 1 | Z131: 1 | AA131: 1 | AB131: 1 | AC131: 1 | AD131: 1 | AE131: 1 | AF131: 1 | AG131: 1 | AH131: 1 | AI131: 1 | AJ131: 1 | AK131: 1 | AL131: 1 | AM131: 1 | AN131: 1 | AO131: 1 | AP131: 1 | AQ131: 1 | AR131: 1 | AS131: 1 | AT131: 1 | AU131: 1 | AV131: 1 | AW131: 1 | AX131: 1 | AY131: 1 | AZ131: 1 | BA131: 1 | BB131: 1 | BC131: 1 | BD131: 1 | BE131: 1 | BF131: 1 | BG131: 1 | BH131: 1 | BI131: 1 | BJ131: 1 | BK131: 1 | BL131: 1 | BM131: 1 | BN131: 1 | BO131: 1 | BP131: 1 | BQ131: 1 | BR131: 1 | BS131: 1 | BT131: 1 | BU131: 1 | BV131: =$F$131 -> 1 | BW131: 1 | BX131: 1 | BY131: 1 | BZ131: 1 | CA131: 1 | CB131: 1 | CC131: 1 | CD131: 1 | CE131: 1 | CF131: 1 | CG131: 1 | CH131: 1 | CI131: 1 | CJ131: 1 | CK131: 1 | CL131: 1 | CM131: 1 | CN131: 1 | CO131: 1 | CP131: 1 | CQ131: 1 | CR131: 1 | CS131: 1 | CT131: 1 | CU131: 1 | CV131: 1 | CW131: 1 | CX131: 1 | CY131: 1 | CZ131: 1 | DA131: 1 | DB131: 1 | DC131: 1 | DD131: 1 | DE131: 1 | DF131: 1 | DG131: 1 | DH131: 1 | DI131: 1 | DJ131: 1 | DK131: 1 | DL131: 1 | DM131: 1 | DN131: 1 | DO131: 1 | DP131: 1 | DQ131: 1 | DR131: 1 | DS131: 1 | DT131: 1 | DU131: 1 | DV131: 1 | DW131: 1 | DX131: 1
C132: Cash Swept Before Constraint | E132: Euro | I132: =MAX(I129,0)*I131 -> 0 | J132: =MAX(J129,0)*J131 -> 37.46589014 | K132: 92.33198715 | L132: 127.4447095 | M132: 94.93844853 | N132: 90.81548456 | O132: 91.55965474 | P132: 163.6732638 | Q132: 62.08355748 | R132: 11.15772026 | S132: 19.16590725 | T132: 16.41805415 | U132: 35.06083194 | V132: 27.48967836 | W132: 38.85644304 | X132: 35.17490694 | Y132: 51.03264386 | Z132: 106.5495738 | AA132: 104.7941546 | AB132: 150.9088294 | AC132: 86.12607961 | AD132: 52.88287949 | AE132: 64.11937137 | AF132: 95.75583398 | AG132: 47.62389751 | AH132: 41.48728158 | AI132: 69.91364167 | AJ132: 116.5847921 | AK132: 122.4036171 | AL132: 180.0426203 | AM132: 221.2767559 | AN132: 7.412657429e-14 | AO132: 7.746227013e-14 | AP132: 8.094807229e-14 | AQ132: 8.459073554e-14 | AR132: 8.839731864e-14 | AS132: 9.237519798e-14 | AT132: 9.653208189e-14 | AU132: 1.008760256e-13 | AV132: 1.054154467e-13 | AW132: 1.101591418e-13 | AX132: 1.151163032e-13 | AY132: 1.202965369e-13 | AZ132: 1.25709881e-13 | BA132: 1.313668257e-13 | BB132: 1.372783328e-13 | BC132: 1.434558578e-13 | BD132: 1.499113714e-13 | BE132: 1.566573831e-13 | BF132: 1.637069653e-13 | BG132: 1.710737788e-13 | BH132: 1.787720988e-13 | BI132: 1.868168433e-13 | BJ132: 1.952236012e-13 | BK132: 2.040086633e-13 | BL132: 2.131890531e-13 | BM132: 2.227825605e-13 | BN132: 2.328077757e-13 | BO132: 2.432841256e-13 | BP132: 2.542319113e-13 | BQ132: 2.656723473e-13 | BR132: 2.776276029e-13 | BS132: 2.901208451e-13 | BT132: 3.031762831e-13 | BU132: 3.168192158e-13 | BV132: =MAX(BV129,0)*BV131 -> 3.310760805e-13 | BW132: 3.459745042e-13 | BX132: 3.615433569e-13 | BY132: 3.778128079e-13 | BZ132: 3.948143843e-13 | CA132: 4.125810316e-13 | CB132: 4.31147178e-13 | CC132: 4.50548801e-13 | CD132: 4.70823497e-13 | CE132: 4.920105544e-13 | CF132: 5.141510294e-13 | CG132: 5.372878257e-13 | CH132: 5.614657778e-13 | CI132: 5.867317378e-13 | CJ132: 6.13134666e-13 | CK132: 6.40725726e-13 | CL132: 6.695583837e-13 | CM132: 6.996885109e-13 | CN132: 7.311744939e-13 | CO132: 7.640773462e-13 | CP132: 7.984608267e-13 | CQ132: 8.343915639e-13 | CR132: 8.719391843e-13 | CS132: 9.111764476e-13 | CT132: 9.521793878e-13 | CU132: 9.950274602e-13 | CV132: 1.039803696e-12 | CW132: 1.086594862e-12 | CX132: 1.135491631e-12 | CY132: 1.186588754e-12 | CZ132: 1.239985248e-12 | DA132: 1.295784585e-12 | DB132: 1.354094891e-12 | DC132: 1.415029161e-12 | DD132: 1.478705473e-12 | DE132: 1.545247219e-12 | DF132: 1.614783344e-12 | DG132: 1.687448595e-12 | DH132: 1.763383782e-12 | DI132: 1.842736052e-12 | DJ132: 1.925659174e-12 | DK132: 2.012313837e-12 | DL132: 2.10286796e-12 | DM132: 2.197497018e-12 | DN132: 2.296384384e-12 | DO132: 2.399721681e-12 | DP132: 2.507709157e-12 | DQ132: 2.620556069e-12 | DR132: 2.738481092e-12 | DS132: 2.861712741e-12 | DT132: 2.990489814e-12 | DU132: 3.125061856e-12 | DV132: 3.265689639e-12 | DW132: 3.412645673e-12 | DX132: 3.566214728e-12
C133: Cash Swept After Constraint | I133: =MIN(I132,I104-I106) -> 0 | J133: 37.46589014 | K133: 92.33198715 | L133: 127.4447095 | M133: 94.93844853 | N133: 90.81548456 | O133: 91.55965474 | P133: 94.27214345 | Q133: 0 | R133: 0 | S133: 0 | T133: 0 | U133: 0 | V133: 0 | W133: 0 | X133: 0 | Y133: 0 | Z133: 0 | AA133: 0 | AB133: 0 | AC133: 0 | AD133: 0 | AE133: 4.988010005e-14 | AF133: 5.212470455e-14 | AG133: 5.447031626e-14 | AH133: 5.692148049e-14 | AI133: 5.948294711e-14 | AJ133: 6.215967973e-14 | AK133: 6.495686532e-14 | AL133: 6.787992426e-14 | AM133: 7.093452085e-14 | AN133: 7.412657429e-14 | AO133: =MIN(AO132,AO104-AO106) -> 7.746227013e-14 | AP133: 8.094807229e-14 | AQ133: 8.459073554e-14 | AR133: 8.839731864e-14 | AS133: 9.237519798e-14 | AT133: 9.653208189e-14 | AU133: 1.008760256e-13 | AV133: 1.054154467e-13 | AW133: 1.101591418e-13 | AX133: 1.151163032e-13 | AY133: 1.202965369e-13 | AZ133: 1.25709881e-13 | BA133: 1.313668257e-13 | BB133: 1.372783328e-13 | BC133: 1.434558578e-13 | BD133: 1.499113714e-13 | BE133: 1.566573831e-13 | BF133: 1.637069653e-13 | BG133: 1.710737788e-13 | BH133: 1.787720988e-13 | BI133: 1.868168433e-13 | BJ133: 1.952236012e-13 | BK133: 2.040086633e-13 | BL133: 2.131890531e-13 | BM133: 2.227825605e-13 | BN133: 2.328077757e-13 | BO133: 2.432841256e-13 | BP133: 2.542319113e-13 | BQ133: 2.656723473e-13 | BR133: 2.776276029e-13 | BS133: 2.901208451e-13 | BT133: 3.031762831e-13 | BU133: =MIN(BU132,BU104-BU106) -> 3.168192158e-13 | BV133: 3.310760805e-13 | BW133: 3.459745042e-13 | BX133: 3.615433569e-13 | BY133: 3.778128079e-13 | BZ133: 3.948143843e-13 | CA133: 4.125810316e-13 | CB133: 4.31147178e-13 | CC133: 4.50548801e-13 | CD133: 4.70823497e-13 | CE133: 4.920105544e-13 | CF133: 5.141510294e-13 | CG133: 5.372878257e-13 | CH133: 5.614657778e-13 | CI133: 5.867317378e-13 | CJ133: 6.13134666e-13 | CK133: 6.40725726e-13 | CL133: 6.695583837e-13 | CM133: 6.996885109e-13 | CN133: 7.311744939e-13 | CO133: 7.640773462e-13 | CP133: 7.984608267e-13 | CQ133: 8.343915639e-13 | CR133: 8.719391843e-13 | CS133: 9.111764476e-13 | CT133: 9.521793878e-13 | CU133: 9.950274602e-13 | CV133: 1.039803696e-12 | CW133: 1.086594862e-12 | CX133: 1.135491631e-12 | CY133: 1.186588754e-12 | CZ133: 1.239985248e-12 | DA133: =MIN(DA132,DA104-DA106) -> 1.295784585e-12 | DB133: 1.354094891e-12 | DC133: 1.415029161e-12 | DD133: 1.478705473e-12 | DE133: 1.545247219e-12 | DF133: 1.614783344e-12 | DG133: 1.687448595e-12 | DH133: 1.763383782e-12 | DI133: 1.842736052e-12 | DJ133: 1.925659174e-12 | DK133: 2.012313837e-12 | DL133: 2.10286796e-12 | DM133: 2.197497018e-12 | DN133: 2.296384384e-12 | DO133: 2.399721681e-12 | DP133: 2.507709157e-12 | DQ133: 2.620556069e-12 | DR133: 2.738481092e-12 | DS133: 2.861712741e-12 | DT133: 2.990489814e-12 | DU133: 3.125061856e-12 | DV133: 3.265689639e-12 | DW133: 3.412645673e-12 | DX133: 3.566214728e-12
C135: Cash Flow Before Default | E135: Euro | I135: =I129-I133 -> 0 | J135: =J129-J133 -> 0 | K135: 0 | L135: 0 | M135: 0 | N135: 0 | O135: 0 | P135: 69.40112037 | Q135: 62.08355748 | R135: 11.15772026 | S135: 19.16590725 | T135: 16.41805415 | U135: 35.06083194 | V135: 27.48967836 | W135: 38.85644304 | X135: 35.17490694 | Y135: 51.03264386 | Z135: 106.5495738 | AA135: 104.7941546 | AB135: 150.9088294 | AC135: 86.12607961 | AD135: 52.88287949 | AE135: 64.11937137 | AF135: 95.75583398 | AG135: 47.62389751 | AH135: 41.48728158 | AI135: 69.91364167 | AJ135: 116.5847921 | AK135: 122.4036171 | AL135: 180.0426203 | AM135: 221.2767559 | AN135: 0 | AO135: 0 | AP135: 0 | AQ135: 0 | AR135: 0 | AS135: 0 | AT135: 0 | AU135: 0 | AV135: 0 | AW135: 0 | AX135: 0 | AY135: 0 | AZ135: 0 | BA135: 0 | BB135: 0 | BC135: 0 | BD135: 0 | BE135: 0 | BF135: 0 | BG135: 0 | BH135: 0 | BI135: 0 | BJ135: 0 | BK135: 0 | BL135: 0 | BM135: 0 | BN135: 0 | BO135: 0 | BP135: 0 | BQ135: 0 | BR135: 0 | BS135: 0 | BT135: 0 | BU135: 0 | BV135: =BV129-BV133 -> 0 | BW135: 0 | BX135: 0 | BY135: 0 | BZ135: 0 | CA135: 0 | CB135: 0 | CC135: 0 | CD135: 0 | CE135: 0 | CF135: 0 | CG135: 0 | CH135: 0 | CI135: 0 | CJ135: 0 | CK135: 0 | CL135: 0 | CM135: 0 | CN135: 0 | CO135: 0 | CP135: 0 | CQ135: 0 | CR135: 0 | CS135: 0 | CT135: 0 | CU135: 0 | CV135: 0 | CW135: 0 | CX135: 0 | CY135: 0 | CZ135: 0 | DA135: 0 | DB135: 0 | DC135: 0 | DD135: 0 | DE135: 0 | DF135: 0 | DG135: 0 | DH135: 0 | DI135: 0 | DJ135: 0 | DK135: 0 | DL135: 0 | DM135: 0 | DN135: 0 | DO135: 0 | DP135: 0 | DQ135: 0 | DR135: 0 | DS135: 0 | DT135: 0 | DU135: 0 | DV135: 0 | DW135: 0 | DX135: 0
C136: Add: Repayment not Made from Default | E136: Euro | I136: =MAX(-I135,0)*I5 -> 0 | J136: =MAX(-J135,0)*J5 -> 0 | K136: 0 | L136: 0 | M136: 0 | N136: 0 | O136: 0 | P136: 0 | Q136: 0 | R136: 0 | S136: 0 | T136: 0 | U136: 0 | V136: 0 | W136: 0 | X136: 0 | Y136: 0 | Z136: 0 | AA136: 0 | AB136: 0 | AC136: 0 | AD136: 0 | AE136: 0 | AF136: 0 | AG136: 0 | AH136: 0 | AI136: 0 | AJ136: 0 | AK136: 0 | AL136: 0 | AM136: 0 | AN136: 0 | AO136: 0 | AP136: 0 | AQ136: 0 | AR136: 0 | AS136: 0 | AT136: 0 | AU136: 0 | AV136: 0 | AW136: 0 | AX136: 0 | AY136: 0 | AZ136: 0 | BA136: 0 | BB136: 0 | BC136: 0 | BD136: 0 | BE136: 0 | BF136: 0 | BG136: 0 | BH136: 0 | BI136: 0 | BJ136: 0 | BK136: 0 | BL136: 0 | BM136: 0 | BN136: 0 | BO136: 0 | BP136: 0 | BQ136: 0 | BR136: 0 | BS136: 0 | BT136: 0 | BU136: 0 | BV136: =MAX(-BV135,0)*BV5 -> 0 | BW136: 0 | BX136: 0 | BY136: 0 | BZ136: 0 | CA136: 0 | CB136: 0 | CC136: 0 | CD136: 0 | CE136: 0 | CF136: 0 | CG136: 0 | CH136: 0 | CI136: 0 | CJ136: 0 | CK136: 0 | CL136: 0 | CM136: 0 | CN136: 0 | CO136: 0 | CP136: 0 | CQ136: 0 | CR136: 0 | CS136: 0 | CT136: 0 | CU136: 0 | CV136: 0 | CW136: 0 | CX136: 0 | CY136: 0 | CZ136: 0 | DA136: 0 | DB136: 0 | DC136: 0 | DD136: 0 | DE136: 0 | DF136: 0 | DG136: 0 | DH136: 0 | DI136: 0 | DJ136: 0 | DK136: 0 | DL136: 0 | DM136: 0 | DN136: 0 | DO136: 0 | DP136: 0 | DQ136: 0 | DR136: 0 | DS136: 0 | DT136: 0 | DU136: 0 | DV136: 0 | DW136: 0 | DX136: 0
C137: Less: Repayment of Default | E137: Euro | I137: =MIN(MAX(I135,0),I112) -> 0 | J137: =MIN(MAX(J135,0),J112) -> 0 | K137: 0 | L137: 0 | M137: 0 | N137: 0 | O137: 0 | P137: 0 | Q137: 0 | R137: 0 | S137: 0 | T137: 0 | U137: 0 | V137: 0 | W137: 0 | X137: 0 | Y137: 0 | Z137: 0 | AA137: 0 | AB137: 0 | AC137: 0 | AD137: 0 | AE137: 0 | AF137: 0 | AG137: 0 | AH137: 0 | AI137: 0 | AJ137: 0 | AK137: 0 | AL137: 0 | AM137: 0 | AN137: 0 | AO137: 0 | AP137: 0 | AQ137: 0 | AR137: 0 | AS137: 0 | AT137: 0 | AU137: 0 | AV137: 0 | AW137: 0 | AX137: 0 | AY137: 0 | AZ137: 0 | BA137: 0 | BB137: 0 | BC137: 0 | BD137: 0 | BE137: 0 | BF137: 0 | BG137: 0 | BH137: 0 | BI137: 0 | BJ137: 0 | BK137: 0 | BL137: 0 | BM137: 0 | BN137: 0 | BO137: 0 | BP137: 0 | BQ137: 0 | BR137: 0 | BS137: 0 | BT137: 0 | BU137: 0 | BV137: =MIN(MAX(BV135,0),BV112) -> 0 | BW137: 0 | BX137: 0 | BY137: 0 | BZ137: 0 | CA137: 0 | CB137: 0 | CC137: 0 | CD137: 0 | CE137: 0 | CF137: 0 | CG137: 0 | CH137: 0 | CI137: 0 | CJ137: 0 | CK137: 0 | CL137: 0 | CM137: 0 | CN137: 0 | CO137: 0 | CP137: 0 | CQ137: 0 | CR137: 0 | CS137: 0 | CT137: 0 | CU137: 0 | CV137: 0 | CW137: 0 | CX137: 0 | CY137: 0 | CZ137: 0 | DA137: 0 | DB137: 0 | DC137: 0 | DD137: 0 | DE137: 0 | DF137: 0 | DG137: 0 | DH137: 0 | DI137: 0 | DJ137: 0 | DK137: 0 | DL137: 0 | DM137: 0 | DN137: 0 | DO137: 0 | DP137: 0 | DQ137: 0 | DR137: 0 | DS137: 0 | DT137: 0 | DU137: 0 | DV137: 0 | DW137: 0 | DX137: 0
C139: Cash Flow After Sweep | E139: Euro | I139: =I135+I136-I137 -> 0 | J139: =J135+J136-J137 -> 0 | K139: 0 | L139: 0 | M139: 0 | N139: 0 | O139: 0 | P139: 69.40112037 | Q139: 62.08355748 | R139: 11.15772026 | S139: 19.16590725 | T139: 16.41805415 | U139: 35.06083194 | V139: 27.48967836 | W139: 38.85644304 | X139: 35.17490694 | Y139: 51.03264386 | Z139: 106.5495738 | AA139: 104.7941546 | AB139: 150.9088294 | AC139: 86.12607961 | AD139: 52.88287949 | AE139: 64.11937137 | AF139: 95.75583398 | AG139: 47.62389751 | AH139: 41.48728158 | AI139: 69.91364167 | AJ139: 116.5847921 | AK139: 122.4036171 | AL139: 180.0426203 | AM139: 221.2767559 | AN139: 0 | AO139: 0 | AP139: 0 | AQ139: 0 | AR139: 0 | AS139: 0 | AT139: 0 | AU139: 0 | AV139: 0 | AW139: 0 | AX139: 0 | AY139: 0 | AZ139: 0 | BA139: 0 | BB139: 0 | BC139: 0 | BD139: 0 | BE139: 0 | BF139: 0 | BG139: 0 | BH139: 0 | BI139: 0 | BJ139: 0 | BK139: 0 | BL139: 0 | BM139: 0 | BN139: 0 | BO139: 0 | BP139: 0 | BQ139: 0 | BR139: 0 | BS139: 0 | BT139: 0 | BU139: 0 | BV139: =BV135+BV136-BV137 -> 0 | BW139: 0 | BX139: 0 | BY139: 0 | BZ139: 0 | CA139: 0 | CB139: 0 | CC139: 0 | CD139: 0 | CE139: 0 | CF139: 0 | CG139: 0 | CH139: 0 | CI139: 0 | CJ139: 0 | CK139: 0 | CL139: 0 | CM139: 0 | CN139: 0 | CO139: 0 | CP139: 0 | CQ139: 0 | CR139: 0 | CS139: 0 | CT139: 0 | CU139: 0 | CV139: 0 | CW139: 0 | CX139: 0 | CY139: 0 | CZ139: 0 | DA139: 0 | DB139: 0 | DC139: 0 | DD139: 0 | DE139: 0 | DF139: 0 | DG139: 0 | DH139: 0 | DI139: 0 | DJ139: 0 | DK139: 0 | DL139: 0 | DM139: 0 | DN139: 0 | DO139: 0 | DP139: 0 | DQ139: 0 | DR139: 0 | DS139: 0 | DT139: 0 | DU139: 0 | DV139: 0 | DW139: 0 | DX139: 0
C141: Dividends | I141: =I139 -> 0 | J141: 0 | K141: 0 | L141: 0 | M141: 0 | N141: 0 | O141: 0 | P141: 69.40112037 | Q141: 62.08355748 | R141: 11.15772026 | S141: 19.16590725 | T141: 16.41805415 | U141: 35.06083194 | V141: 27.48967836 | W141: 38.85644304 | X141: 35.17490694 | Y141: 51.03264386 | Z141: 106.5495738 | AA141: 104.7941546 | AB141: 150.9088294 | AC141: 86.12607961 | AD141: 52.88287949 | AE141: 64.11937137 | AF141: 95.75583398 | AG141: 47.62389751 | AH141: 41.48728158 | AI141: 69.91364167 | AJ141: 116.5847921 | AK141: 122.4036171 | AL141: 180.0426203 | AM141: 221.2767559 | AN141: 0 | AO141: =AO139 -> 0 | AP141: 0 | AQ141: 0 | AR141: 0 | AS141: 0 | AT141: 0 | AU141: 0 | AV141: 0 | AW141: 0 | AX141: 0 | AY141: 0 | AZ141: 0 | BA141: 0 | BB141: 0 | BC141: 0 | BD141: 0 | BE141: 0 | BF141: 0 | BG141: 0 | BH141: 0 | BI141: 0 | BJ141: 0 | BK141: 0 | BL141: 0 | BM141: 0 | BN141: 0 | BO141: 0 | BP141: 0 | BQ141: 0 | BR141: 0 | BS141: 0 | BT141: 0 | BU141: =BU139 -> 0 | BV141: 0 | BW141: 0 | BX141: 0 | BY141: 0 | BZ141: 0 | CA141: 0 | CB141: 0 | CC141: 0 | CD141: 0 | CE141: 0 | CF141: 0 | CG141: 0 | CH141: 0 | CI141: 0 | CJ141: 0 | CK141: 0 | CL141: 0 | CM141: 0 | CN141: 0 | CO141: 0 | CP141: 0 | CQ141: 0 | CR141: 0 | CS141: 0 | CT141: 0 | CU141: 0 | CV141: 0 | CW141: 0 | CX141: 0 | CY141: 0 | CZ141: 0 | DA141: =DA139 -> 0 | DB141: 0 | DC141: 0 | DD141: 0 | DE141: 0 | DF141: 0 | DG141: 0 | DH141: 0 | DI141: 0 | DJ141: 0 | DK141: 0 | DL141: 0 | DM141: 0 | DN141: 0 | DO141: 0 | DP141: 0 | DQ141: 0 | DR141: 0 | DS141: 0 | DT141: 0 | DU141: 0 | DV141: 0 | DW141: 0 | DX141: 0
B143: Ratios
C144: Equity Cash Flow | I144: =I141-I54 -> -241.0605479 | J144: 0 | K144: 0 | L144: 0 | M144: 0 | N144: 0 | O144: 0 | P144: 69.40112037 | Q144: 62.08355748 | R144: 11.15772026 | S144: 19.16590725 | T144: 16.41805415 | U144: 35.06083194 | V144: 27.48967836 | W144: 38.85644304 | X144: 35.17490694 | Y144: 51.03264386 | Z144: 106.5495738 | AA144: 104.7941546 | AB144: 150.9088294 | AC144: 86.12607961 | AD144: 52.88287949 | AE144: 64.11937137 | AF144: 95.75583398 | AG144: 47.62389751 | AH144: 41.48728158 | AI144: 69.91364167 | AJ144: 116.5847921 | AK144: 122.4036171 | AL144: 180.0426203 | AM144: 221.2767559 | AN144: 0 | AO144: =AO141-AO54 -> 0 | AP144: 0 | AQ144: 0 | AR144: 0 | AS144: 0 | AT144: 0 | AU144: 0 | AV144: 0 | AW144: 0 | AX144: 0 | AY144: 0 | AZ144: 0 | BA144: 0 | BB144: 0 | BC144: 0 | BD144: 0 | BE144: 0 | BF144: 0 | BG144: 0 | BH144: 0 | BI144: 0 | BJ144: 0 | BK144: 0 | BL144: 0 | BM144: 0 | BN144: 0 | BO144: 0 | BP144: 0 | BQ144: 0 | BR144: 0 | BS144: 0 | BT144: 0 | BU144: =BU141-BU54 -> 0 | BV144: 0 | BW144: 0 | BX144: 0 | BY144: 0 | BZ144: 0 | CA144: 0 | CB144: 0 | CC144: 0 | CD144: 0 | CE144: 0 | CF144: 0 | CG144: 0 | CH144: 0 | CI144: 0 | CJ144: 0 | CK144: 0 | CL144: 0 | CM144: 0 | CN144: 0 | CO144: 0 | CP144: 0 | CQ144: 0 | CR144: 0 | CS144: 0 | CT144: 0 | CU144: 0 | CV144: 0 | CW144: 0 | CX144: 0 | CY144: 0 | CZ144: 0 | DA144: =DA141-DA54 -> 0 | DB144: 0 | DC144: 0 | DD144: 0 | DE144: 0 | DF144: 0 | DG144: 0 | DH144: 0 | DI144: 0 | DJ144: 0 | DK144: 0 | DL144: 0 | DM144: 0 | DN144: 0 | DO144: 0 | DP144: 0 | DQ144: 0 | DR144: 0 | DS144: 0 | DT144: 0 | DU144: 0 | DV144: 0 | DW144: 0 | DX144: 0
C145: Equity IRR | F145: =IFERROR(IRR(I144:DX144),FALSE) -> 0.1124498846
C147: DSCR (Min) | F147: =MIN(I147:DX147) -> 1.787098532 | I147: =IF(I127>0.1,I125/(I127+I128),FALSE) -> FALSE | J147: =IF(J127>0.1,J125/(J127+J128),FALSE) -> 1.787098532 | K147: 2.970125855 | L147: 3.917547596 | M147: 3.438221323 | N147: 3.545589223 | O147: 3.806907754 | P147: 6.538801486 | Q147: FALSE | R147: FALSE | S147: FALSE | T147: FALSE | U147: FALSE | V147: FALSE | W147: FALSE | X147: FALSE | Y147: FALSE | Z147: FALSE | AA147: FALSE | AB147: FALSE | AC147: FALSE | AD147: FALSE | AE147: FALSE | AF147: FALSE | AG147: FALSE | AH147: FALSE | AI147: FALSE | AJ147: FALSE | AK147: FALSE | AL147: FALSE | AM147: FALSE | AN147: FALSE | AO147: FALSE | AP147: FALSE | AQ147: FALSE | AR147: FALSE | AS147: FALSE | AT147: FALSE | AU147: FALSE | AV147: FALSE | AW147: FALSE | AX147: FALSE | AY147: FALSE | AZ147: FALSE | BA147: FALSE | BB147: FALSE | BC147: FALSE | BD147: FALSE | BE147: FALSE | BF147: FALSE | BG147: FALSE | BH147: FALSE | BI147: FALSE | BJ147: FALSE | BK147: FALSE | BL147: FALSE | BM147: FALSE | BN147: FALSE | BO147: FALSE | BP147: FALSE | BQ147: FALSE | BR147: FALSE | BS147: FALSE | BT147: FALSE | BU147: FALSE | BV147: =IF(BV127>0.1,BV125/(BV127+BV128),FALSE) -> FALSE | BW147: FALSE | BX147: FALSE | BY147: FALSE | BZ147: FALSE | CA147: FALSE | CB147: FALSE | CC147: FALSE | CD147: FALSE | CE147: FALSE | CF147: FALSE | CG147: FALSE | CH147: FALSE | CI147: FALSE | CJ147: FALSE | CK147: FALSE | CL147: FALSE | CM147: FALSE | CN147: FALSE | CO147: FALSE | CP147: FALSE | CQ147: FALSE | CR147: FALSE | CS147: FALSE | CT147: FALSE | CU147: FALSE | CV147: FALSE | CW147: FALSE | CX147: FALSE | CY147: FALSE | CZ147: FALSE | DA147: FALSE | DB147: FALSE | DC147: FALSE | DD147: FALSE | DE147: FALSE | DF147: FALSE | DG147: FALSE | DH147: FALSE | DI147: FALSE | DJ147: FALSE | DK147: FALSE | DL147: FALSE | DM147: FALSE | DN147: FALSE | DO147: FALSE | DP147: FALSE | DQ147: FALSE | DR147: FALSE | DS147: FALSE | DT147: FALSE | DU147: FALSE | DV147: FALSE | DW147: FALSE | DX147: FALSE
C149: CFADS for Loan Life | I149: =IF(I30,I125) -> FALSE | J149: 85.06589014 | K149: 139.1980221 | L149: 171.126845 | M149: 133.8760329 | N149: 126.4911088 | O149: 124.1790576 | P149: 193.2235671 | Q149: 62.08355748 | R149: 11.15772026 | S149: 19.16590725 | T149: 16.41805415 | U149: 35.06083194 | V149: 27.48967836 | W149: 38.85644304 | X149: 35.17490694 | Y149: 51.03264386 | Z149: 106.5495738 | AA149: 104.7941546 | AB149: 150.9088294 | AC149: 86.12607961 | AD149: 52.88287949 | AE149: FALSE | AF149: FALSE | AG149: FALSE | AH149: FALSE | AI149: FALSE | AJ149: FALSE | AK149: FALSE | AL149: FALSE | AM149: FALSE | AN149: FALSE | AO149: =IF(AO30,AO125) -> FALSE | AP149: FALSE | AQ149: FALSE | AR149: FALSE | AS149: FALSE | AT149: FALSE | AU149: FALSE | AV149: FALSE | AW149: FALSE | AX149: FALSE | AY149: FALSE | AZ149: FALSE | BA149: FALSE | BB149: FALSE | BC149: FALSE | BD149: FALSE | BE149: FALSE | BF149: FALSE | BG149: FALSE | BH149: FALSE | BI149: FALSE | BJ149: FALSE | BK149: FALSE | BL149: FALSE | BM149: FALSE | BN149: FALSE | BO149: FALSE | BP149: FALSE | BQ149: FALSE | BR149: FALSE | BS149: FALSE | BT149: FALSE | BU149: =IF(BU30,BU125) -> FALSE | BV149: FALSE | BW149: FALSE | BX149: FALSE | BY149: FALSE | BZ149: FALSE | CA149: FALSE | CB149: FALSE | CC149: FALSE | CD149: FALSE | CE149: FALSE | CF149: FALSE | CG149: FALSE | CH149: FALSE | CI149: FALSE | CJ149: FALSE | CK149: FALSE | CL149: FALSE | CM149: FALSE | CN149: FALSE | CO149: FALSE | CP149: FALSE | CQ149: FALSE | CR149: FALSE | CS149: FALSE | CT149: FALSE | CU149: FALSE | CV149: FALSE | CW149: FALSE | CX149: FALSE | CY149: FALSE | CZ149: FALSE | DA149: =IF(DA30,DA125) -> FALSE | DB149: FALSE | DC149: FALSE | DD149: FALSE | DE149: FALSE | DF149: FALSE | DG149: FALSE | DH149: FALSE | DI149: FALSE | DJ149: FALSE | DK149: FALSE | DL149: FALSE | DM149: FALSE | DN149: FALSE | DO149: FALSE | DP149: FALSE | DQ149: FALSE | DR149: FALSE | DS149: FALSE | DT149: FALSE | DU149: FALSE | DV149: FALSE | DW149: FALSE | DX149: FALSE
C150: NPV of CFADS | F150: =F116 -> 0.045 | G150: =NPV(F150,I149:DX149) -> 1204.088238
C151: Debt Balance | G151: =F36 -> 758.9394521
C152: LLCR | G152: =G150/G151 -> 1.58654058
C154: CFADS for Life | F154: =F150 -> 0.045 | G154: =NPV(F154,I154:DX154) -> 1496.378255 | I154: =IF(I5,I125) -> FALSE | J154: 85.06589014 | K154: 139.1980221 | L154: 171.126845 | M154: 133.8760329 | N154: 126.4911088 | O154: 124.1790576 | P154: 193.2235671 | Q154: 62.08355748 | R154: 11.15772026 | S154: 19.16590725 | T154: 16.41805415 | U154: 35.06083194 | V154: 27.48967836 | W154: 38.85644304 | X154: 35.17490694 | Y154: 51.03264386 | Z154: 106.5495738 | AA154: 104.7941546 | AB154: 150.9088294 | AC154: 86.12607961 | AD154: 52.88287949 | AE154: 64.11937137 | AF154: 95.75583398 | AG154: 47.62389751 | AH154: 41.48728158 | AI154: 69.91364167 | AJ154: 116.5847921 | AK154: 122.4036171 | AL154: 180.0426203 | AM154: 221.2767559 | AN154: FALSE | AO154: =IF(AO5,AO125) -> FALSE | AP154: FALSE | AQ154: FALSE | AR154: FALSE | AS154: FALSE | AT154: FALSE | AU154: FALSE | AV154: FALSE | AW154: FALSE | AX154: FALSE | AY154: FALSE | AZ154: FALSE | BA154: FALSE | BB154: FALSE | BC154: FALSE | BD154: FALSE | BE154: FALSE | BF154: FALSE | BG154: FALSE | BH154: FALSE | BI154: FALSE | BJ154: FALSE | BK154: FALSE | BL154: FALSE | BM154: FALSE | BN154: FALSE | BO154: FALSE | BP154: FALSE | BQ154: FALSE | BR154: FALSE | BS154: FALSE | BT154: FALSE | BU154: =IF(BU5,BU125) -> FALSE | BV154: FALSE | BW154: FALSE | BX154: FALSE | BY154: FALSE | BZ154: FALSE | CA154: FALSE | CB154: FALSE | CC154: FALSE | CD154: FALSE | CE154: FALSE | CF154: FALSE | CG154: FALSE | CH154: FALSE | CI154: FALSE | CJ154: FALSE | CK154: FALSE | CL154: FALSE | CM154: FALSE | CN154: FALSE | CO154: FALSE | CP154: FALSE | CQ154: FALSE | CR154: FALSE | CS154: FALSE | CT154: FALSE | CU154: FALSE | CV154: FALSE | CW154: FALSE | CX154: FALSE | CY154: FALSE | CZ154: FALSE | DA154: =IF(DA5,DA125) -> FALSE | DB154: FALSE | DC154: FALSE | DD154: FALSE | DE154: FALSE | DF154: FALSE | DG154: FALSE | DH154: FALSE | DI154: FALSE | DJ154: FALSE | DK154: FALSE | DL154: FALSE | DM154: FALSE | DN154: FALSE | DO154: FALSE | DP154: FALSE | DQ154: FALSE | DR154: FALSE | DS154: FALSE | DT154: FALSE | DU154: FALSE | DV154: FALSE | DW154: FALSE | DX154: FALSE
C155: Debt Balance | G155: =G151 -> 758.9394521
C156: PLCR | G156: =G154/G155 -> 1.971670138
C158: Default at Project Life | F158: =F5 -> 30 | G158: =LOOKUP(F158,3:3,115:115) -> 0
C159: PV Factor at Interest Rate | F159: =F27 -> 0.045 | G159: =1/(1+$F$159)^F158 -> 0.2670000155
C160: PV of Loss | G160: =G159*G158 -> 0
B162: Graphs
I163: =I72 ->  | J163: 2 | K163: 3 | L163: 4 | M163: 5 | N163: 6 | O163: 7 | P163: 8 | Q163: 9 | R163: 10 | S163: 11 | T163: 12 | U163: 13 | V163: 14 | W163: 15 | X163: 16 | Y163: 17 | Z163: 18 | AA163: 19 | AB163: 20 | AC163: 21 | AD163: 22 | AE163: 23 | AF163: 24 | AG163: 25 | AH163: 26 | AI163: 27 | AJ163: 28 | AK163: 29 | AL163: 30 | AM163: 31 | AO163: =AO72 ->  | BU163: =BU72 ->  | DA163: =DA72 -> 
D164: Scheduled Debt Service - Senior | I164: =IF(I5,I127+I128,NA()) ->  | J164: =J127+J128 -> 47.6 | K164: 46.86603494 | L164: 43.68213552 | M164: 38.9375844 | N164: 35.67562423 | O164: 32.61940284 | P164: 29.5503033 | Q164: 0 | R164: 0 | S164: 0 | T164: 0 | U164: 0 | V164: 0 | W164: 0 | X164: 0 | Y164: 0 | Z164: 0 | AA164: 0 | AB164: 0 | AC164: 0 | AD164: 0 | AE164: -4.988010005e-14 | AF164: -5.212470455e-14 | AG164: -5.447031626e-14 | AH164: -5.692148049e-14 | AI164: -5.948294711e-14 | AJ164: -6.215967973e-14 | AK164: -6.495686532e-14 | AL164: -6.787992426e-14 | AM164: -7.093452085e-14 | AN164: =IF(AN5,AN127+AN128,NA()) ->  | AO164: =IF(AO5,AO127+AO128,NA()) ->  | DA164: =IF(DA5,DA127+DA128,NA()) -> 
D165: Scheduled Debt Service - Subordinated
D166: Sweep | I166: =I133 -> 0 | J166: 37.46589014 | K166: 92.33198715 | L166: 127.4447095 | M166: 94.93844853 | N166: 90.81548456 | O166: 91.55965474 | P166: 94.27214345 | Q166: 0 | R166: 0 | S166: 0 | T166: 0 | U166: 0 | V166: 0 | W166: 0 | X166: 0 | Y166: 0 | Z166: 0 | AA166: 0 | AB166: 0 | AC166: 0 | AD166: 0 | AE166: 4.988010005e-14 | AF166: 5.212470455e-14 | AG166: 5.447031626e-14 | AH166: 5.692148049e-14 | AI166: 5.948294711e-14 | AJ166: 6.215967973e-14 | AK166: 6.495686532e-14 | AL166: 6.787992426e-14 | AM166: 7.093452085e-14 | AN166: 7.412657429e-14 | AO166: =AO133 -> 7.746227013e-14 | AP166: 8.094807229e-14 | AQ166: 8.459073554e-14 | AR166: 8.839731864e-14 | AS166: 9.237519798e-14 | AT166: 9.653208189e-14 | AU166: 1.008760256e-13 | AV166: 1.054154467e-13 | AW166: 1.101591418e-13 | AX166: 1.151163032e-13 | AY166: 1.202965369e-13 | AZ166: 1.25709881e-13 | BA166: 1.313668257e-13 | BB166: 1.372783328e-13 | BC166: 1.434558578e-13 | BD166: 1.499113714e-13 | BE166: 1.566573831e-13 | BF166: 1.637069653e-13 | BG166: 1.710737788e-13 | BH166: 1.787720988e-13 | BI166: 1.868168433e-13 | BJ166: 1.952236012e-13 | BK166: 2.040086633e-13 | BL166: 2.131890531e-13 | BM166: 2.227825605e-13 | BN166: 2.328077757e-13 | BO166: 2.432841256e-13 | BP166: 2.542319113e-13 | BQ166: 2.656723473e-13 | BR166: 2.776276029e-13 | BS166: 2.901208451e-13 | BT166: 3.031762831e-13 | BU166: =BU133 -> 3.168192158e-13 | BV166: 3.310760805e-13 | BW166: 3.459745042e-13 | BX166: 3.615433569e-13 | BY166: 3.778128079e-13 | BZ166: 3.948143843e-13 | CA166: 4.125810316e-13 | CB166: 4.31147178e-13 | CC166: 4.50548801e-13 | CD166: 4.70823497e-13 | CE166: 4.920105544e-13 | CF166: 5.141510294e-13 | CG166: 5.372878257e-13 | CH166: 5.614657778e-13 | CI166: 5.867317378e-13 | CJ166: 6.13134666e-13 | CK166: 6.40725726e-13 | CL166: 6.695583837e-13 | CM166: 6.996885109e-13 | CN166: 7.311744939e-13 | CO166: 7.640773462e-13 | CP166: 7.984608267e-13 | CQ166: 8.343915639e-13 | CR166: 8.719391843e-13 | CS166: 9.111764476e-13 | CT166: 9.521793878e-13 | CU166: 9.950274602e-13 | CV166: 1.039803696e-12 | CW166: 1.086594862e-12 | CX166: 1.135491631e-12 | CY166: 1.186588754e-12 | CZ166: 1.239985248e-12 | DA166: =DA133 -> 1.295784585e-12 | DB166: 1.354094891e-12 | DC166: 1.415029161e-12 | DD166: 1.478705473e-12 | DE166: 1.545247219e-12 | DF166: 1.614783344e-12 | DG166: 1.687448595e-12 | DH166: 1.763383782e-12 | DI166: 1.842736052e-12 | DJ166: 1.925659174e-12 | DK166: 2.012313837e-12 | DL166: 2.10286796e-12 | DM166: 2.197497018e-12 | DN166: 2.296384384e-12 | DO166: 2.399721681e-12 | DP166: 2.507709157e-12 | DQ166: 2.620556069e-12 | DR166: 2.738481092e-12 | DS166: 2.861712741e-12 | DT166: 2.990489814e-12 | DU166: 3.125061856e-12 | DV166: 3.265689639e-12 | DW166: 3.412645673e-12 | DX166: 3.566214728e-12
D167: Repayment of Default | I167: =I137 -> 0 | J167: 0 | K167: 0 | L167: 0 | M167: 0 | N167: 0 | O167: 0 | P167: 0 | Q167: 0 | R167: 0 | S167: 0 | T167: 0 | U167: 0 | V167: 0 | W167: 0 | X167: 0 | Y167: 0 | Z167: 0 | AA167: 0 | AB167: 0 | AC167: 0 | AD167: 0 | AE167: 0 | AF167: 0 | AG167: 0 | AH167: 0 | AI167: 0 | AJ167: 0 | AK167: 0 | AL167: 0 | AM167: 0 | AN167: 0 | AO167: =AO137 -> 0 | AP167: 0 | AQ167: 0 | AR167: 0 | AS167: 0 | AT167: 0 | AU167: 0 | AV167: 0 | AW167: 0 | AX167: 0 | AY167: 0 | AZ167: 0 | BA167: 0 | BB167: 0 | BC167: 0 | BD167: 0 | BE167: 0 | BF167: 0 | BG167: 0 | BH167: 0 | BI167: 0 | BJ167: 0 | BK167: 0 | BL167: 0 | BM167: 0 | BN167: 0 | BO167: 0 | BP167: 0 | BQ167: 0 | BR167: 0 | BS167: 0 | BT167: 0 | BU167: =BU137 -> 0 | BV167: 0 | BW167: 0 | BX167: 0 | BY167: 0 | BZ167: 0 | CA167: 0 | CB167: 0 | CC167: 0 | CD167: 0 | CE167: 0 | CF167: 0 | CG167: 0 | CH167: 0 | CI167: 0 | CJ167: 0 | CK167: 0 | CL167: 0 | CM167: 0 | CN167: 0 | CO167: 0 | CP167: 0 | CQ167: 0 | CR167: 0 | CS167: 0 | CT167: 0 | CU167: 0 | CV167: 0 | CW167: 0 | CX167: 0 | CY167: 0 | CZ167: 0 | DA167: =DA137 -> 0 | DB167: 0 | DC167: 0 | DD167: 0 | DE167: 0 | DF167: 0 | DG167: 0 | DH167: 0 | DI167: 0 | DJ167: 0 | DK167: 0 | DL167: 0 | DM167: 0 | DN167: 0 | DO167: 0 | DP167: 0 | DQ167: 0 | DR167: 0 | DS167: 0 | DT167: 0 | DU167: 0 | DV167: 0 | DW167: 0 | DX167: 0
D169: Dividend | I169: =I141 -> 0 | J169: =J141 -> 0 | K169: 0 | L169: 0 | M169: 0 | N169: 0 | O169: 0 | P169: 69.40112037 | Q169: 62.08355748 | R169: 11.15772026 | S169: 19.16590725 | T169: 16.41805415 | U169: 35.06083194 | V169: 27.48967836 | W169: 38.85644304 | X169: 35.17490694 | Y169: 51.03264386 | Z169: 106.5495738 | AA169: 104.7941546 | AB169: 150.9088294 | AC169: 86.12607961 | AD169: 52.88287949 | AE169: 64.11937137 | AF169: 95.75583398 | AG169: 47.62389751 | AH169: 41.48728158 | AI169: 69.91364167 | AJ169: 116.5847921 | AK169: 122.4036171 | AL169: 180.0426203 | AM169: 221.2767559 | AN169: 0 | AO169: 0 | AP169: 0 | AQ169: 0 | AR169: 0 | AS169: 0 | AT169: 0 | AU169: 0 | AV169: 0 | AW169: 0 | AX169: 0 | AY169: 0 | AZ169: 0 | BA169: 0 | BB169: 0 | BC169: 0 | BD169: 0 | BE169: 0 | BF169: 0 | BG169: 0 | BH169: 0 | BI169: 0 | BJ169: 0 | BK169: 0 | BL169: 0 | BM169: 0 | BN169: 0 | BO169: 0 | BP169: 0 | BQ169: 0 | BR169: 0 | BS169: 0 | BT169: 0 | BU169: 0 | BV169: =BV141 -> 0 | BW169: 0 | BX169: 0 | BY169: 0 | BZ169: 0 | CA169: 0 | CB169: 0 | CC169: 0 | CD169: 0 | CE169: 0 | CF169: 0 | CG169: 0 | CH169: 0 | CI169: 0 | CJ169: 0 | CK169: 0 | CL169: 0 | CM169: 0 | CN169: 0 | CO169: 0 | CP169: 0 | CQ169: 0 | CR169: 0 | CS169: 0 | CT169: 0 | CU169: 0 | CV169: 0 | CW169: 0 | CX169: 0 | CY169: 0 | CZ169: 0 | DA169: 0 | DB169: 0 | DC169: 0 | DD169: 0 | DE169: 0 | DF169: 0 | DG169: 0 | DH169: 0 | DI169: 0 | DJ169: 0 | DK169: 0 | DL169: 0 | DM169: 0 | DN169: 0 | DO169: 0 | DP169: 0 | DQ169: 0 | DR169: 0 | DS169: 0 | DT169: 0 | DU169: 0 | DV169: 0 | DW169: 0 | DX169: 0
D171: Equity IRR | F171: =F145 -> 0.1124498846 | G171: Percent of Cash Flow | I171: =F88 -> 1.16 | J171: Cash Sweep Percent | L171: =F131 -> 1 | M171: Unpaid Debt at Project Life | P171: =DX115 -> 0 | Q171: Volatility | R171: =G2 -> 0.45

Sheet Simulation 1
D4: Simulations | E4: 200
D5: Volatility | E5: ='Financial Model'!F85 -> 0.45
D6: Mean Reversion | E6: ='Financial Model'!F86 -> 0.1
D7: Sweep Percent | E7: ='Financial Model'!$F$131 -> 1
D9: Loss at Life | E9: ='Financial Model'!G158 -> 0
D10: PV of Loss | E10: ='Financial Model'!G160 -> 0
D11: Min DSCR | E11: ='Financial Model'!F147 -> 1.787098532
D13: Loan Amount | E13: ='Financial Model'!$F$33 -> 758.9394521
D14: Average PV of Loss | E14: =SUM(G19:G1003)/Simulations -> 30.99721691
D15: Loss Percent | E15: =E14/E13 -> 0.04084280613
F18: Loss | G18: PV Loss | H18: DSCR
E19: =_xlfn.SEQUENCE(E4) -> 1 | F19: 0 | G19: 0 | H19: 0.005829585551
E20: 2 | F20: 0 | G20: 0 | H20: -0.1153754257
E21: 3 | F21: 617.030844 | G21: 164.7472449 | H21: -17.0456293
E22: 4 | F22: 0 | G22: 0 | H22: -2.64817457
E23: 5 | F23: 0 | G23: 0 | H23: 0.6914218556
E24: 6 | F24: 186.2943649 | G24: 49.74059831 | H24: 0
E25: 7 | F25: 109.150366 | G25: 29.14314941 | H25: -17.90760667
E26: 8 | F26: 0 | G26: 0 | H26: -0.05784485732
E27: 9 | F27: 0 | G27: 0 | H27: 0.2981767101
E28: 10 | F28: 0 | G28: 0 | H28: 0.2730080285
E29: 11 | F29: 0 | G29: 0 | H29: -0.6884447602
E30: 12 | F30: 0 | G30: 0 | H30: 0.3185171653
E31: 13 | F31: 0 | G31: 0 | H31: -0.7320961439
E32: 14 | F32: 0 | G32: 0 | H32: 0.03276723181
E33: 15 | F33: 0 | G33: 0 | H33: 0.3266408636
E34: 16 | F34: 0 | G34: 0 | H34: -0.146432962
E35: 17 | F35: 0 | G35: 0 | H35: -0.1301901381
E36: 18 | F36: 39.75600469 | G36: 10.61485387 | H36: -0.3091200621
E37: 19 | F37: 0 | G37: 0 | H37: -0.02643721524
E38: 20 | F38: 0 | G38: 0 | H38: 0.340547235
E39: 21 | F39: 0 | G39: 0 | H39: 0.05537383246
E40: 22 | F40: 0 | G40: 0 | H40: 0.5983387471
E41: 23 | F41: 0 | G41: 0 | H41: 0.8011066672
E42: 24 | F42: 0 | G42: 0 | H42: 0.9694134784
E43: 25 | F43: 0 | G43: 0 | H43: 0.4082964542
E44: 26 | F44: 0 | G44: 0 | H44: -15.98772649
E45: 27 | F45: 0 | G45: 0 | H45: -13.10860963
E46: 28 | F46: 0 | G46: 0 | H46: 2.291180447
E47: 29 | F47: 0 | G47: 0 | H47: 2.254230301
E48: 30 | F48: 0 | G48: 0 | H48: 2.492441843
E49: 31 | F49: 1107.747919 | G49: 295.7687116 | H49: -0.949860146
E50: 32 | F50: 0 | G50: 0 | H50: -4.690144556
E51: 33 | F51: 0 | G51: 0 | H51: 1.014568455
E52: 34 | F52: 0 | G52: 0 | H52: 1.250603545
E53: 35 | F53: 849.3911646 | G53: 226.7874541 | H53: -0.2451408667
E54: 36 | F54: 0 | G54: 0 | H54: 0.5296765306
E55: 37 | F55: 1.20712502 | G55: 0.322302399 | H55: 3.656699955
E56: 38 | F56: 870.8600731 | G56: 232.519653 | H56: -1.208754824
E57: 39 | F57: 0 | G57: 0 | H57: 2.212091046
E58: 40 | F58: 0 | G58: 0 | H58: -0.02808908619
E59: 41 | F59: 0 | G59: 0 | H59: 0.3925141061
E60: 42 | F60: 0 | G60: 0 | H60: -63.62227109
E61: 43 | F61: 0 | G61: 0 | H61: -0.1979531317
E62: 44 | F62: 0 | G62: 0 | H62: -1.497434549
E63: 45 | F63: 0 | G63: 0 | H63: 1.449355417
E64: 46 | F64: 0 | G64: 0 | H64: 0.1343458805
E65: 47 | F65: 0 | G65: 0 | H65: 1.450182494
E66: 48 | F66: 0 | G66: 0 | H66: 0.3374824561
E67: 49 | F67: 0 | G67: 0 | H67: 0.05360188449
E68: 50 | F68: 0 | G68: 0 | H68: 0.8922879815
E69: 51 | F69: 0 | G69: 0 | H69: 1.895508876
E70: 52 | F70: 0 | G70: 0 | H70: 0.4736574074
E71: 53 | F71: 0 | G71: 0 | H71: 3.357153086
E72: 54 | F72: 0 | G72: 0 | H72: -5.868357525
E73: 55 | F73: 294.8102861 | G73: 78.71435097 | H73: -0.02703329048
E74: 56 | F74: 0 | G74: 0 | H74: 2.274630696
E75: 57 | F75: 10.63814047 | G75: 2.840383672 | H75: -0.2591613738
E76: 58 | F76: 0 | G76: 0 | H76: 1.464632127
E77: 59 | F77: 62.26710088 | G77: 16.6253169 | H77: -14.25501327
E78: 60 | F78: 0 | G78: 0 | H78: 0.07768078414
E79: 61 | F79: 1107.584367 | G79: 295.7250432 | H79: -2.818566103
E80: 62 | F80: 0 | G80: 0 | H80: -0.1326593798
E81: 63 | F81: 0 | G81: 0 | H81: 1.221185762
E82: 64 | F82: 0 | G82: 0 | H82: 1.782314551
E83: 65 | F83: 0 | G83: 0 | H83: -12.06403219
E84: 66 | F84: 0 | G84: 0 | H84: 0.4482188376
E85: 67 | F85: 2894.438606 | G85: 772.8151527 | H85: -27.08885695
E86: 68 | F86: 805.6056559 | G86: 215.0967226 | H86: -0.771931636
E87: 69 | F87: 0 | G87: 0 | H87: -0.0001643852153
E88: 70 | F88: 0 | G88: 0 | H88: 2.806490435
E89: 71 | F89: 0 | G89: 0 | H89: 0.03054548754
E90: 72 | F90: 0 | G90: 0 | H90: -0.1960838633
E91: 73 | F91: 0 | G91: 0 | H91: -0.07720062406
E92: 74 | F92: 69.08105516 | G92: 18.4446428 | H92: -0.1182770996
E93: 75 | F93: 0 | G93: 0 | H93: 0.5145046641
E94: 76 | F94: 0 | G94: 0 | H94: 1.288241942
E95: 77 | F95: 0 | G95: 0 | H95: 0.08799682829
E96: 78 | F96: 45.97803308 | G96: 12.27613554 | H96: -6.533336056
E97: 79 | F97: 15.40172473 | G97: 4.112260741 | H97: -13.55895267
E98: 80 | F98: 0 | G98: 0 | H98: 0.7807702072
E99: 81 | F99: 0 | G99: 0 | H99: -5.72490092
E100: 82 | F100: 0 | G100: 0 | H100: 0.2117861475
E101: 83 | F101: 114.2758613 | G101: 30.51165674 | H101: -18.39477023
E102: 84 | F102: 21.64727116 | G102: 5.779821736 | H102: -3.04109856
E103: 85 | F103: 0 | G103: 0 | H103: 0.03398622561
E104: 86 | F104: 786.8484677 | G104: 210.0885531 | H104: -0.018515078
E105: 87 | F105: 6.253892625 | G105: 1.669789428 | H105: 0.2317629273
E106: 88 | F106: 54.77404666 | G106: 14.62467131 | H106: -11.88689031
E107: 89 | F107: 0 | G107: 0 | H107: 0.1148651739
E108: 90 | F108: 0 | G108: 0 | H108: 0.07097427783
E109: 91 | F109: 0 | G109: 0 | H109: -0.007179298083
E110: 92 | F110: 0 | G110: 0 | H110: 2.636387896
E111: 93 | F111: 0 | G111: 0 | H111: 1.261940248
E112: 94 | F112: 0 | G112: 0 | H112: 2.762697858
E113: 95 | F113: 124.9950655 | G113: 33.37368442 | H113: -2.818203529
E114: 96 | F114: 0 | G114: 0 | H114: 2.37998651
E115: 97 | F115: 0 | G115: 0 | H115: -0.1644117564
E116: 98 | F116: 0 | G116: 0 | H116: -11.97053949
E117: 99 | F117: 0 | G117: 0 | H117: 0.2296820545
E118: 100 | F118: 5.019904808 | G118: 1.340314661 | H118: 1.40080314
E119: 101 | F119: 0 | G119: 0 | H119: 1.723617591
E120: 102 | F120: 18.33459086 | G120: 4.895336044 | H120: -14.10975614
E121: 103 | F121: 0 | G121: 0 | H121: -2.06979286
E122: 104 | F122: 0 | G122: 0 | H122: 0.2741337595
E123: 105 | F123: 0 | G123: 0 | H123: -6.529585727
E124: 106 | F124: 557.2039952 | G124: 148.7734754 | H124: 0
E125: 107 | F125: 0 | G125: 0 | H125: -0.005421598887
E126: 108 | F126: 0 | G126: 0 | H126: 0.3406751016
E127: 109 | F127: 0 | G127: 0 | H127: 0.2112985715
E128: 110 | F128: 0 | G128: 0 | H128: 0.2048579669
E129: 111 | F129: 0 | G129: 0 | H129: 3.088706792
E130: 112 | F130: 0 | G130: 0 | H130: 0.2365363355
E131: 113 | F131: 0 | G131: 0 | H131: 1.144082694
E132: 114 | F132: 0 | G132: 0 | H132: 0.3650876216
E133: 115 | F133: 0 | G133: 0 | H133: -0.7363170292
E134: 116 | F134: 740.6975308 | G134: 197.7662522 | H134: -14.02450426
E135: 117 | F135: 0 | G135: 0 | H135: 0.3970758748
E136: 118 | F136: 0 | G136: 0 | H136: 0.6555155476
E137: 119 | F137: 0 | G137: 0 | H137: 1.903944989
E138: 120 | F138: 0 | G138: 0 | H138: 3.198247885
E139: 121 | F139: 0 | G139: 0 | H139: 2.761350372
E140: 122 | F140: 0 | G140: 0 | H140: 0.2148345811
E141: 123 | F141: 487.3116649 | G141: 130.1122221 | H141: -1.74233171
E142: 124 | F142: 0 | G142: 0 | H142: -0.2080310026
E143: 125 | F143: 765.8123242 | G143: 204.4719024 | H143: -0.07344859736
E144: 126 | F144: 66.36310865 | G144: 17.71895104 | H144: -18.80514291
E145: 127 | F145: 0 | G145: 0 | H145: 1.00318474
E146: 128 | F146: 0 | G146: 0 | H146: 1.971361337
E147: 129 | F147: 0 | G147: 0 | H147: -14.03032459
E148: 130 | F148: 0 | G148: 0 | H148: -0.1308562907
E149: 131 | F149: 0 | G149: 0 | H149: 0.459542387
E150: 132 | F150: 656.9008565 | G150: 175.3925389 | H150: -30.8707101
E151: 133 | F151: 0 | G151: 0 | H151: 1.594784405
E152: 134 | F152: 0 | G152: 0 | H152: -3.472224387
E153: 135 | F153: 461.9504407 | G153: 123.3407748 | H153: -0.1213268118
E154: 136 | F154: 0 | G154: 0 | H154: 3.298078465
E155: 137 | F155: 587.3457569 | G155: 156.8213262 | H155: -0.9401247584
E156: 138 | F156: 0 | G156: 0 | H156: 0.9453261084
E157: 139 | F157: 0 | G157: 0 | H157: 0.1068263905
E158: 140 | F158: 0 | G158: 0 | H158: 1.29160029
E159: 141 | F159: 0 | G159: 0 | H159: -10.48205314
E160: 142 | F160: 1120.352937 | G160: 299.1342517 | H160: -0.3221136821
E161: 143 | F161: 1092.96165 | G161: 291.8207775 | H161: -0.01208665963
E162: 144 | F162: 0 | G162: 0 | H162: 2.532012291
E163: 145 | F163: 0 | G163: 0 | H163: 0.2428381106
E164: 146 | F164: 0 | G164: 0 | H164: 0.0115078652
E165: 147 | F165: 1493.509759 | G165: 398.7671289 | H165: -20.31223817
E166: 148 | F166: 0 | G166: 0 | H166: 0.5272924188
E167: 149 | F167: 0 | G167: 0 | H167: -0.4575030911
E168: 150 | F168: 0 | G168: 0 | H168: 0.924744288
E169: 151 | F169: 0 | G169: 0 | H169: 0.2025619793
E170: 152 | F170: 525.5028703 | G170: 140.3092745 | H170: -0.4476967513
E171: 153 | F171: 0 | G171: 0 | H171: 0.1848833988
E172: 154 | F172: 0 | G172: 0 | H172: 0.2124262102
E173: 155 | F173: 0 | G173: 0 | H173: -0.4106974708
E174: 156 | F174: 754.0349999 | G174: 201.3273567 | H174: -0.6526675322
E175: 157 | F175: 0 | G175: 0 | H175: 0.1324213337
E176: 158 | F176: 0 | G176: 0 | H176: 0.06021904774
E177: 159 | F177: 0 | G177: 0 | H177: 0.9552675205
E178: 160 | F178: 0 | G178: 0 | H178: 2.079492326
E179: 161 | F179: 0 | G179: 0 | H179: -0.04967960347
E180: 162 | F180: 0 | G180: 0 | H180: -0.1213950749
E181: 163 | F181: 0 | G181: 0 | H181: 1.153855003
E182: 164 | F182: 0 | G182: 0 | H182: 1.669375183
E183: 165 | F183: 0 | G183: 0 | H183: -0.4572710745
E184: 166 | F184: 1155.725071 | G184: 308.5786119 | H184: 0
E185: 167 | F185: 0 | G185: 0 | H185: -0.1545871898
E186: 168 | F186: 0 | G186: 0 | H186: 1.606725758
E187: 169 | F187: 0 | G187: 0 | H187: -17.7626648
E188: 170 | F188: 0 | G188: 0 | H188: 0.04302949001
E189: 171 | F189: 0 | G189: 0 | H189: -9.654858832
E190: 172 | F190: 681.8875356 | G190: 182.0639826 | H190: -0.2328177689
E191: 173 | F191: 11.16765579 | G191: 2.98176427 | H191: -0.01223890112
E192: 174 | F192: 872.6806666 | G192: 233.0057515 | H192: -0.1725758821
E193: 175 | F193: 0 | G193: 0 | H193: 0.2545746157
E194: 176 | F194: 0 | G194: 0 | H194: 0.3403124451
E195: 177 | F195: 0 | G195: 0 | H195: 1.145740205
E196: 178 | F196: 0 | G196: 0 | H196: 1.015931735
E197: 179 | F197: 0 | G197: 0 | H197: -0.03144698874
E198: 180 | F198: 0 | G198: 0 | H198: -5.21305982
E199: 181 | F199: 235.2524145 | G199: 62.81239831 | H199: -25.70692051
E200: 182 | F200: 236.6435373 | G200: 63.18382813 | H200: -14.31073563
E201: 183 | F201: 226.1654891 | G201: 60.3861891 | H201: -7.994761236
E202: 184 | F202: 47.39829929 | G202: 12.65534665 | H202: 0.02796509397
E203: 185 | F203: 160.6757893 | G203: 42.90043823 | H203: 0
E204: 186 | F204: 0 | G204: 0 | H204: 0.4637613259
E205: 187 | F205: 0 | G205: 0 | H205: 0.6197704473
E206: 188 | F206: 0 | G206: 0 | H206: 0.204811058
E207: 189 | F207: 0 | G207: 0 | H207: 0.2080822334
... 796 more rows
